Workbook

Sheet ABOUT THE TOOL (hidden)
B1: Navigation Pane | C1: Version 3.2
B4: GENERAL
B6: RATING
B8: RANKING
B11: ABOUT THE CoC PROGRAM RATING & RANKING TOOL
B14: ABOUT THE TOOL
B17: HUD is providing this Rating and Ranking Tool to help CoCs design and implement a comprehensive annual CoC competition application review process. It has several customization features so you can choose the rating factors that are most relevant to your CoC and the priorities your CoC has adopted to inform system (re)design.
B18: DISCLAIMER: HUD is explicitly stating that use of this tool is optional, is not being promoted over other tools CoCs currently use, and does not guarantee: • additional points in the Fiscal Year (FY) 2018 Continuum of Care Program (CoC) Competition; • CoC applications will be consistent with all NOFA requirements; and • HUD will award CoCs with full points or funding. The tool provides a strong framework for implementing a data-driven rating process and a ranking process informed by system priorities and capacity analysis (if available) and it satisfies the objective criteria requirement in the FY 2018 CoC Program NOFA. HUD strongly encourages CoCs to read the CoC Program NOFA carefully to determine if there are new opportunities, priorities, or expectations that your CoC might need to assess outside this tool. The Priority Listing is the official project ranking record for the CoC Program NOFA. HUD is not requiring CoCs to use this tool, nor is it preferred over other rating tools or processes, use of the tool does not guarantee additional points on the CoC Program application. HUD has made this tool available to CoCs for use in their year-round NOFA planning process. Feedback on the tool is welcome.
B20: Microsoft Excel 2003 or higher is required when using this tool. When opening the tool workbook, you might need to click "Enable Content", "Enable Editing", and/or "Enable Macros" buttons in the yellow bar at the top of your screen. This is necessary for the macros and formulas to run correctly within the spreadsheet. If you get an error message, please check to see if the yellow bar is present and click these buttons before attempting to use the tool further. If you encounter a bug while using the tool, click "End" in the error pop-up, return to this tab and click the "Turn On Macros" button in the top right corner to ensure the underlying code is not disrupted before resuming. CoCs can submit technical questions about the Rating and Ranking Tool, including requesting help with bugs in the Tool, through the esnaps competition AAQ desk. Due to the complexity of the tool, problems might occur when multiple Excel files are open at the same time. To help alleviate this problem, you should close all other Excel files on your computer before running the following parts of the tool: • Generating list of projects from Raw HIC data • Populating rating results • Generating project ranking
B23: CHANGES FROM VERSION 3.1 TO VERSION 3.2
B26: • Instructions for migrating data from version 2.3 to all versions developed for the FY18 CoC NOFA (ie. Version 3.0, 3.1 and 3.2) have been updated and clarified.
B27: • Instructions for manually entering data on the 'LIST OF PROJECTS TO BE REVIEWED' tab have been clarified.
B28: • Programming error that hid the scoring of additional New Project rating factors on the 'NEW PROJECTS RATING TOOL' tab has been corrected.
B29: • Programming error that caused inaccuracies in the display of scores when a Project Type was selected on the 'CUSTOMIZE RATING CRITERIA' tab dropdown that didn't match the type of the project currently being rated was corrected.
B30: • Programming correction to ensure scores are accurately displayed when switching between projects of different types on the 'RATING TOOL' tabs.
B31: • New programming to allow saving of the PERFORMANCE values entered for individual projects on the 'RENEW. + EXP. RATING TOOL' tab.
B34: CHANGES FROM VERSION 3.0 TO VERSION 3.1
B36: Updates to version 3.1 include corrections to programming errors and improved functionality.
B37: CHANGES: • Projects now move between tables (ex. Tier 1 and Tier 2) in the ‘FUNDING ANALYSIS + RANKING’ tab. A programming error did not allow movement into a table if it was currently empty. • If skipping the HIC data upload, projects added on the ‘LIST OF PROJECTS TO BE REVIEWED’ tab will now appear. A programming error had hidden them. • Goals for additional rating factors on the ‘RENEW.+EXP. RATING TOOL’ tab will now be shown. A programming error had hidden them. • On the ‘FUNDING ANALYSIS + RANKING’ tab reallocated projects in the 'Projects Not Selected For Funding' will now be labeled "Reallocated" instead of “Over Target”. • On the ‘FUNDING ANALYSIS + RANKING’ projects moved down into the 'Projects Not Selected For Funding' table' will now be labeled "Exceeds ARD" instead of “Over Target”. • On the ‘FUNDING ANALYSIS + RANKING’ projects in the 'Projects Exceeding ARD' table' will now be labeled "Exceeds ARD" unless they are "Ineligible". • Tier 2 ranking numbers continue from Tier 1 rather than starting over. • Selecting a project on either a threshold tab or individual rating tool tab will cause that project to be selected on the other tab to make the rating process easier and more transparent.
B40: CHANGES FROM VERSION 2.3 TO VERSION 3 FOR FY18 CoC NOFA
B42: Updates to the FY18 CoC Program Rating and Ranking Tool include a number of usability and performance improvements, a few new features, and revisions to the tool’s language and instructions for clarity.
B43: NEW FEATURES • Rating criteria can be customized for each project type (RRH, PSH, TH) in the ‘CUSTOMIZE RATING CRITERIA’ tab and all criteria have factor and goal fields for more customization. If the CoC wants to print the rating templates for use with the CoC Committee this can be done from the “Print Blank Template” icon at the top of the ‘RENEW. + EXP. RATING TOOL’ and ‘NEW PROJECTS RATING TOOL’ tabs. • Project performance can be recorded in the ‘RENEW. + EXP. RATING TOOL’ tab for documentation purposes. • “Print Report Card” feature added to the ‘RENEW. + EXP. RATING TOOL’ tab to share final rating decisions with CoC Review Committee or projects. The ‘RENEW. + EXP. RATING TOOL’ tab can also be used to track performance against CoC rating criteria throughout the year, and the “Print Report Card” button can be used to distribute these mid-year performance reports. • ‘ALTERNATIVE RATING TOOL’ tab added to enter project threshold review results and rating scores for CoCs that have completed the rating process not using the tool and want to use the tool to rank their projects. • New funding for projects serving survivors of domestic violence has been added to the ranking process. • Ranking process places DV bonus and bonus projects in the list of projects by performance and need instead of placing them in Tier 2 by default.
B45: MIGRATING DATA TO NEWER VERSIONS OF THE TOOL
B47: The version of the CoC Program Rating and Ranking Tool created for the FY18 CoC Program NOFA (Version 3.0 and higher) contains improvements to the rating process and includes the new funding for projects serving survivors of domestic violence in the ranking process, CoCs are strongly encouraged to use Version 3.0 for the FY18 CoC NOFA process. The Tool has been updated to reflect the FY18 NOFA to the greatest extent possible. CoCs are responsible for verifying that the rating and ranking process they use is consistent with the NOFA. If a CoC has started using an earlier version of the Tool for the FY18 NOFA process the data entered into the data can be migrated to Version 3.0 by following the steps in the chart below.
B49: If a CoC decides to use version 2.3 for the FY18 CoC process, they should review the HUD threshold requirements in the ‘RENEW. + EXP. THRESHOLD’ and ‘NEW PROJECTS THRESHOLD’ tabs and the NOFA information in the “General Funding Information” and “HUD CoC Program NOFA Opportunities” sections of the ‘FUNDING CEILINGS + PRIORITIES’ tab carefully to take into account any changes in HUD requirements or NOFA opportunities in the FY18 CoC NOFA.
B50: STEP IN TOOL PROCESS | D50: PROCESS FOR MIGRATING DATA
B51: Uploaded HIC and entered all projects in ‘LIST OF PROJECTS TO BE REVIEWED’ tab | D51: Migrate data from from any earlier version of the tool to the current version (e.g. from Version 2.3 to 3.0 or from Version 3.0 to 3.1, etc.) by copying the data (one column at a time, excluding headers) in the ‘LIST OF PROJECTS TO BE REVIEWED’ tab from one version to the other. If copying from version 2.3 of the tool make sure that in the “Renewal, New, Expansion, Reallocate, Ignore” column, you select “Ignore” for any projects that are funded by the Emergency Solutions Grant.
B52: Completed threshold review and project rating for all projects and have clicked the “Populate Rating Results” button in the ‘RATING RESULTS’ tab. | D52: Migrate data from from any earlier version of the tool to the current version (e.g. from Version 2.3 to 3.0 or from Version 3.0 to 3.1, etc.) by taking the following steps: 1. Open a copy of the current version and navigate to the ‘ABOUT THE TOOL’ tab and click the "Turn Off Macros" button. 2. Navigate to the ‘RATING RESULTS’ tab. In the ribbon at the top of the Excel window, click the Review tab, then the Unprotect Sheet button in the Changes group. 3. Copy data from each table column (ignoring headers) in the old version ‘RATING RESULTS’ tab to the corresponding column in version 3.0. When you paste, be sure to paste as values (right-click on the destination cell, then hit V). 4. In the current version, fill in column V. 5. Navigate to the ‘ABOUT THE TOOL’ tab and click the ‘Turn On Macros’ button.
B55: GETTING STARTED
B58: Before using the tool, read the instructions below to gain an understanding of all the steps and how they fit together, as well as the details of how to use the tool. The tool can be completed all at once or in phases. The different steps of the rating and ranking process are separated into different tabs. Use the tabs at the bottom of each screen to navigate the tool.
B59: Step 1: Prepare your list of projects for review, including projects your CoC is reallocating:
B60: Tab: RAW HIC DATA
B61: Tab: LIST OF PROJECTS TO BE REVIEWED
B62: Step 2: Review all projects for threshold criteria and then score projects based on locally-adopted rating criteria:
B63: Tab: CUSTOMIZE RATING CRITERIA
B64: Tab: RENEW. + EXP. THRESHOLD
B65: Tab: RENEW. + EXP. RATING TOOL
B66: Tab: NEW PROJECTS THRESHOLD
B67: Tab: NEW PROJECTS RATING TOOL
B68: Tab: ALTERNATIVE RATING TOOL
B69: Tab: RATING RESULTS
B70: Step 3: Establish Local Funding Ceilings and Priorities and then rank projects accordingly:
B71: Tab: FUNDING CEILINGS + PRIORITIES
B72: Tab: FUNDING ANALYSIS + RANKING
B75: KEY TERMS
B78: Rating: The process of scoring projects based on standardized criteria. Projects are generally scored relative to other projects of the same type. Some projects such as the HMIS or coordinated entry might not be rated since there is no clear mechanism to score them relative to other projects. The tool refers to these as "non-rated" projects.
B79: Ranking: The process of prioritizing projects for funding in rank order. The rating scores are generally an important input into the ranking process (e.g., projects might be ranked according to their score), but the CoC might intend to add other factors to inform ranking. For instance, ranking might be prioritized based on project type, population groups, relative levels of unmet need, or other local funding priorities.
B80: Grant Types (Renewal, Reallocated, Expansion, New):
B81: Renewal grants represent previously funded projects that are requesting renewal funding. These projects should have historical performance data that CoCs can use for rating purposes.
B82: Reallocated grants represent previously funded projects that are not being submitted for renewal. These projects will not be rated or ranked. The amount of the previous annual award will be available for new projects, meaning those coded either as new or expansion grants within the tool.
B83: New grants represent funding requests for new projects that do not have any historical performance information to use for rating purposes. The New Project Rating criteria are largely narrative-based.
B84: Expansion grants are new funding requests to expand an existing project. Therefore, the applicant should have historical performance data from the current project that CoCs can use as a proxy to rate the grant application. Expansion projects prioritized for funding must be listed as "New" grants in the CoC Application.
B86: STEP 1: PREPARE YOUR LIST OF PROJECTS FOR REVIEW
B88: This tool allows applicants to use your CoC’s most recent Housing Inventory Count (HIC) data to populate existing residential projects, rather than setting up all projects from scratch. The instructions below describe the process to import and adjust HIC data. If you decide to enter the data manually, you can skip this tab and proceed directly to the 'LIST OF PROJECTS TO BE REVIEWED' tab. The final list of projects generated through this process populates the universe of renewal, expansion, and new projects in the rating tools.
B90: TAB: RAW HIC DATA
B93: To use your CoC’s most recent HIC data to populate existing residential projects in the tool:
B94: 1) Go to HUD HDX and select the HIC tab.
B95: 2) Select ‘Inventory List’ under the HIC tab.
B96: 3) Select the year with the most current HIC data.
B97: 4) Select ‘Choose Columns’ under the Inventory List Tab. A Choose Columns table will appear.
B98: 5) Under the Choose Columns table, select ‘Select All’ and close table.
B99: 6) Select the ‘Export to Excel’ option.
B100: 7) Save the HIC data that will appear in an Excel spreadsheet onto your computer.
B101: 8) Copy and paste the saved HIC data onto the ‘RAW HIC DATA’ tab in the tool. You should copy your CoC's HIC data by selecting the relevant records directly in the HIC download. Include the header row but do not include any summary rows. Paste the selection into the 'RAW HIC DATA' tab on top of the header row (starting in cell A2). Do not use the MS Excel copy function that allows you to copy and paste the entire worksheet, as that will overwrite the "Generate List of Projects from Raw HIC Data" button on the 'RAW HC DATA' tab. If you inadvertently copy over this function, restart the import process with a clean copy of the tool to ensure the underlying programming is not affected. If you intend to include HIC data for multiple CoCs, you can paste additional excerpts into the 'RAW HIC DATA' tab below the first excerpt, but you should not include additional header rows or any blank rows in the data.
B102: 9) Click "Generate List of Projects from Raw HIC Data" button at the top of the 'RAW HIC DATA' tab. The tool will select and reformat the necessary fields from the 'RAW HIC DATA' tab. The reformatted data will appear on the 'LIST OF PROJECTS TO BE REVIEWED' tab.
B104: If you do not intend to import HIC data into the tool, proceed to the 'LIST OF PROJECTS TO BE REVIEWED' tab to directly enter all projects that you intend to review. The final list of projects generated through this process will populate the universe of renewal, expansion, and new projects on the rating tools.
B105: NOTE: The HIC only collects inventory information for each family subpopulation by the number of beds available to that subpopulation. This means the tool indicates inventory information for families in beds not units. CoCs must keep this in mind when adding new family projects and setting ranking parameters for families.
B108: TAB: LIST OF PROJECTS TO BE REVIEWED
B111: Assuming they were listed on your CoC's HIC, all renewal CoC Program funded PSH, RRH, SH, TH, and TH-RRH projects should now be listed on the "LIST OF PROJECTS TO BE REVIEWED" tab. (Instructions on how to add additional projects are provided below.) You will only see projects from the HIC identified as "Receiving McKinney-Vento funding" that are not "McKinney-Vento: EsgES" or "McKinney-Vento: EsgRrh". ES projects with funding from any source, ESG funded RRH projects and non-McKinney-Funded projects have automatically been coded to be ignored for purposes of rating and ranking. However, you can see them by clicking on the filter icon next to the "Renewal, New, Expansion, Reallocate, Ignore" column and clicking "Select All". You can then unhide various project groupings by unchecking the respective boxes in the sort menu of relevant column headers.
B112: This list will be used to populate the rating and the ranking tabs, so complete and accurate information at this step is essential. You can use the final 2018 Grant Inventory Worksheet (GIW) for your CoC to compare the projects brought in from the HIC with the list of projects eligible for renewal through the FY2018 CoC Program NOFA. If entering data manually, be sure to add unique numeric Project IDs to all projects entered on this tab.
B113: Using the green columns in this tab, you must identify which McKinney-Vento funded projects will be considered for this year's CoC Application review process and you must fill in additional funding information for the projects that are being considered for this grant cycle.
B114: 1) No two projects can have the same "Organization Name"/"Project Name" combinations. Check the list for duplicates. If duplicates are legitimate (e.g., the same agency operates a shelter and a transitional housing project that have the same name and are distinguished by other project attributes), add consecutive numbers or other distinguishing labels to the "Project Name" to make each row distinct. If duplicates are not legitimate, delete the duplicate row or otherwise correct the source data.
B115: 2) In the 5th green column, select “Renewal” for all projects that you intend to rate as part of the application process. Select “Reallocate” if the project is eligible for renewal, but the CoC has decided to reallocate the funds. Select "Ignore" if you intend for the tool to ignore the project for rating and ranking purposes.
B116: 3) In the first green column, add the CoC grant number for the projects that you have classified as “Renewal” or “Reallocate”.
B117: 4) In the remaining green columns, enter the "CoC Amount Awarded Last Operating Year" for renewal and reallocated grants and then enter the "CoC Amount Expended Last Operating Year" and "CoC Funding Requested", for each renewal grant. If you intend to renew a project at a lower funding level as part of a reallocation strategy then the project should be marked as a Renewal project with the lower amount in the "CoC Funding Requested" column.
B118: 5) In the columns with blue headings to the left, check the unit/bed inventory of the projects that you classified as "Renewal" projects. Since projects might be listed differently than the way they are funded with CoC Program grants, you might need to adjust the bed counts associated with grants eligible for renewal. (Note: if two HIC projects are combined under one grant, choose one project to rate, update bed counts to reflect the total number of both projects, and select "Ignore" in the right-most green column for the other. In making this change, make sure the project names are not identical, even if one is "Ignore".) The grey columns are populated with data from the information entered into the blue columns; in order to adjust totals in the grey columns you must change the source data in the columns with blue headings.
B119: 6) Add other renewal, expansion, and new projects to be rated and ranked (see below). Additional projects would include new or expansion residential projects that are applying in this grant cycle for bonus, DV or reallocated funding, renewal projects that were not in service at the time the HIC data was collected, renewal SSO projects, new and renewal SSO coordinated entry projects, and new and renewal HMIS projects.
B120: NOTE: The tool is not designed to rate or score Safe Haven, TH-RRH awarded under the FY2017 NOFA, SSO or HMIS projects, since performance data may not be available for some of these projects and a CoC usually only has one of each project type preventing comparison of performance. The tool will automatically list them as "Not Rated" in the Rating Results, and then you will be able to rank them alongside the other rated projects based on locally adopted ranking priorities. Your CoC may want to develop a scoring process outside of the tool to assist in the rating process for these projects.
B121: To add additional projects:
B122: 1) In the 'LIST OF PROJECTS TO BE REVIEWED' tab, click the ‘Add Additional Project to the List Below’ button.
B123: 2) A form will appear asking for information for the additional project. If a new project is based on a project with historical performance data, it should be classified as an “Expansion” project in the form. Expansion projects will be rated using the 'RENEW. + EXP. RATING TOOL' tab. If the proposed project is completely new and does not have historical performance data, classify it as a “New” project. If a project is eligible for renewal, but the CoC has decided to reallocate the funds, classify it as a “Reallocated” project. Every field except the grant number is required for a project to be added to the form. If a PSH project will be considered for bonus funding make sure the 100% of Individual/Family Beds Targeted to CH box is checked. If a new project will be considered for DV bonus funding make sure the 100% DV box is checked. Click ‘OK’ to add the project to the list.
B124: 3) To add additional projects, repeat the process.
B125: 4) If you need to change information about a project you already added, click the row to adjust the information.
B126: 5) After you create the additional projects, enter information about "CoC Amount Awarded Last Operating Year", "CoC Amount Expended Last Operating Year" and "CoC Funding Requested" as appropriate for the "Renewal, New, Expansion or Reallocation" status of the project.
B127: You can edit most information after creating projects. If you intend to remove a project from the list of projects to be reviewed select "Ignore" and the project will be ignored for purposes of the Tool or you can unprotect the Tool and delete the row.
B128: Because the HIC records might vary from the number of units funded with a CoC Program award, the tool prompts you to verify project inventory that was uploaded from your HIC against your CoC's Grant Inventory Worksheet. To do this, download your approved GIW from the HUD website and check all projects that your CoC has designated for renewal or reallocation. Once you complete your check, check the box labeled "Check once you have confirmed the bed inventory..." before advancing to the next step. This inventory information must be accurate because it will be used during the ranking process to tally the number of units that the CoC will request funding for within the different bonus and funding tiers.
B129: Transition Grants
B130: The FY18 CoC NOFA allows CoCs to change a project's component type and use up to six months of funding to transition to the new project. These projects will be assessed based on the new component so the CoC needs to update the project's information in the tool. Use the following steps for a transition grant:
B131: 1. Upload the current grant to the tool through the HIC upload or ‘Add Additional Project to the List Below’ button on the ‘LIST OF PROJECTS TO BE REVIEWED’ tab. The project should be listed as a “Renewal” in column M.
B132: 2. Change the project’s component or project type in column E of the ‘LIST OF PROJECTS TO BE REVIEWED’ tab and adjust the project’s beds by population in the blue columns P-AD, do not enter any values into the dark grey cells in this area.
B133: 3. Rate the new project’s anticipated performance using one of these approaches depending on whether performance data for a similar project is available:
B134: a. If performance data for a similar project (ex. the recipient already operates PSH and the transition grant is changing to a PSH project that would be similar to current PSH projects) is available, then use that data to rate the new project on the ‘RENEW.+EXP. RATING TOOL’ tab.
B135: b. If performance data is not available, then score the project as a new project using a paper template printed using the ‘Print Blank Template’ icon on the ‘NEW PROJECTS RATING TOOL’ tab. Weight the score on a 100 point scale and add the score to the project on the ‘ALTERNATIVE RATING TOOL’ tab.
B136: 4. The project should be ranked based on how the new project will meet the CoC's funding priorities.
B138: STEP 2: REVIEW ALL PROJECTS
B140: The tool uses a two-step process for rating–a threshold requirements review and performance scoring. These steps can be performed at the same time or in phases. Because new projects do not have historical performance data upon which to base ratings, this tool provides different rating processes for renewal/expansion projects and for new projects. Before beginning rating, you may customize the threshold and rating tabs with local criteria. Then you can begin entering threshold and/or rating scores for the projects set up on the 'LIST OF PROJECTS TO BE REVIEWED' tab. Blank templates of your threshold and rating criteria can be printed so your CoC can use paper copies as part of its rating process, if desired.
B142: TAB: CUSTOMIZING RATING CRITERIA
B145: All customization selections made on this tab will be reflected on the following tabs: 'RENEW. + EXP. THRESHOLD', 'RENEW. + EXP. RATING TOOL', 'NEW PROJECTS THRESHOLD', and 'NEW PROJECTS RATING TOOL'.
B146: There are four sections on the ‘CUSTOMIZE RATING CRITERIA’ tab.
B147: The NAVIGATION section allows you to navigate directly to the other subsections in this tab. For example, selecting ‘GO’ next to Customize New Rating Tool will navigate you to the Customize New Rating Tool section of this tab.
B148: The CUSTOMIZE NEW AND RENEWAL/EXPANSION PROJECT THRESHOLD REQUIREMENTS section allows you to customize CoC-specified threshold requirements for New and Renewal projects. Any changes made here will be reflected on the 'RENEW. + EXP. THRESHOLD' and 'NEW PROJECTS THRESHOLD' tabs.
B149: The 'RENEW. + EXP. THRESHOLD' and 'NEW PROJECTS THRESHOLD' tabs have two types of threshold requirements: HUD Threshold Requirements, which are intended to mirror the requirements that HUD will use to assess each application, and CoC Threshold Requirements, which allow the CoC to define additional threshold requirements. CoCs can use this section of the 'CUSTOMIZE RATING CRITERIA' tab to customize the CoC Threshold Requirements. The HUD Threshold Requirements are populated in the tool, and cannot be customized. However, CoCs should review the HUD Threshold Requirements against the NOFA to ensure that all NOFA requirements are accounted for. If they are not, the CoC can add them as CoC Threshold Requirements for purposes of the review process.
B150: 1) Based on HUD CoC Program requirements and a scan of effective local rating tools, the tool includes a list of suggested CoC Threshold requirements to consider for all projects. For definitions of the suggested CoC Threshold Requirements, see the CoC Threshold Requirements chart in the Tool Resources tab. Note: To be consistent with the rating process suggested in the CoC Program NOFA, HUD strongly encourages CoCs to include the first five items either as Threshold Requirements or as Rating Factors.
B151: 2) You can choose whether to include CoC threshold requirements from the suggested list by deleting the X in the box to the left of the requirement.
B152: 3) You can add threshold requirements by clicking ‘Add Additional CoC Threshold Requirement’ . The tool will prompt you to enter the text of the additional threshold requirement and click OK. Repeat the process to add more requirements.
B153: The CUSTOMIZE RENEWAL RATING TOOL section allows you to customize the rating tool for renewal projects. Any changes made here will be reflected on the 'RENEW. + EXP. RATING TOOL' tab. There are four subsections here: ● Performance Measures ● Serve High Need Populations ● Project Effectiveness, and ● Other and Local Criteria. The tool provides suggested rating factors for each subsection. You can choose not to include suggested rating factors by deleting the X in the box to the left of the factor.
B154: Many of the recommended factors have a suggested Factor/Goal parameter, and all have suggested Max Point Values. You can modify these to align with local funding policies and based on availability of data. HUD encourages CoCs to develop a companion rubric or scale specifying how CoCs will award points for each rating factor. For instance, if a factor is worth 15 points, a CoC could establish a scale for prorating the points awarded based on performance ranges. You can set rating factors for each of the main project types (RRH, PSH, TH) by selecting each project type from the "Project Type to Edit" drop-down menu on the top left side of this section.
B155: ● For Length of Stay and Exits to Permanent Housing, the suggested factors are different for the different project types: RRH, PSH, and TH. The suggested maximum score for Length of Stay is 20 points and for Exit to Permanent Housing is 25 points.
B156: ● For Returns to Homeless, the factor is the same for all project types with a suggested maximum score of 15 points.
B157: ● For New or Increased Income and Earned Income, there are four factors that total to a suggested maximum score of 10 points.
B158: ● For Serve High Need Population, the factor is the same for all project types with a suggested maximum score of 20 points except for the APR data approach which totals 30 points.
B159: Based on local policies and preferences, this factor can be evaluated using one of three approaches: -Coordinated Assessment Score -Project Focuses on Chronically Homeless People -APR data on ≧ 50% of participants had a disability or were zero income or were unsheltered prior to entry
B160: ● For Project Effectiveness, there are three recommended factors which are the same for all project types with a suggested maximum score for this section of 40 points.
B161: You can also add factors.
B162: 1) Click ‘Add Renewal/Expansion Project Rating Factor’.
B163: 2) Complete the table that will appear and click OK.
B164: 3) The additional factor will be included under the Other and Local Criteria.
B165: If you add a factor that you later decide not to use, delete the X in the box to the left of the rating factor.
B166: Already finished with your local CoC rating process? Go to the ALTERNATIVE RATING TOOL and enter threshold and rating answers in bulk.
B167: The CUSTOMIZE NEW RATING TOOL section allows you to customize the rating tool for new projects. This section uses the same process as in the CUSTOMIZE RENEWAL RATING TOOL section. Any changes made here will also be made to the 'NEW PROJECTS RATING TOOL' tab. There are six subsections here: ● Experience ● Design of Housing and Supportive Services ● Timeliness ● Financial ● Project Effectiveness ● Other and Local Criteria Because these are new projects with no performance data, rating is based on the answers to narrative questions. The CoC should develop a rubric to guide scoring of new project proposals.
B168: After customizing all of the tools, the total maximum score might be different for renewal/expansion or new projects, or even for different project types within them. After projects are rated, the scores will be weighted against a 100 point scale when they are considered for ranking. Raw scores will be visible on the rating tool for each project. Weighted scores will be visible in the 'RATING RESULTS' tab.
B169: Depending on how the CoC customizes the rating tool, the CoC will likely need to develop its own local application packet to request the information necessary to score each project. The tool allows points for each rating factor to be awarded on a scale, up to the maximum point value specified. Therefore, HUD strongly encourages each CoC to develop a scoring rubric or scale to assign the points for each rating factor.
B170: Addressing the Needs of DV Survivors: The tool allows communities to customize the rating and ranking process in several ways. The needs of DV survivors are addressed most directly through the ranking process. A CoC can select DV Families or DV Individuals as a priority subpopulation on the FUNDING CEILINGS + PRIORITIES tab. Using this approach, a project that serves DV survivors that has a longer length of stay than other projects can be prioritized for funding. DV was not included as a high need population in the rating process because that criteria focused on vulnerability of individuals and not on prioritizing projects serving specific subpopulations such as DV. CoCs can add additional rating criteria to address DV if the community desires.
B173: TAB: RENEW. + EXP. THRESHOLD
B176: Each project should be reviewed to determine if it meets specified threshold requirements.
B177: 1) Use the drop-down list in the "Project Name" field to find the name of the renewal or expansion grant application you intend to review first. Once selected, basic information about the grant will be populated in the top of the threshold review tool, and you can fill in the results of the threshold review.
B178: 2) The threshold criteria shown on the form will be customized based the criteria established on the 'CUSTOMIZE RATING CRITERIA' tab. For each criterion, click the grey cell and select "Yes" or "No" from the drop-down selection. Yes or no are the only options because the project must fully meet the criteria in order to meet threshold. If the CoC has already reviewed the threshold requirements for all projects under consideration the "Yes to All" box can be checked for projects that have met all the requirements. If a CoC has granted a waiver for a particular project (e.g., a victim services provider does not participate in coordinated entry the way other projects would be expected to participate), the CoC should select "Yes" for the requirement.
B179: 3) Click "Save" to save the results and then either keep working on the same project or select another project from the dropdown and enter the threshold review results for it.
B180: 4) To edit a project already reviewed, select the project from the dropdown. Projects that have been reviewed will be listed at the bottom of the dropdown list and will have a checkmark next to the project name. Results can be edited, and then the record should be saved again by clicking "Save".
B181: After you have conducted threshold review for a project, it is moved to the bottom of the list and its completion is accounted for in the overall progress bar.
B182: CoCs will need to adopt policies to decide whether to rate projects that do not meet all HUD Threshold Requirements and all CoC Threshold Requirements. The tool is designed to allow CoCs to score projects whether they meet threshold requirements or not. On the 'RATING RESULTS' tab, the tool will flag with red highlighting projects that did not go through threshold review and any project that has not met all HUD or CoC Threshold Requirements and on the 'FUNDING ANALYSIS + RANKING' tab, they will initially be ranked in the section labeled "Projects Not Selected for Funding" and marked as Ineligible in the Ranking column.
B183: A project that does not meet all threshold requirements in the local application review process is not likely to meet threshold review in HUD's CoC application process; therefore CoCs are strongly encouraged not to rank projects that do not meet "HUD Threshold Requirements", or they should work with applicants to address deficiencies prior to submitting a formal application for CoC Program funding. A CoC can move these projects up into a funding position, based on CoC funding policies. (More instructions on this topic are included below.)
B186: TAB: RENEW. + EXP. RATING TOOL
B189: After threshold review, each of the projects can be scored. (The tool will allow you to score projects that do not meet all threshold criteria, but you do not have to score them.) Your CoC review committee can use the tool real-time during your scoring process, or scores can be determined through a separate process and entered into the tool later.
B191: 1) Use the drop-down list in the "Project Name" field to find the name of the renewal or expansion grant application you intend to score. Once selected, basic information about the grant will populate in the top of the rating tool, and you can fill in the results of the scoring. If the project has not been scored on the threshold requirements a message will appear that states 'Threshold rating not started'. If the project has not met one or more threshold requirements a message will appear that states 'Did not meet all threshold requirements'.
B192: 2) The rating factors shown on the form will be customized based on the type of project being scored and the factors established on the 'CUSTOMIZE RATING CRITERIA' tab. For each factor, enter the points earned by the project on a scale from 0 to the maximum point value specified.
B193: 3) Click "Save" to save the results. After saving, you can keep working on the same project or you can select another project to score
B194: 4) To edit a project that has already been scored, select it from the menu and edit. Click "Save" before moving to the next project.
B196: If your CoC has already rated all new and renewal projects for the funding cycle, threshold review results and rating scores can be entered in bulk in the 'ALTERNATIVE RATING TOOL' tab.
B199: TAB: NEW PROJECTS THRESHOLD
B202: The process outlined above for renewal projects should be followed to determine if each new project meets specified threshold requirements.
B205: TAB: NEW PROJECTS RATING TOOL
B208: You should follow the same process outlined above for renewal projects to determine if each new project meets specified rating factors. The rating tool will be customized according to the criteria specified for New Projects in the 'CUSTOMIZE RATING TOOL' tab.
B211: TAB: ALTERNATIVE RATING TOOL
B213: As an alternative to manual entry of a project's threshold review and rating scores, CoCs can quickly enter threshold review results and a weighted rating score for each project on the 'ALTERNATIVE RATING TOOL' tab. CoCs who have completed a review process using a local rating approach can use this tab to enter threshold and rating information so that the tool can be used to rank projects using the CoC's funding priorities.
B215: 1) Click the button called "Pull in projects to rate". 2) If desired, sort the projects by various categories using the drop-down menu in the top left corner. 3) Enter results of the HUD and CoC threshold requirements review using the drop-down menu in each cell or click the box next to 'Yes to all threshold requirements' to answer Yes for all projects. 4) Enter weighted rating scores for each project. 5) Click the 'Save' button in the top right corner to save the information entered into the tab.
B218: TAB: RATING RESULTS
B221: When you are finished rating all projects, move to the 'RATING RESULTS' tab and click "Populate Rating Results" at the top of the page. At any point, if you add and rate other projects, you must click this button again to repopulate the tab. This tab allows you to see the new, renewal, and expansion projects on one form with their threshold review results and rating scores. If a project did not meet all threshold requirements, the row will be highlighted red.
B223: Review the projects for any errors. You must correct errors on the tabs on which you originally entered the information (e.g., 'LIST OF PROJECTS TO BE REVIEWED' tab, the 'THRESHOLD’ and "RATING TOOL' tabs or the 'ALTERNATIVE RATING TOOL' tab). If you change any information in the source tabs, you must click 'Populate Rating Results' to refresh the information.
B224: STEP 3. RANK PROJECTS
B226: After completing individual project rating, the CoC must establish a rank order list of projects to include in its annual CoC Application to HUD. CoCs can use these tabs to set system-wide funding priorities and then to produce a ranked list that reflects both the rating results and funding priorities. The tool produces tallies of funding within Bonus, DV Bonus, Tier 1, and Tier 2 (Remaining ARD + Bonus + DV) funding levels, so CoCs can assess the reach of their annual CoC investments. The funding analysis table displays the units funded by project type and population along with indicating whether the caps or ceilings for project types and populations have been met or exceeded. Blue shading in the Funding Analysis + Ranking Table indicates the population and project types that will be served by the units in the Tier 1 and Tier 2 lists. The tool also offers CoCs flexibility to adjust rank order to implement local funding priorities or CoC Program NOFA provisions that are not addressed within the tool.
B229: TAB: FUNDING CEILINGS + PRIORITIES
B232: Separate from the rating process, the tool allows the CoC to specify system-wide funding priorities for its annual funding process. Many CoCs have not yet made the distinction between rating results and ranking priorities, so this step may be new for many stakeholders.
B234: This tab has three sections: ● General Funding Information ● FY2018 HUD CoC Program NOFA Opportunities ● Funding Ceilings and Priorities by Project Type and Population.
B236: In the 'General Funding Information' section, CoCs should enter their Annual Renewal Demand amount, the amount of their potential bonus funding, the amount of their potential DV bonus funding, and the Tier 1 funding line (the percentage specified for Tier 1 within the annual CoC NOFA). You can find this information in the Estimated ARD report HUD released as part of the CoC Program NOFA process.
B238: In the 'FY2018 HUD CoC Program NOFA Opportunities' section, CoCs should select the project types they intend to consider for bonus and DV bonus funding. Because NOFA opportunities might be updated, CoCs should ensure that the project types and populations they have selected are eligible in the current CoC NOFA. These selections will be used to prioritize new or expansion projects for bonus and DV bonus funding during the ranking process.
B240: In the 'Funding Ceilings and Priorities by Project Type and Population' section, CoCs can specify their system needs and the relative priority of different parts of their homeless system for purposes of the CoC Program application.
B242: For each project type/population combination, the CoC can specify the maximum number of beds (renewal and new combined), maximum level of funding, and relative priority.
B243: ● The easiest parameter to intuitively understand is the relative priority of a particular project type or population to target to receive CoC funding. Remember, these should be priorities for use of CoC funds; the populations might be a low priority because the system already has enough capacity of that project type or for that group, or it might be a lower priority because other funds are available to support expansion of the project type.
B245: ● When a CoC conducts system planning, part of the exercise often includes determining the level of inventory needed for the CoC's system -- ideally, the CoC will set inventory targets by project type for each major population group (e.g., families, individuals, youth). If a CoC has a particular unmet need, it might also set targets for a specific group (e.g., victims of domestic violence, chronically homeless, veterans, parenting youth). The tool allows the CoC to enter its desired inventory (or level of CoC Program $ investment) for each major project type and population group. These bed/$ caps are not required, but if they are entered, the tool will rank projects up to that level and then will ignore projects that will yield excess inventory. The theory is that no matter how high a project scores, the CoC should not recommend it for funding if it doesn't need the inventory. The tool will only be able to calculate targets and ranking for CoC Program-funded projects, so CoCs should set the targets specifically for CoC Program funding. The target for beds should represent the number of beds the CoC intends to fund with CoC Program funds (new and renewal projects combined) and the target for $ should represent the amount of CoC Program funding the CoC intends to invest in that project type. The major population groups are available by default. The CoC can set targets for other listed groups by checking the boxes next to the names of the population group. If new projects being considered for DV bonus or bonus funding are not rated as highly as renewal projects for a project type and population or group, the new projects may be initially ranked in the Projects Not Selected for Funding chart. CoCs should carefully review ranking of projects to consider whether other DV bonus or bonus eligible projects would meet a higher need in the Continuum.
B247: ● Any or all of the values can be left blank if the CoC has not adopted these types of targets or priorities. If you leave blank Maximum Beds or $, then projects within that category will not be capped and projects will be ranked solely based on their rating scores up to the Tier 1 and Tier 2 levels. If you leave the table blank, the tool will rank projects by the rating score.
B248: The ranking list will be generated in the following order:
B249: 1) New and renewal HMIS and SSO-coordinated entry projects will be listed first in Tier 1 because they are required elements of a CoC’s system. HUD is not requiring CoCs to list these projects in this position in the final ranking; rather CoCs should set local policies on their relative priority and move them accordingly after the initial ranking is generated.
B250: 2) New or expansion projects that meet HUD and CoC DV bonus project criteria will be placed by the tool in order of system priority and performance. DV bonus projects are indicated by brown formatting. HUD is not requiring CoCs to accept this placement as the final ranking for DV bonus; rather CoCs should consider the appropriate placement of the projects within Tier 1 and Tier 2.
B251: 3) New or expansion projects that meet HUD and CoC bonus project criteria will be placed by the tool in order of system priority and performance. Bonus projects are indicated by pink formatting. HUD is not requiring CoCs to accept this placement as the final ranking for bonus projects; rather CoCs should consider the appropriate placement of the projects within Tier 1 and Tier 2.
B252: 4) Projects in the high priority categories, listed in order of their rating score, up to the maximum number of beds or funding level specified for each project type/population.
B253: 5) Projects in the medium priority categories, listed in order of their rating score, up to the maximum number of beds or funding level specified for each project type/population.
B254: 6) Projects in the low priority categories, listed in order of their rating score, up to the maximum number of beds or funding level specified for each project type/population.
B255: 7) Projects with unspecified priority, listed in order of their rating score.
B256: 8) Other SSO grants
B258: Projects may exceed the portion of ARD available in Tier 1 and 'straddle' the Tier 1/Tier 2 line. CoCs should carefully review this and the NOFA treatment of scoring and awards of straddle projects. Funding may be adjusted or projects moved to reduce or eliminate the straddle. Projects may also exceed the Tier 2 line which means the projects exceed the funding available to the CoC. Projects that fully exceed the CoCs available funding are listed in the "Projects Exceeding ARD" chart.
B259: Projects that exceed the beds or $ specified on the 'FUNDING CEILINGS + PRIORITIES' tab will be listed in the “Projects Not Selected for Funding” section of the ‘FUNDING ANALYSIS + RANKING’ tab because they represent inventory above the needs of the system. The CoC NOFA Committee might consider soliciting additional projects to fill project type and population targets that are not met for this CoC Program NOFA.
B260: Details on the logic used in generating the ranked list can be found in the 'TOOL RESOURCES' tab.
B262: You will have the chance to adjust the relative ranking for these projects, based on your locally adopted policies, once you begin working on the 'FUNDING ANALYSIS + RANKING' tab.
B264: After you enter information for each of the three parameters, click the "Generate Ranking" button. Please note this process may take several minutes given the processing involved to implement these complex calculations.
B267: TAB: FUNDING ANALYSIS AND RANKING
B270: This tab shows the initial ranking, based on the rating results recorded in earlier sections of the tool and the funding parameters set by the NOFA and the CoC. The worksheet has six sections:
B271: ● Summary tallies of amounts allocated within each category
B272: ● A Funding Analysis Table that summarizes the units and $ allocated to each major project type and population group
B273: ● A list of projects ranked within Tier 1
B274: ● A list of projects ranked within Tier 2 (ARD less the amount allocated in Tier 1 + Bonus + DV project funding)
B275: ● A list of projects exceeding ARD
B276: ● A list of projects not selected for funding
B278: The tool populates the lists of projects based on the order described under the description of the 'FUNDING CEILINGS + PRIORITIES' tab. The section labeled, "Projects Exceeding ARD" includes projects that meet the CoC's priorities for ranking but exceed the available funding. The section labeled, "Projects not Selected for Funding" includes:
B279: ● projects deemed ineligible because they did not meet all threshold requirements
B280: ● projects that were not ranked based on the bed and $ caps entered in the 'FUNDING CEILINGS + PRIORITIES' tab
B281: ● projects that were eligible for renewal but were reallocated
B283: Use the arrows to adjust rank order. The tool provides CoCs flexibility to adjust ranking order to implement local funding priorities or CoC Program NOFA provisions that are not addressed within the tool. Click the up/down arrows to the left of individual projects to move it up or down within the ranked list. If you move a project to a new funding tier or out of the "Projects Not Selected for Funding" section, the summaries and Funding Analysis table at the top will automatically adjust. If you want to reset to the initial ranking values or change funding priorities and generate the initial ranking again, you can return to the 'FUNDING CEILINGS AND PRIORITIES' tab and click "Generate Ranking". Clicking "Generate Ranking" will erase the changes you made, so you might consider saving a copy of your adjusted rankings before resetting.
B284: The "Funding Analysis Table" under the summary tallies shows the number of beds and the funding allocated by project type and population and how these amounts compare to the bed and $ caps established on the 'FUNDING CEILINGS + PRIORITIES' tab. HUD does not guarantee that CoCs will receive their requested Bonus, DV Bonus, Tier 1 or Tier 2 funding based on the use of this tool. To view more rows on the screen, hide the "Funding Analysis Table" by clicking "Show/Hide Funding Analysis Table" at the top of the page.
B286: As projects are ranked, the summary tallies at the top of the screen will show the amount of DV Bonus funding, bonus funding, Tier 1 funding, and Tier 2 (Remaining ARD+Bonus+DV Bonus funding) funding that has been committed in the tool so far. The totals are based on the CoC Funding Recommended amounts for each project, which are initially populated with the amounts entered for "CoC Funding Requested" on the 'LIST OF PROJECTS TO BE REVIEWED' tab.
B288: It is possible that an initial ranking might leave uncaptured funds in one or both of the Tiers, such as when the CoC does not have eligible projects that meet its defined bonus or DV bonus priorities. More likely, a CoC will have projects it is interested in funding that fall outside of Tier 1 and Tier 2, projects in this situation can be found in the Projects Exceeding ARD section of the table. CoCs should also review the Projects Not Selected for Funding chart to verify that the projects exceeding the CoC's funding ceiling and priorities should be reallocated to allow projects serving other priorities to be funded.
B289: CoCs can change the amount of the CoC Funding Request by entering a new "CoC Funding Recommendation" amount in the green column. When determining how much to recommend for CoC awards, the CoC should review CoC grant amounts expended in prior years to determine whether there are any grantees that underspend their awards. When you revise recommended funding amounts, the summary and widget totals adjust accordingly. To adjust the allocation of projects in the Tier 1 and Tier 2 lists after changing funding levels for projects in the green column, click the "Adjust Projects in Tiers after Funding Changes" button in the top right corner of the tab (you may need to move the screen to the right to be able to see the button). The Tool will pull a new project into either Tier 1 or Tier 2 if there is any funding available in the Tier potentially creating a 'straddle' project.
B291: Once CoCs have finalized the ranking of projects in Tier 1 and Tier 2, they should review the funding level in each Tier in the summary tallies to ensure that the totals are not above or below available funding levels. The suggested order to reconcile funding amounts would be DV bonus projects, bonus projects, Tier 1 with consideration of any straddle amount, and then Tier 2. Amounts made available through reallocation are not separately accounted for in the tallies, CoCs should ensure that reallocated funds are expended by checking the Tier 1 and Tier 2 tallies.
B293: The table can be printed to communicate recommended ranking results to applicants and CoC stakeholders, and CoCs can use them to prepare annual CoC Program application materials for HUD.

Sheet TOOL RESOURCES (hidden)
B1: Navigation Pane | G1: Version 3.2
B4: GENERAL
B6: RATING
B8: RANKING
B11: CoC THRESHOLD REQUIREMENTS DEFINITIONS
B15: The Tool contains 11 suggested CoC threshold requirements. The CoC Threshold Requirements Definition Chart provides a general definition of each requirement. CoCs can update these definitions to be consistent with local requirements including increasing threshold requirements as appropriate. The CoC will need to establish local policies or standards to determine what is an acceptable response to the requirement.
B17: CoC Threshold Requirement | F17: Definition
B18: Coordinated Entry Participation | F18: The project participates or intends to participate in coordinated entry in compliance with the CoC's Coordinated Entry Policies and Procedures and HUD's Coordinated Entry Notice.
B19: Housing First and/or Low Barrier Implementation | F19: The project is, or intends to be, designed and implemented using Housing First principles including: no preconditions or barriers to entry except as required by funding sources, and provision of necessary supports to maintain housing and prevent a return to homelessness.
B20: Documented, secured minimum match | F20: Applicant has match commitments that satisfy CoC Program Rule requirements for source and amount.
B21: Project has reasonable costs per permanent housing exit as defined locally | F21: Cost per permanent housing exit can be determined by dividing total project costs by the number of permanent housing exits. These costs can be averaged across all projects within a project type to determine the average cost per permanent housing exit for the community for that project type. The CoC can use this information to define a reasonable cost locally.
B22: Project is financially feasible | F22: Project has funding commitments equal to or exceeding project budget.
B23: Applicant is active CoC Participant | F23: Applicant participation in CoC Board and committee meetings meets CoC requirements for a member in good standing.
B24: Application is complete and data are consistent | F24: All required information is completed and all required attachments are provided. Data provided in response to different questions match.
B25: Data quality at or above 90% | F25: Data elements required by HUD and the CoC have a 90% or higher completion rate.
B26: Bed/unit utilization rate at or above 90% | F26: Beds or units in the project are occupied 90% or more of the operating year.
B27: Acceptable organizational audit/financial review | F27: Applicant's audit or financial review does not contain findings or other indications of financial or accounting problems.
B28: Documented organizational financial stability | F28: Applicant's financial statements for previous fiscal year demonstrates financial stability sufficient to support operation of the project during the next operating year.
B31: SOURCE OF DATA FOR RATING CRITERIA
B35: CoCs can evaluate project compliance with CoC and HUD requirements and project performance through review of data, project documents and project operations. The suggested data sources for the rating criteria included in the tool are listed below as a resource for CoCs when they are customizing the rating templates in the "Customize Rating Criteria" tab. If available, a CoC can use a local report to evaluate performance.
B36: PERFORMANCE MEASURES
B37: Project Type | C37: Rating Factor | I37: Data Source
B38: Length of Stay
B39: RRH | C39: On average, participants spend XX days from project entry to housing move-in | I39: CAPER Q22c - The CAPER can be run for CoC Program funded projects.
B40: TH | C40: On average, participants stay in project XX days | I40: APR Q22b
B41: Exit to Permanent Housing
B42: RRH | C42: Minimum percent move to permanent housing | I42: APR Q23a & Q23b
B43: PSH | C43: Minimum percent remain in or move to permanent housing | I43: Calculation: 1) Subtract leavers to all destinations (APR Q23a and Q23b) from number of participants (APR Q7) to determine number of stayers; 2) Add leavers to permanent housing destinations (APR Q23a & Q23b); 3) Add stayers (Step 1) and leavers to permanent housing destinations (Step 2) and divide by number of participants (APR Q7)
B44: TH | C44: Minimum percent move to permanent housing | I44: APR Q23a & Q23b
B45: Returns to Homelessness
B46: RRH, PSH, TH | C46: Maximum percent of participants return to homelessness within 12 months of exit to permanent housing | I46: Local data if available
B47: New or Increased Income or Earned Income
B48: RRH, PSH, TH | C48: Minimum percent of participants with new or increased earned income for project stayers | I48: APR Q19a1 (This question only collects information for participants who have been in the project for 365+ days. A local report with more complete data can be substituted.)
B49: RRH, PSH, TH | C49: Minimum percent of participants with new or increased non-employment income for project stayers | I49: APR Q19a1 (This question only collects information for participants who have been in the project for 365+ days. A local report with more complete data can be substituted.)
B50: RRH, PSH, TH | C50: Minimum percent of participants with new or increased earned income for project leavers | I50: APR Q19a2
B51: RRH, PSH, TH | C51: Minimum percent of participants with new or increased non-employment income for project leavers | I51: APR Q19a2
B53: SERVE PRIORITY POPULATIONS
B54: Project Type | C54: Rating Factor | I54: Data Source
B55: Coordinated Assessment Score
B56: TH | C56: XX% of participants meet CoC's TH targeting criteria | I56: Local data if available
B57: RRH | C57: Assessment score for XX% of participants indicate RRH or more intensive intervention | I57: Local data if available
B58: PSH | C58: Assessment score for participants indicates PSH with XX% at highest end of PSH | I58: Local data if available
B59: Project Focuses on Chronically Homeless People
B60: TH | C60: XX% of participants are chronically homeless | I60: Calculate percent using data in APR Q26a
B61: RRH | C61: XX% of participants are chronically homeless | I61: Calculate percent using data in APR Q26a
B62: PSH | C62: XX% of participants are chronically homeless | I62: Calculate percent using data in APR Q26a
B63: APR data on ≥ 50% disability /zero income/unsheltered
B64: TH | C64: Minimum percent of participants with zero income at entry | I64: APR Q16
B65: TH | C65: Minimum percent of participants with more than one disability type | I65: APR Q13a2
B66: TH | C66: Minimum percent of participants entering project from place not meant for human habitation | I66: APR Q15
B67: RRH | C67: Minimum percent of participants with zero income at entry | I67: APR Q16
B68: RRH | C68: Minimum percent of participants with more than one disability type | I68: APR Q13a2
B69: RRH | C69: Minimum percent of participants entering project from place not meant for human habitation | I69: APR Q15
B70: PSH | C70: Minimum percent of participants with zero income at entry | I70: APR Q16
B71: PSH | C71: Minimum percent of participants with more than one disability type | I71: APR Q13a2
B72: PSH | C72: Minimum percent of participants entering project from place not meant for human habitation | I72: APR Q15
B74: PROJECT EFFECTIVENESS
B75: Project Type | C75: Rating Factor | I75: Data Source
B76: RRH, PSH, TH | C76: Project has reasonable costs per permanent housing exit | I76: Divide total project costs (collected from each project using a standardized tool that accounts for housing, services and administrative costs) by number of permanent housing exits (APR Q23a + Q23b)
B77: RRH, PSH, TH | C77: Coordinated Entry Participation - Minimum percent of entries to project from CE referral (or alternative system for DV projects) | I77: Local data if available
B78: RRH, PSH, TH | C78: Housing First and/or Low Barrier Implementation | I78: CoC assessment of fidelity to Housing First from CoC monitoring or review of project policies and procedures
B80: OTHER AND LOCAL CRITERIA
B81: Project Type | C81: Rating Factor | I81: Data Source
B82: Project is Operating in Conformance with CoC Standards
B83: RRH, PSH, TH | C83: CoC monitoring score | I83: CoC monitoring process results
B84: RRH, PSH, TH | C84: Applicant narrative that CoC scores | I84: CoC rating process
B86: FUNDING ANALYSIS TAB LOGIC
B89: DETERMINING PROJECT PRIORITY
B92: The programming for the 'FUNDING ANALYSIS + RANKING' tab applies the following logic to the project type and population targets indicated in the 'FUNDING CEILINGS + PRIORITIES' tab to determine the rank order of the projects based on the priorities indicated.
B93: Ratio of Beds within a Project | H93: How Priority is Determined
B94: If a Project has any beds dedicated to a subpopulation…
B95: 1. Does the project have DV beds? | H95: · The project is ranked based on the relevant DV priority (e.g., DV Fam, DV Ind)
B96: 2. Does the project have at least 50% of its total beds dedicated to CH Fam, CH Ind, Vet Fam, Vet Ind OR Parenting Youth? | H96: · The project is ranked based on that subpopulation’s priority.
H97: · If multiple subpopulations meet the 50+% threshold, ranking is based on the highest ranked of the subpopulations.
B98: 3. Even though no one subpopulation meets the 50% threshold, is the sum of dedicated beds 50% or greater? | H98: · Both subpopulation and population priorities are ignored for ranking purposes. The project is ranked with other projects that meet unspecified priorities
B99: 4. Is the sum of dedicated beds less than 50%? | H99: · Subpopulation priorities are ignored for ranking purposes. The project is ranked solely based on the overarching population priorities
B100: If a Project doesn’t have any beds dedicated to a subpopulation…
B101: Does the project target > 50% of its beds to Families OR Individuals? | H101: The project is ranked based on the Priority and Funding Ceilings of the Majority Population
B102: Does the project evenly target two populations (50%/50%)? | H102: Ranking is based on the Priority and Funding Ceilings of the Highest Ranked Population (Fam, Ind)
B103: If a Project is Eligible for Bonus or DV Funding…
B104: 1. Is there bonus (or reallocated) funding remaining? | H104: · The project is highlighted in pink
B105: 2. Is there DV bonus funding remaining? | H105: · The project is highlighted in brown
B109: ALLOCATING BEDS
B112: The programming for the 'FUNDING ANALYSIS + RANKING' tab uses the following logic to allocate beds and $ to the funding targets indicated on the 'FUNDING CEILINGS + PRIORITIES' tab.
B113: Ratio of Beds within a Project | C113: How Subpopulation Bed/$ Counts are Allocated | G113: How “All Families” and “All Individuals” Bed/$ Counts are Allocated | I113: How funding caps are allocated | L113: Notes
B114: If a Project does not have any beds dedicated to a subpopulation….
C115: N/A | G115: All beds are counted for their assigned population group | I115: All $ are counted for their assigned population group, pro-rated by beds
B116: If a Project has any beds dedicated to a subpopulation…
B117: 1. Does the project have DV beds? | C117: Beds are allocated to the DV need (e.g., DV Fam, DV Ind) | G117: Beds are not allocated to All Fam need or All Ind need (since they would not be able to meet the needs of non-DV Fam or non-DV Ind) | I117: $ are allocated to the DV need (e.g., DV Fam, DV Ind), prorated by beds | L117: If DV is selected, Tool assigns all of the Population Beds (e.g., Fam or Ind) to DV
B118: 2. Does the project have at least 50% of its beds dedicated to CH Fam, CH Ind, Vet Fam, Vet Ind OR Parenting Youth? | C118: Subpopulation beds are counted within their specific subpopulation category. | G118: After subtracting the sum of any dedicated beds, the remaining Fam or Ind beds are counted within their specific Population category | I118: All subpopulation $ is prorated based on the beds, and then counted within their specific subpopulation category. | L118: The tool does not attempt to reconcile overlapping criteria, therefore a project that is 100% dedicated to CH and Vets will be counted as meeting both the Vet and CH criteria. Your CoC may need to manually adjust ranking if the projects with combined eligibility criteria do not adequately meet identified system needs.
B120: 3. Even if no single subpopulation meets the 50% threshold, is the sum of dedicated beds 50% or greater than the total project beds? | C120: E.g., if a 100 bed project for Individuals has 25 beds for CH and 25 beds for Vets, 25 beds would count toward the CH cap and 25 beds could count toward the Vet cap. | G120: E.g., if a 100 bed project for Individuals has 25 beds for CH and 25 beds for Vets, 50 beds would count toward All Ind cap. | I120: E.g., if a 100 bed project for Individuals has 25 beds for CH and 25 beds for Vets, 25% of the total would be counted toward CH, 25% for Vets, and 50% for All Ind.
B121: 4. Is the sum of dedicated beds less than 50%?

Sheet RAW HIC DATA (hidden)
A1: Paste in This Cell ↓ | E1: After pasting your CoC’s raw HIC data below, click on this button to generate the list of projects to be reviewed. If you prefer not to use the raw HIC data, skip this tab and proceed directly to the LIST OF PROJECTS TO BE REVIEWED tab to enter project data directly.
A2: Row # | B2: Year | C2: Proj. Type | D2: Organization Name | E2: Project Name | F2: Organization Name | G2: Inventory Type | H2: Bed Type | I2: Target Pop. | J2: Beds HH w/ Children | K2: Units HH w/ Children | L2: Beds HH w/o Children | M2: Beds HH w/ only Children | N2: Veteran Beds HH w/ Children | O2: Youth Beds HH w/ Children | P2: CH Beds HH w/ Children | Q2: Veteran Beds HH w/o Children | R2: Youth Beds HH w/o Children | S2: CH Beds HH w/o Children | T2: CH Beds HH w/ only Children | U2: Victim Service Provider | V2: Additional Federal Funding? | W2: Additional Federal Funding: HUD-VASH | X2: Additional Federal Funding: SSVF | Y2: Additional Federal Funding: GPD | Z2: Additional Federal Funding: GPD-BH | AA2: Additional Federal Funding: GPD-LD | AB2: Additional Federal Funding: GPD-HH | AC2: Additional Federal Funding: GPD-CT | AD2: Additional Federal Funding: GPD-SITH | AE2: Additional Federal Funding: GPD-TP | AF2: Additional Federal Funding: HCHV | AG2: Additional Federal Funding: HCHV-CRS | AH2: Additional Federal Funding: HCHV-SH | AI2: Additional Federal Funding: BCP | AJ2: Additional Federal Funding: TLP | AK2: Additional Federal Funding: MGH | AL2: Additional Federal Funding: HOPWA | AM2: Additional Federal Funding: HOPWA-HMV | AN2: Additional Federal Funding: HOPWA-PH | AO2: Additional Federal Funding: HOPWA-STSF | AP2: Additional Federal Funding: HOPWA-TH | AQ2: Additional Federal Funding: PIH | AR2: Additional Federal Funding: Other | AS2: Housing Type | AT2: McKinney- Vento | AU2: McKinney- Vento: Esg | AV2: McKinney- Vento: EsgEs | AW2: McKinney- Vento: EsgRrh | AX2: McKinney- Vento: Coc | AY2: McKinney- Vento: CocSh | AZ2: McKinney- Vento: CocTh | BA2: McKinney- Vento: CocPsh | BB2: McKinney- Vento: CocRrh | BC2: McKinney- Vento: CocSro | BD2: McKinney- Vento: SpC | BE2: McKinney- Vento: S8 | BF2: McKinney- Vento: SHP | BG2: McKinney- Vento: YHDP | BH2: Year-Round Beds | BI2: HMIS Beds HH w/ Children | BJ2: HMIS Beds HH w/o Children | BK2: HMIS Beds HH w/ only Children | BL2: % of HMIS Beds HH with Children | BM2: % of HMIS Beds HH without Children | BN2: % of HMIS Beds HH w/ only Children | BO2: Total Seasonal Beds | BP2: Seasonal Beds Available in HMIS | BQ2: Availability Start Date | BR2: Availability End Date | BS2: Overflow Beds | BT2: HMIS Overflow Beds | BU2: PIT Count | BV2: Total Beds | BW2: Utilization Rate | BX2: Last Update On | BY2: Last Update On
A3: 1 | B3: 2019 | C3: PSH | D3: Better Way of Miami | E3: Better Way Apartment | G3: C | I3: NA | J3: 0 | K3: 0 | L3: 55 | M3: 0 | N3: 0 | O3: 0 | P3: 0 | Q3: 3 | R3: 0 | S3: 55 | T3: 0 | U3: No | V3: No | W3: No | X3: No | Y3: No | AF3: No | AI3: No | AJ3: No | AK3: No | AL3: No | AQ3: No | AR3: No | AS3: Site-based – single site | AT3: Yes | AU3: No | AV3: No | AW3: No | AX3: Yes | BA3: Yes | BD3: No | BE3: No | BF3: No | BG3: No | BH3: 55 | BI3: 0 | BJ3: 55 | BK3: 0 | BM3: 1 | BU3: 55 | BV3: 55 | BW3: 1 | BX3: 43584.81549
A4: 2 | B4: 2019 | C4: PSH | D4: Better Way of Miami | E4: Better Way West Apartment | G4: C | I4: NA | J4: 0 | K4: 0 | L4: 36 | M4: 0 | N4: 0 | O4: 0 | Q4: 2 | R4: 0 | S4: 36 | U4: No | V4: No | W4: No | X4: No | Y4: No | AF4: No | AI4: No | AJ4: No | AK4: No | AL4: No | AQ4: No | AR4: No | AS4: Site-based – single site | AT4: Yes | AU4: No | AV4: No | AW4: No | AX4: Yes | BA4: Yes | BD4: No | BE4: No | BF4: No | BG4: No | BH4: 36 | BI4: 0 | BJ4: 36 | BK4: 0 | BM4: 1 | BU4: 35 | BV4: 36 | BW4: 0.97 | BX4: 43530.5839
A5: 3 | B5: 2019 | C5: PSH | D5: Better Way of Miami | E5: Partners PSH | G5: C | I5: NA | J5: 50 | K5: 14 | L5: 24 | M5: 0 | N5: 0 | O5: 0 | P5: 50 | Q5: 0 | R5: 0 | S5: 24 | U5: No | V5: No | W5: No | X5: No | Y5: No | AF5: No | AI5: No | AJ5: No | AK5: No | AL5: No | AQ5: No | AR5: No | AS5: Site-based – single site | AT5: Yes | AU5: No | AV5: No | AW5: No | AX5: Yes | BA5: Yes | BD5: No | BE5: No | BF5: No | BG5: No | BH5: 74 | BI5: 50 | BJ5: 24 | BK5: 0 | BL5: 1 | BM5: 1 | BU5: 74 | BV5: 74 | BW5: 1 | BX5: 43530.58551
A6: 4 | B6: 2019 | C6: PSH | D6: Camillus House | E6: Archbishop Carroll Homes | G6: C | I6: NA | J6: 0 | K6: 0 | L6: 65 | M6: 0 | N6: 0 | O6: 0 | P6: 0 | Q6: 0 | R6: 0 | S6: 65 | T6: 0 | U6: No | V6: No | W6: No | X6: No | Y6: No | AF6: No | AI6: No | AJ6: No | AK6: No | AL6: No | AQ6: No | AR6: No | AS6: Tenant-based – scattered site | AT6: Yes | AU6: No | AV6: No | AW6: No | AX6: Yes | AY6: No | AZ6: No | BA6: Yes | BB6: No | BC6: No | BD6: No | BE6: No | BF6: No | BG6: No | BH6: 65 | BI6: 0 | BJ6: 65 | BK6: 0 | BM6: 1 | BU6: 63 | BV6: 65 | BW6: 0.97 | BX6: 43552.54023
A7: 5 | B7: 2019 | C7: ES | D7: Camillus House | E7: Baptist Emergency Shelter | G7: C | H7: Facility-based beds | I7: NA | J7: 0 | K7: 0 | L7: 5 | M7: 0 | N7: 0 | O7: 0 | Q7: 0 | R7: 0 | U7: No | V7: No | W7: No | X7: No | Y7: No | AF7: No | AI7: No | AJ7: No | AK7: No | AL7: No | AQ7: No | AR7: No | AS7: Site-based – single site | AT7: No | AU7: No | AV7: No | AW7: No | AX7: No | AY7: No | AZ7: No | BA7: No | BB7: No | BC7: No | BD7: No | BE7: No | BF7: No | BG7: No | BH7: 5 | BI7: 0 | BJ7: 5 | BK7: 0 | BM7: 1 | BO7: 0 | BP7: 0 | BS7: 4 | BT7: 4 | BU7: 9 | BV7: 9 | BW7: 1 | BX7: 43552.54089
A8: 6 | B8: 2019 | C8: ES | D8: Camillus House | E8: Beckham Hall Shelter | G8: C | H8: Facility-based beds | I8: NA | J8: 0 | K8: 0 | L8: 64 | M8: 0 | N8: 0 | O8: 0 | Q8: 0 | R8: 0 | U8: No | V8: No | W8: No | X8: No | Y8: No | AF8: No | AI8: No | AJ8: No | AK8: No | AL8: No | AQ8: No | AR8: No | AS8: Site-based – single site | AT8: Yes | AU8: Yes | AV8: Yes | AW8: No | AX8: No | AY8: No | AZ8: No | BA8: No | BB8: No | BC8: No | BD8: No | BE8: No | BF8: No | BG8: No | BH8: 64 | BI8: 0 | BJ8: 64 | BK8: 0 | BM8: 1 | BO8: 0 | BP8: 0 | BS8: 0 | BT8: 0 | BU8: 55 | BV8: 64 | BW8: 0.86 | BX8: 43552.54185
A9: 7 | B9: 2019 | C9: PSH | D9: Camillus House | E9: Bethesda Place (Building D) | G9: C | I9: NA | J9: 0 | K9: 0 | L9: 36 | M9: 0 | N9: 0 | O9: 0 | P9: 0 | Q9: 0 | R9: 0 | S9: 36 | T9: 0 | U9: No | V9: No | W9: No | X9: No | Y9: No | AF9: No | AI9: No | AJ9: No | AK9: No | AL9: No | AQ9: No | AR9: No | AS9: Site-based – single site | AT9: Yes | AU9: No | AV9: No | AW9: No | AX9: Yes | BA9: Yes | BD9: No | BE9: No | BF9: No | BG9: No | BH9: 36 | BI9: 0 | BJ9: 36 | BK9: 0 | BM9: 1 | BU9: 33 | BV9: 36 | BW9: 0.92 | BX9: 43552.54214
A10: 8 | B10: 2019 | C10: PSH | D10: Camillus House | E10: Br. Keily Permanent Supportive Housing | G10: C | I10: NA | J10: 0 | K10: 0 | L10: 27 | M10: 0 | N10: 0 | O10: 0 | P10: 0 | Q10: 0 | R10: 0 | S10: 27 | T10: 0 | U10: No | V10: No | W10: No | X10: No | Y10: No | AF10: No | AI10: No | AJ10: No | AK10: No | AL10: No | AQ10: No | AR10: No | AS10: Site-based – clustered / multiple sites | AT10: Yes | AU10: No | AV10: No | AW10: No | AX10: Yes | BA10: Yes | BD10: No | BE10: No | BF10: No | BG10: No | BH10: 27 | BI10: 0 | BJ10: 27 | BK10: 0 | BM10: 1 | BU10: 27 | BV10: 27 | BW10: 1 | BX10: 43552.54226
A11: 9 | B11: 2019 | C11: PSH | D11: Camillus House | E11: Brother Mathias Place | G11: C | I11: NA | J11: 35 | K11: 10 | L11: 0 | M11: 0 | N11: 0 | O11: 0 | P11: 35 | Q11: 0 | R11: 0 | S11: 0 | T11: 0 | U11: No | V11: No | W11: No | X11: No | Y11: No | AF11: No | AI11: No | AJ11: No | AK11: No | AL11: No | AQ11: No | AR11: No | AS11: Site-based – single site | AT11: Yes | AU11: No | AV11: No | AW11: No | AX11: Yes | BA11: Yes | BD11: No | BE11: No | BF11: No | BG11: No | BH11: 35 | BI11: 35 | BJ11: 0 | BK11: 0 | BL11: 1 | BU11: 32 | BV11: 35 | BW11: 0.91 | BX11: 43530.59859
A12: 10 | B12: 2019 | C12: TH | D12: Camillus House | E12: Camillus House - ISPA After-Care Completion | G12: C | I12: NA | J12: 0 | K12: 0 | L12: 10 | M12: 0 | N12: 0 | O12: 0 | Q12: 0 | R12: 0 | U12: No | V12: No | W12: No | X12: No | Y12: No | AF12: No | AI12: No | AJ12: No | AK12: No | AL12: No | AQ12: No | AR12: No | AS12: Site-based – single site | AT12: No | AU12: No | AV12: No | AW12: No | AX12: No | AY12: No | AZ12: No | BA12: No | BB12: No | BC12: No | BD12: No | BE12: No | BF12: No | BG12: No | BH12: 10 | BI12: 0 | BJ12: 10 | BK12: 0 | BM12: 1 | BU12: 6 | BV12: 10 | BW12: 0.6 | BX12: 43552.54306
A13: 11 | B13: 2019 | C13: TH | D13: Camillus House | E13: Camillus House - ISPA Re-Entry Transitional Housing Program (SFBHN) | G13: C | I13: NA | J13: 0 | K13: 0 | L13: 15 | M13: 0 | N13: 0 | O13: 0 | Q13: 0 | R13: 0 | U13: No | V13: No | W13: No | X13: No | Y13: No | AF13: No | AI13: No | AJ13: No | AK13: No | AL13: No | AQ13: No | AR13: No | AS13: Site-based – single site | AT13: No | AU13: No | AV13: No | AW13: No | AX13: No | AY13: No | AZ13: No | BA13: No | BB13: No | BC13: No | BD13: No | BE13: No | BF13: No | BG13: No | BH13: 15 | BI13: 0 | BJ13: 15 | BK13: 0 | BM13: 1 | BU13: 10 | BV13: 15 | BW13: 0.67 | BX13: 43552.54397
A14: 12 | B14: 2019 | C14: TH | D14: Camillus House | E14: Camillus House - ISPA Substance Abuse Transitional Housing Program (SFBHN) | G14: C | I14: NA | J14: 0 | K14: 0 | L14: 26 | M14: 0 | N14: 0 | O14: 0 | Q14: 0 | R14: 0 | U14: No | V14: No | W14: No | X14: No | Y14: No | AF14: No | AI14: No | AJ14: No | AK14: No | AL14: No | AQ14: No | AR14: No | AS14: Site-based – single site | AT14: No | AU14: No | AV14: No | AW14: No | AX14: No | AY14: No | AZ14: No | BA14: No | BB14: No | BC14: No | BD14: No | BE14: No | BF14: No | BG14: No | BH14: 26 | BI14: 0 | BJ14: 26 | BK14: 0 | BM14: 1 | BU14: 15 | BV14: 26 | BW14: 0.58 | BX14: 43530.72832
A15: 13 | B15: 2019 | C15: ES | D15: Camillus House | E15: Camillus House City of Coral Gables Emergency Shelter Program | G15: C | H15: Facility-based beds | I15: NA | J15: 0 | K15: 0 | L15: 3 | M15: 0 | N15: 0 | O15: 0 | Q15: 0 | R15: 0 | U15: No | V15: No | W15: No | X15: No | Y15: No | AF15: No | AI15: No | AJ15: No | AK15: No | AL15: No | AQ15: No | AR15: No | AS15: Site-based – single site | AT15: No | AU15: No | AV15: No | AW15: No | AX15: No | AY15: No | AZ15: No | BA15: No | BB15: No | BC15: No | BD15: No | BE15: No | BF15: No | BG15: No | BH15: 3 | BI15: 0 | BJ15: 3 | BK15: 0 | BM15: 1 | BO15: 0 | BP15: 0 | BS15: 0 | BT15: 0 | BU15: 3 | BV15: 3 | BW15: 1 | BX15: 43530.68475
A16: 14 | B16: 2019 | C16: ES | D16: Camillus House | E16: Camillus House City of Miami Emergency Shelter Program | G16: C | H16: Facility-based beds | I16: NA | J16: 0 | K16: 0 | L16: 65 | M16: 0 | N16: 0 | O16: 0 | Q16: 0 | R16: 0 | U16: No | V16: No | W16: No | X16: No | Y16: No | AF16: No | AI16: No | AJ16: No | AK16: No | AL16: No | AQ16: No | AR16: No | AS16: Site-based – single site | AT16: No | AU16: No | AV16: No | AW16: No | AX16: No | AY16: No | AZ16: No | BA16: No | BB16: No | BC16: No | BD16: No | BE16: No | BF16: No | BG16: No | BH16: 65 | BI16: 0 | BJ16: 65 | BK16: 0 | BM16: 1 | BO16: 0 | BP16: 0 | BS16: 0 | BT16: 0 | BU16: 64 | BV16: 65 | BW16: 0.98 | BX16: 43552.5451
A17: 15 | B17: 2019 | C17: ES | D17: Camillus House | E17: Camillus House City of Miami Pottinger | G17: C | H17: Facility-based beds | I17: NA | J17: 0 | K17: 0 | L17: 10 | M17: 0 | N17: 0 | O17: 0 | Q17: 0 | R17: 0 | U17: No | V17: No | W17: No | X17: No | Y17: No | AF17: No | AI17: No | AJ17: No | AK17: No | AL17: No | AQ17: No | AR17: No | AS17: Site-based – single site | AT17: No | AU17: No | AX17: No | BD17: No | BE17: No | BF17: No | BH17: 10 | BI17: 0 | BJ17: 10 | BK17: 0 | BM17: 1 | BO17: 0 | BP17: 0 | BS17: 0 | BT17: 0 | BU17: 1 | BV17: 10 | BW17: 0.1 | BX17: 43552.54634
A18: 16 | B18: 2019 | C18: ES | D18: Camillus House | E18: Camillus House Emergency HT | G18: C | H18: Facility-based beds | I18: NA | J18: 0 | K18: 0 | L18: 69 | M18: 0 | N18: 0 | O18: 0 | Q18: 0 | R18: 0 | U18: No | V18: No | W18: No | X18: No | Y18: No | AF18: No | AI18: No | AJ18: No | AK18: No | AL18: No | AQ18: No | AR18: No | AS18: Site-based – single site | AT18: No | AU18: No | AX18: No | BD18: No | BE18: No | BF18: No | BH18: 69 | BI18: 0 | BJ18: 69 | BK18: 0 | BM18: 1 | BO18: 0 | BP18: 0 | BS18: 4 | BT18: 4 | BU18: 73 | BV18: 73 | BW18: 1 | BX18: 43552.54694
A19: 17 | B19: 2019 | C19: TH | D19: Camillus House | E19: Camillus House Emmaus Place | G19: C | I19: NA | J19: 0 | K19: 0 | L19: 7 | M19: 0 | N19: 0 | O19: 0 | Q19: 0 | R19: 0 | U19: No | V19: No | W19: No | X19: No | Y19: No | AF19: No | AI19: No | AJ19: No | AK19: No | AL19: No | AQ19: No | AR19: No | AS19: Site-based – single site | AT19: No | AU19: No | AX19: No | BD19: No | BE19: No | BF19: No | BH19: 7 | BI19: 0 | BJ19: 7 | BK19: 0 | BM19: 1 | BU19: 5 | BV19: 7 | BW19: 0.71 | BX19: 43530.78421
A20: 18 | B20: 2019 | C20: PSH | D20: Camillus House | E20: Camillus House ES PH | G20: U | I20: NA | J20: 0 | K20: 0 | L20: 6 | M20: 0 | N20: 0 | O20: 0 | P20: 0 | Q20: 0 | R20: 0 | S20: 6 | T20: 0 | U20: No | V20: No | W20: No | X20: No | Y20: No | AF20: No | AI20: No | AJ20: No | AK20: No | AL20: No | AQ20: No | AR20: No | AS20: Site-based – single site | AT20: No | AU20: No | AX20: No | BD20: No | BE20: No | BF20: No | BH20: 6 | BV20: 6 | BX20: 43574.48407
A21: 19 | B21: 2019 | C21: ES | D21: Camillus House | E21: Camillus House FPL Emergency Shelter Program (Miami Beach) | G21: C | H21: Facility-based beds | I21: NA | J21: 0 | K21: 0 | L21: 12 | M21: 0 | N21: 0 | O21: 0 | Q21: 0 | R21: 0 | U21: No | V21: No | W21: No | X21: No | Y21: No | AF21: No | AI21: No | AJ21: No | AK21: No | AL21: No | AQ21: No | AR21: No | AS21: Site-based – single site | AT21: No | AU21: No | AV21: No | AW21: No | AX21: No | AY21: No | AZ21: No | BA21: No | BB21: No | BC21: No | BD21: No | BE21: No | BF21: No | BG21: No | BH21: 12 | BI21: 0 | BJ21: 12 | BK21: 0 | BM21: 1 | BO21: 0 | BP21: 0 | BS21: 0 | BT21: 0 | BU21: 12 | BV21: 12 | BW21: 1 | BX21: 43530.68256
A22: 20 | B22: 2019 | C22: ES | D22: Camillus House | E22: Camillus House Health Department Emergency | G22: C | H22: Facility-based beds | I22: NA | J22: 0 | K22: 0 | L22: 2 | M22: 0 | N22: 0 | O22: 0 | Q22: 0 | R22: 0 | U22: No | V22: No | W22: No | X22: No | Y22: No | AF22: No | AI22: No | AJ22: No | AK22: No | AL22: No | AQ22: No | AR22: No | AS22: Site-based – single site | AT22: No | AU22: No | AX22: No | BD22: No | BE22: No | BF22: No | BH22: 2 | BI22: 0 | BJ22: 2 | BK22: 0 | BM22: 1 | BO22: 0 | BP22: 0 | BS22: 0 | BT22: 0 | BU22: 0 | BV22: 2 | BW22: 0 | BX22: 43552.54966
A23: 21 | B23: 2019 | C23: TH | D23: Camillus House | E23: Camillus House Re-Entry HT | G23: C | I23: NA | J23: 0 | K23: 0 | L23: 12 | M23: 0 | N23: 0 | O23: 0 | Q23: 0 | R23: 0 | U23: No | V23: No | W23: No | X23: No | Y23: No | AF23: No | AI23: No | AJ23: No | AK23: No | AL23: No | AQ23: No | AR23: No | AS23: Site-based – single site | AT23: No | AU23: No | AX23: No | BD23: No | BE23: No | BF23: No | BH23: 12 | BI23: 0 | BJ23: 12 | BK23: 0 | BM23: 1 | BU23: 11 | BV23: 12 | BW23: 0.92 | BX23: 43552.54984
A24: 22 | B24: 2019 | C24: ES | D24: Camillus House | E24: Camillus House SFBHN Emergency Shelter | G24: C | H24: Facility-based beds | I24: NA | J24: 0 | K24: 0 | L24: 5 | M24: 0 | N24: 0 | O24: 0 | Q24: 0 | R24: 0 | U24: No | V24: No | W24: No | X24: No | Y24: No | AF24: No | AI24: No | AJ24: No | AK24: No | AL24: No | AQ24: No | AR24: No | AS24: Site-based – single site | AT24: No | AU24: No | AX24: No | BD24: No | BE24: No | BF24: No | BH24: 5 | BI24: 0 | BJ24: 5 | BK24: 0 | BM24: 1 | BO24: 0 | BP24: 0 | BS24: 0 | BT24: 0 | BU24: 3 | BV24: 5 | BW24: 0.6 | BX24: 43552.54999
A25: 23 | B25: 2019 | C25: TH | D25: Camillus House | E25: Camillus House Special Care Ambassadors | G25: C | I25: NA | J25: 0 | K25: 0 | L25: 5 | M25: 0 | N25: 0 | O25: 0 | Q25: 0 | R25: 0 | U25: No | V25: No | W25: No | X25: No | Y25: No | AF25: No | AI25: No | AJ25: No | AK25: No | AL25: No | AQ25: No | AR25: No | AS25: Site-based – single site | AT25: No | AU25: No | AX25: No | BD25: No | BE25: No | BF25: No | BH25: 5 | BI25: 0 | BJ25: 5 | BK25: 0 | BM25: 1 | BU25: 5 | BV25: 5 | BW25: 1 | BX25: 43530.7372
A26: 24 | B26: 2019 | C26: PSH | D26: Camillus House | E26: Camillus House St. Rose Permanent Housing | G26: C | I26: NA | J26: 0 | K26: 0 | L26: 19 | M26: 0 | N26: 0 | O26: 0 | P26: 0 | Q26: 0 | R26: 0 | S26: 0 | T26: 0 | U26: No | V26: No | W26: No | X26: No | Y26: No | AF26: No | AI26: No | AJ26: No | AK26: No | AL26: No | AQ26: No | AR26: No | AS26: Site-based – single site | AT26: No | AU26: No | AX26: No | BD26: No | BE26: No | BF26: No | BH26: 19 | BI26: 0 | BJ26: 19 | BK26: 0 | BM26: 1 | BU26: 18 | BV26: 19 | BW26: 0.95 | BX26: 43531.56383
A27: 25 | B27: 2019 | C27: ES | D27: Camillus House | E27: Camillus House VA Court Emergency | G27: C | H27: Facility-based beds | I27: NA | J27: 0 | K27: 0 | L27: 5 | M27: 0 | N27: 0 | O27: 0 | Q27: 5 | R27: 0 | U27: No | V27: No | W27: No | X27: No | Y27: No | AF27: No | AI27: No | AJ27: No | AK27: No | AL27: No | AQ27: No | AR27: No | AS27: Site-based – single site | AT27: No | AU27: No | AX27: No | BD27: No | BE27: No | BF27: No | BH27: 5 | BI27: 0 | BJ27: 5 | BK27: 0 | BM27: 1 | BO27: 0 | BP27: 0 | BS27: 0 | BT27: 0 | BU27: 0 | BV27: 5 | BW27: 0 | BX27: 43531.59505
A28: 26 | B28: 2019 | C28: TH | D28: Camillus House | E28: Camillus House VA GPD SITH | G28: C | I28: NA | J28: 0 | K28: 0 | L28: 32 | M28: 0 | N28: 0 | O28: 0 | Q28: 32 | R28: 0 | U28: No | V28: Yes | W28: No | X28: No | Y28: Yes | AD28: Yes | AF28: No | AI28: No | AJ28: No | AK28: No | AL28: No | AQ28: No | AR28: No | AS28: Site-based – single site | AT28: No | AU28: No | AX28: No | BD28: No | BE28: No | BF28: No | BH28: 32 | BI28: 0 | BJ28: 32 | BK28: 0 | BM28: 1 | BU28: 28 | BV28: 32 | BW28: 0.88 | BX28: 43531.53802
A29: 27 | B29: 2019 | C29: TH | D29: Camillus House | E29: Camillus House Veterans Treatment Court | G29: C | I29: NA | J29: 0 | K29: 0 | L29: 5 | M29: 0 | N29: 0 | O29: 0 | Q29: 5 | R29: 0 | U29: No | V29: No | W29: No | X29: No | Y29: No | AF29: No | AI29: No | AJ29: No | AK29: No | AL29: No | AQ29: No | AR29: No | AS29: Site-based – single site | AT29: No | AU29: No | AX29: No | BD29: No | BE29: No | BF29: No | BH29: 5 | BI29: 0 | BJ29: 5 | BK29: 0 | BM29: 1 | BU29: 0 | BV29: 5 | BW29: 0 | BX29: 43579.6238
A30: 28 | B30: 2019 | C30: TH | D30: Camillus House | E30: Camilus House Phoenix TH | G30: C | I30: NA | J30: 0 | K30: 0 | L30: 16 | M30: 0 | N30: 0 | O30: 0 | Q30: 0 | R30: 0 | U30: No | V30: No | W30: No | X30: No | Y30: No | AF30: No | AI30: No | AJ30: No | AK30: No | AL30: No | AQ30: No | AR30: No | AS30: Site-based – single site | AT30: No | AU30: No | AX30: No | BD30: No | BE30: No | BF30: No | BH30: 16 | BI30: 0 | BJ30: 16 | BK30: 0 | BM30: 1 | BU30: 9 | BV30: 16 | BW30: 0.56 | BX30: 43531.53383
A31: 29 | B31: 2019 | C31: PSH | D31: Camillus House | E31: Christian Hospital | G31: C | I31: NA | J31: 0 | K31: 0 | L31: 74 | M31: 0 | N31: 0 | O31: 0 | Q31: 0 | R31: 0 | S31: 74 | T31: 0 | U31: No | V31: No | W31: No | X31: No | Y31: No | AF31: No | AI31: No | AJ31: No | AK31: No | AL31: No | AQ31: No | AR31: No | AS31: Site-based – single site | AT31: Yes | AU31: No | AV31: No | AW31: No | AX31: Yes | AY31: No | AZ31: No | BA31: Yes | BB31: No | BC31: No | BD31: No | BE31: No | BF31: No | BG31: No | BH31: 74 | BI31: 0 | BJ31: 74 | BK31: 0 | BM31: 1 | BU31: 70 | BV31: 74 | BW31: 0.95 | BX31: 43530.6099
A32: 30 | B32: 2019 | C32: ES | D32: Camillus House | E32: Emergency Shelter Youth | G32: C | H32: Facility-based beds | I32: NA | J32: 0 | K32: 0 | L32: 12 | M32: 0 | N32: 0 | O32: 0 | Q32: 0 | R32: 12 | U32: No | V32: No | W32: No | X32: No | Y32: No | AF32: No | AI32: No | AJ32: No | AK32: No | AL32: No | AQ32: No | AR32: No | AS32: Site-based – single site | AT32: No | AU32: No | AV32: No | AW32: No | AX32: No | AY32: No | AZ32: No | BA32: No | BB32: No | BC32: No | BD32: No | BE32: No | BF32: No | BG32: No | BH32: 12 | BI32: 0 | BJ32: 12 | BK32: 0 | BM32: 1 | BO32: 0 | BP32: 0 | BS32: 0 | BT32: 0 | BU32: 10 | BV32: 12 | BW32: 0.83 | BX32: 43530.61156
A33: 31 | B33: 2019 | C33: PSH | D33: Camillus House | E33: Good Sheperd Villas | G33: C | I33: NA | J33: 0 | K33: 0 | L33: 27 | M33: 0 | N33: 0 | O33: 0 | P33: 0 | Q33: 0 | R33: 0 | S33: 27 | T33: 0 | U33: No | V33: No | W33: No | X33: No | Y33: No | AF33: No | AI33: No | AJ33: No | AK33: No | AL33: No | AQ33: No | AR33: No | AS33: Site-based – single site | AT33: Yes | AU33: No | AV33: No | AW33: No | AX33: Yes | AY33: No | AZ33: No | BA33: Yes | BB33: No | BC33: No | BD33: No | BE33: No | BF33: No | BG33: No | BH33: 27 | BI33: 0 | BJ33: 27 | BK33: 0 | BM33: 1 | BU33: 6 | BV33: 27 | BW33: 0.22 | BX33: 43530.61612
A34: 32 | B34: 2019 | C34: SH | D34: Camillus House | E34: GPD St. Michael Residences | G34: C | I34: NA | L34: 28 | M34: 0 | Q34: 28 | R34: 0 | U34: No | V34: Yes | W34: No | X34: No | Y34: Yes | Z34: No | AA34: Yes | AF34: No | AI34: No | AJ34: No | AK34: No | AL34: No | AQ34: No | AR34: No | AS34: Site-based – single site | AT34: No | AU34: No | AV34: No | AW34: No | AX34: No | AY34: No | AZ34: No | BA34: No | BB34: No | BC34: No | BD34: No | BE34: No | BF34: No | BG34: No | BH34: 28 | BJ34: 28 | BK34: 0 | BM34: 1 | BU34: 23 | BV34: 28 | BW34: 0.82 | BX34: 43530.72979
A35: 33 | B35: 2019 | C35: PSH | D35: Camillus House | E35: Labre Place | G35: C | I35: NA | J35: 0 | K35: 0 | L35: 50 | M35: 0 | N35: 0 | O35: 0 | P35: 0 | Q35: 0 | R35: 0 | S35: 5 | T35: 0 | U35: No | V35: No | W35: No | X35: No | Y35: No | AF35: No | AI35: No | AJ35: No | AK35: No | AL35: No | AQ35: No | AR35: No | AS35: Site-based – single site | AT35: No | AU35: No | AV35: No | AW35: No | AX35: No | AY35: No | AZ35: No | BA35: No | BB35: No | BC35: No | BD35: No | BE35: No | BF35: No | BG35: No | BH35: 50 | BI35: 0 | BJ35: 50 | BK35: 0 | BM35: 1 | BU35: 47 | BV35: 50 | BW35: 0.94 | BX35: 43535.53277
A36: 34 | B36: 2019 | C36: PSH | D36: Camillus House | E36: Mother Seton Permanent Supportive Housing | G36: C | I36: NA | J36: 162 | K36: 39 | L36: 0 | M36: 0 | N36: 0 | O36: 0 | P36: 162 | Q36: 0 | R36: 0 | S36: 0 | T36: 0 | U36: No | V36: No | W36: No | X36: No | Y36: No | AF36: No | AI36: No | AJ36: No | AK36: No | AL36: No | AQ36: No | AR36: No | AS36: Site-based – clustered / multiple sites | AT36: Yes | AU36: No | AV36: No | AW36: No | AX36: Yes | AY36: No | AZ36: No | BA36: Yes | BB36: No | BC36: No | BD36: No | BE36: No | BF36: No | BG36: No | BH36: 162 | BI36: 162 | BJ36: 0 | BK36: 0 | BL36: 1 | BU36: 137 | BV36: 162 | BW36: 0.85 | BX36: 43530.7401
A37: 35 | B37: 2019 | C37: PSH | D37: Camillus House | E37: Project Dade Cares PSH | G37: C | I37: NA | J37: 0 | K37: 0 | L37: 27 | M37: 0 | N37: 0 | O37: 0 | P37: 0 | Q37: 0 | R37: 0 | S37: 27 | U37: No | V37: No | W37: No | X37: No | Y37: No | AF37: No | AI37: No | AJ37: No | AK37: No | AL37: No | AQ37: No | AR37: No | AS37: Tenant-based – scattered site | AT37: Yes | AU37: No | AV37: No | AW37: No | AX37: Yes | AY37: No | AZ37: No | BA37: Yes | BB37: No | BC37: No | BD37: No | BE37: No | BF37: No | BG37: No | BH37: 27 | BI37: 0 | BJ37: 27 | BK37: 0 | BM37: 1 | BU37: 26 | BV37: 27 | BW37: 0.96 | BX37: 43530.7189
A38: 36 | B38: 2019 | C38: PSH | D38: Camillus House | E38: Shepherd's Court Hud | G38: C | I38: NA | J38: 0 | K38: 0 | L38: 60 | M38: 0 | N38: 0 | O38: 0 | P38: 0 | Q38: 0 | R38: 0 | S38: 60 | T38: 0 | U38: No | V38: No | W38: No | X38: No | Y38: No | AF38: No | AI38: No | AJ38: No | AK38: No | AL38: No | AQ38: No | AR38: No | AS38: Site-based – single site | AT38: Yes | AU38: No | AX38: Yes | BA38: Yes | BD38: No | BE38: No | BF38: No | BH38: 60 | BI38: 0 | BJ38: 60 | BK38: 0 | BM38: 1 | BU38: 59 | BV38: 60 | BW38: 0.98 | BX38: 43530.69566
A39: 37 | B39: 2019 | C39: PSH | D39: Camillus House | E39: Shepherd's Court Non Hud | G39: C | I39: NA | J39: 0 | K39: 0 | L39: 20 | M39: 0 | N39: 0 | O39: 0 | Q39: 0 | R39: 0 | S39: 20 | U39: No | V39: No | W39: No | X39: No | Y39: No | AF39: No | AI39: No | AJ39: No | AK39: No | AL39: No | AQ39: No | AR39: No | AS39: Site-based – single site | AT39: No | AU39: No | AV39: No | AW39: No | AX39: No | AY39: No | AZ39: No | BA39: No | BB39: No | BC39: No | BD39: No | BE39: No | BF39: No | BG39: No | BH39: 20 | BI39: 0 | BJ39: 20 | BK39: 0 | BM39: 1 | BU39: 20 | BV39: 20 | BW39: 1 | BX39: 43530.69281
A40: 38 | B40: 2019 | C40: PSH | D40: Camillus House | E40: Somerville Apartments Veterans Village PH | G40: C | I40: NA | J40: 0 | K40: 0 | L40: 35 | M40: 0 | N40: 0 | O40: 0 | Q40: 35 | R40: 0 | S40: 0 | U40: No | V40: Yes | W40: No | X40: No | Y40: No | AF40: No | AI40: No | AJ40: No | AK40: No | AL40: No | AQ40: Yes | AR40: No | AS40: Site-based – single site | AT40: No | AU40: No | AV40: No | AW40: No | AX40: No | AY40: No | AZ40: No | BA40: No | BB40: No | BC40: No | BD40: No | BE40: No | BF40: No | BG40: No | BH40: 35 | BI40: 0 | BJ40: 35 | BK40: 0 | BM40: 1 | BU40: 34 | BV40: 35 | BW40: 0.97 | BX40: 43567.51053
A41: 39 | B41: 2019 | C41: PSH | D41: Carrfour Supportive Housing | E41: Bonita Cove | G41: C | I41: NA | J41: 4 | K41: 2 | L41: 19 | M41: 0 | N41: 0 | O41: 0 | P41: 4 | Q41: 19 | R41: 0 | S41: 19 | T41: 0 | U41: No | V41: No | W41: No | X41: No | Y41: No | AF41: No | AI41: No | AJ41: No | AK41: No | AL41: No | AQ41: No | AR41: No | AS41: Site-based – single site | AT41: Yes | AU41: No | AV41: No | AW41: No | AX41: Yes | AY41: No | AZ41: No | BA41: Yes | BB41: No | BC41: No | BD41: No | BE41: No | BF41: No | BG41: No | BH41: 23 | BI41: 4 | BJ41: 19 | BK41: 0 | BL41: 1 | BM41: 1 | BU41: 23 | BV41: 23 | BW41: 1 | BX41: 43532.72275
A42: 40 | B42: 2019 | C42: PSH | D42: Carrfour Supportive Housing | E42: Bonita Cove (Non-SHP) | G42: C | I42: NA | J42: 2 | K42: 1 | L42: 8 | M42: 0 | N42: 0 | O42: 0 | P42: 0 | Q42: 0 | R42: 0 | S42: 0 | T42: 0 | U42: No | V42: No | W42: No | X42: No | Y42: No | AF42: No | AI42: No | AJ42: No | AK42: No | AL42: No | AQ42: No | AR42: No | AS42: Site-based – single site | AT42: No | AU42: No | AV42: No | AW42: No | AX42: No | AY42: No | AZ42: No | BA42: No | BB42: No | BC42: No | BD42: No | BE42: No | BF42: No | BG42: No | BH42: 10 | BI42: 2 | BJ42: 8 | BK42: 0 | BL42: 1 | BM42: 1 | BU42: 10 | BV42: 10 | BW42: 1 | BX42: 43567.51488
A43: 41 | B43: 2019 | C43: PSH | D43: Carrfour Supportive Housing | E43: Casa Matias | G43: C | I43: NA | J43: 58 | K43: 18 | L43: 9 | M43: 0 | N43: 0 | O43: 0 | P43: 58 | Q43: 0 | R43: 0 | S43: 9 | T43: 0 | U43: No | V43: No | W43: No | X43: No | Y43: No | AF43: No | AI43: No | AJ43: No | AK43: No | AL43: No | AQ43: No | AR43: No | AS43: Site-based – single site | AT43: Yes | AU43: No | AV43: No | AW43: No | AX43: Yes | AY43: No | AZ43: No | BA43: Yes | BB43: No | BC43: No | BD43: No | BE43: No | BF43: No | BG43: No | BH43: 67 | BI43: 58 | BJ43: 9 | BK43: 0 | BL43: 1 | BM43: 1 | BU43: 66 | BV43: 67 | BW43: 0.99 | BX43: 43532.73059
A44: 42 | B44: 2019 | C44: PSH | D44: Carrfour Supportive Housing | E44: Casa Matias (Non-SHP) | G44: C | I44: NA | J44: 16 | K44: 6 | L44: 11 | M44: 0 | N44: 0 | O44: 0 | P44: 0 | Q44: 0 | R44: 0 | S44: 0 | T44: 0 | U44: No | V44: No | W44: No | X44: No | Y44: No | AF44: No | AI44: No | AJ44: No | AK44: No | AL44: No | AQ44: No | AR44: No | AS44: Site-based – single site | AT44: No | AU44: No | AV44: No | AW44: No | AX44: No | AY44: No | AZ44: No | BA44: No | BB44: No | BC44: No | BD44: No | BE44: No | BF44: No | BG44: No | BH44: 27 | BI44: 16 | BJ44: 11 | BK44: 0 | BL44: 1 | BM44: 1 | BU44: 27 | BV44: 27 | BW44: 1 | BX44: 43532.73427
A45: 43 | B45: 2019 | C45: PSH | D45: Carrfour Supportive Housing | E45: Coalition Lift PSH | G45: C | I45: NA | J45: 0 | K45: 0 | L45: 34 | M45: 0 | N45: 0 | O45: 0 | Q45: 0 | R45: 0 | S45: 34 | T45: 0 | U45: No | V45: No | W45: No | X45: No | Y45: No | AF45: No | AI45: No | AJ45: No | AK45: No | AL45: No | AQ45: No | AR45: No | AS45: Site-based – clustered / multiple sites | AT45: Yes | AU45: No | AV45: No | AW45: No | AX45: Yes | AY45: No | AZ45: No | BA45: Yes | BB45: No | BC45: No | BD45: No | BE45: No | BF45: No | BG45: No | BH45: 34 | BI45: 0 | BJ45: 34 | BK45: 0 | BM45: 1 | BU45: 34 | BV45: 34 | BW45: 1 | BX45: 43532.73771
A46: 44 | B46: 2019 | C46: PSH | D46: Carrfour Supportive Housing | E46: Del Prado Townhomes | G46: C | I46: NA | J46: 136 | K46: 32 | L46: 0 | M46: 0 | N46: 0 | O46: 0 | P46: 136 | Q46: 0 | R46: 0 | S46: 0 | T46: 0 | U46: No | V46: No | W46: No | X46: No | Y46: No | AF46: No | AI46: No | AJ46: No | AK46: No | AL46: No | AQ46: No | AR46: No | AS46: Site-based – single site | AT46: Yes | AU46: No | AV46: No | AW46: No | AX46: Yes | AY46: No | AZ46: No | BA46: Yes | BB46: No | BC46: No | BD46: No | BE46: No | BF46: No | BG46: No | BH46: 136 | BI46: 136 | BJ46: 0 | BK46: 0 | BL46: 1 | BU46: 115 | BV46: 136 | BW46: 0.85 | BX46: 43532.74034
A47: 45 | B47: 2019 | C47: PSH | D47: Carrfour Supportive Housing | E47: Dr. Barbara Carey Shuler Manor | G47: C | I47: NA | J47: 50 | K47: 16 | L47: 29 | M47: 0 | N47: 0 | O47: 0 | P47: 0 | Q47: 20 | R47: 0 | S47: 0 | T47: 0 | U47: No | V47: No | W47: No | X47: No | Y47: No | AF47: No | AI47: No | AJ47: No | AK47: No | AL47: No | AQ47: No | AR47: No | AS47: Site-based – single site | AT47: No | AU47: No | AV47: No | AW47: No | AX47: No | AY47: No | AZ47: No | BA47: No | BB47: No | BC47: No | BD47: No | BE47: No | BF47: No | BG47: No | BH47: 79 | BI47: 50 | BJ47: 29 | BK47: 0 | BL47: 1 | BM47: 1 | BU47: 79 | BV47: 79 | BW47: 1 | BX47: 43532.74848
A48: 46 | B48: 2019 | C48: TH | D48: Carrfour Supportive Housing | E48: GPD Harding Villiage | G48: C | I48: NA | J48: 0 | K48: 0 | L48: 20 | M48: 0 | N48: 0 | O48: 0 | Q48: 20 | R48: 0 | U48: No | V48: Yes | W48: No | X48: No | Y48: Yes | AD48: Yes | AF48: No | AI48: No | AJ48: No | AK48: No | AL48: No | AQ48: No | AR48: No | AS48: Site-based – single site | AT48: No | AU48: No | AV48: No | AW48: No | AX48: No | AY48: No | AZ48: No | BA48: No | BB48: No | BC48: No | BD48: No | BE48: No | BF48: No | BG48: No | BH48: 20 | BI48: 0 | BJ48: 20 | BK48: 0 | BM48: 1 | BU48: 18 | BV48: 20 | BW48: 0.9 | BX48: 43546.57765
A49: 47 | B49: 2019 | C49: PSH | D49: Carrfour Supportive Housing | E49: Harding Village I/II | G49: C | I49: NA | J49: 0 | K49: 0 | L49: 48 | M49: 0 | N49: 0 | O49: 0 | P49: 0 | Q49: 20 | R49: 0 | S49: 48 | T49: 0 | U49: No | V49: No | W49: No | X49: No | Y49: No | AF49: No | AI49: No | AJ49: No | AK49: No | AL49: No | AQ49: No | AR49: No | AS49: Site-based – single site | AT49: Yes | AU49: No | AV49: No | AW49: No | AX49: Yes | AY49: No | AZ49: No | BA49: Yes | BB49: No | BC49: No | BD49: No | BE49: No | BF49: No | BG49: No | BH49: 48 | BI49: 0 | BJ49: 48 | BK49: 0 | BM49: 1 | BU49: 48 | BV49: 48 | BW49: 1 | BX49: 43532.75413
A50: 48 | B50: 2019 | C50: PSH | D50: Carrfour Supportive Housing | E50: Homestead Air Force Base-Verde Gardens | G50: C | I50: NA | J50: 440 | K50: 110 | L50: 0 | M50: 0 | N50: 0 | O50: 0 | P50: 440 | Q50: 0 | R50: 0 | S50: 0 | T50: 0 | U50: No | V50: No | W50: No | X50: No | Y50: No | AF50: No | AI50: No | AJ50: No | AK50: No | AL50: No | AQ50: No | AR50: No | AS50: Site-based – clustered / multiple sites | AT50: Yes | AU50: No | AV50: No | AW50: No | AX50: Yes | AY50: No | AZ50: No | BA50: Yes | BB50: No | BC50: No | BD50: No | BE50: No | BF50: No | BG50: No | BH50: 440 | BI50: 440 | BJ50: 0 | BK50: 0 | BL50: 1 | BU50: 396 | BV50: 440 | BW50: 0.9 | BX50: 43532.75609
A51: 49 | B51: 2019 | C51: PSH | D51: Carrfour Supportive Housing | E51: Homestead Air Force Base-Verde Gardens (Non-SHP) | G51: C | I51: NA | J51: 140 | K51: 35 | L51: 0 | M51: 0 | N51: 0 | O51: 0 | P51: 0 | Q51: 0 | R51: 0 | S51: 0 | T51: 0 | U51: No | V51: No | W51: No | X51: No | Y51: No | AF51: No | AI51: No | AJ51: No | AK51: No | AL51: No | AQ51: No | AR51: No | AS51: Site-based – clustered / multiple sites | AT51: No | AU51: No | AV51: No | AW51: No | AX51: No | AY51: No | AZ51: No | BA51: No | BB51: No | BC51: No | BD51: No | BE51: No | BF51: No | BG51: No | BH51: 140 | BI51: 140 | BJ51: 0 | BK51: 0 | BL51: 1 | BU51: 141 | BV51: 140 | BW51: 1.01 | BX51: 43532.75858
A52: 50 | B52: 2019 | C52: PSH | D52: Carrfour Supportive Housing | E52: Housing Assistance Program | G52: C | I52: NA | J52: 0 | K52: 0 | L52: 24 | M52: 0 | N52: 0 | O52: 0 | P52: 0 | Q52: 0 | R52: 0 | S52: 24 | T52: 0 | U52: No | V52: No | W52: No | X52: No | Y52: No | AF52: No | AI52: No | AJ52: No | AK52: No | AL52: No | AQ52: No | AR52: No | AS52: Tenant-based – scattered site | AT52: Yes | AU52: No | AV52: No | AW52: No | AX52: Yes | AY52: No | AZ52: No | BA52: Yes | BB52: No | BC52: No | BD52: No | BE52: No | BF52: No | BG52: No | BH52: 24 | BI52: 0 | BJ52: 24 | BK52: 0 | BM52: 1 | BU52: 14 | BV52: 24 | BW52: 0.58 | BX52: 43535.53341
A53: 51 | B53: 2019 | C53: PSH | D53: Carrfour Supportive Housing | E53: Little Haiti Gateway | G53: C | I53: NA | J53: 0 | K53: 0 | L53: 70 | M53: 0 | N53: 0 | O53: 0 | P53: 0 | Q53: 0 | R53: 0 | S53: 70 | T53: 0 | U53: No | V53: No | W53: No | X53: No | Y53: No | AF53: No | AI53: No | AJ53: No | AK53: No | AL53: No | AQ53: No | AR53: No | AS53: Site-based – single site | AT53: Yes | AU53: No | AV53: No | AW53: No | AX53: Yes | AY53: No | AZ53: No | BA53: Yes | BB53: No | BC53: No | BD53: No | BE53: No | BF53: No | BG53: No | BH53: 70 | BI53: 0 | BJ53: 70 | BK53: 0 | BM53: 1 | BU53: 64 | BV53: 70 | BW53: 0.91 | BX53: 43535.53611
A54: 52 | B54: 2019 | C54: PSH | D54: Carrfour Supportive Housing | E54: Little Riverbend | G54: C | I54: NA | J54: 0 | K54: 0 | L54: 46 | M54: 0 | N54: 0 | O54: 0 | P54: 0 | Q54: 0 | R54: 0 | S54: 46 | T54: 0 | U54: No | V54: No | W54: No | X54: No | Y54: No | AF54: No | AI54: No | AJ54: No | AK54: No | AL54: No | AQ54: No | AR54: No | AS54: Site-based – single site | AT54: Yes | AU54: No | AV54: No | AW54: No | AX54: Yes | AY54: No | AZ54: No | BA54: Yes | BB54: No | BC54: No | BD54: No | BE54: No | BF54: No | BG54: No | BH54: 46 | BI54: 0 | BJ54: 46 | BK54: 0 | BM54: 1 | BU54: 42 | BV54: 46 | BW54: 0.91 | BX54: 43535.54484
A55: 53 | B55: 2019 | C55: PSH | D55: Carrfour Supportive Housing | E55: Little Riverbend 20 | G55: C | I55: NA | J55: 0 | K55: 0 | L55: 20 | M55: 0 | N55: 0 | O55: 0 | P55: 0 | Q55: 0 | R55: 0 | S55: 20 | T55: 0 | U55: No | V55: No | W55: No | X55: No | Y55: No | AF55: No | AI55: No | AJ55: No | AK55: No | AL55: No | AQ55: No | AR55: No | AS55: Site-based – single site | AT55: Yes | AU55: No | AV55: No | AW55: No | AX55: Yes | AY55: No | AZ55: No | BA55: Yes | BB55: No | BC55: No | BD55: No | BE55: No | BF55: No | BG55: No | BH55: 20 | BI55: 0 | BJ55: 20 | BK55: 0 | BM55: 1 | BU55: 18 | BV55: 20 | BW55: 0.9 | BX55: 43535.53898
A56: 54 | B56: 2019 | C56: PSH | D56: Carrfour Supportive Housing | E56: Rivermont Apartments | G56: C | I56: NA | J56: 0 | K56: 0 | L56: 36 | M56: 0 | N56: 0 | O56: 0 | Q56: 0 | R56: 0 | S56: 0 | T56: 0 | U56: No | V56: No | W56: No | X56: No | Y56: No | AF56: No | AI56: No | AJ56: No | AK56: No | AL56: No | AQ56: No | AR56: No | AS56: Site-based – single site | AT56: No | AU56: No | AV56: No | AW56: No | AX56: No | AY56: No | AZ56: No | BA56: No | BB56: No | BC56: No | BD56: No | BE56: No | BF56: No | BG56: No | BH56: 36 | BI56: 0 | BJ56: 36 | BK56: 0 | BM56: 1 | BU56: 36 | BV56: 36 | BW56: 1 | BX56: 43535.54818
A57: 55 | B57: 2019 | C57: PSH | D57: Carrfour Supportive Housing | E57: Rivermont Apartments SHP | G57: C | I57: NA | J57: 0 | K57: 0 | L57: 40 | M57: 0 | N57: 0 | O57: 0 | P57: 0 | Q57: 0 | R57: 0 | S57: 0 | T57: 0 | U57: No | V57: No | W57: No | X57: No | Y57: No | AF57: No | AI57: No | AJ57: No | AK57: No | AL57: No | AQ57: No | AR57: No | AS57: Site-based – single site | AT57: Yes | AU57: No | AV57: No | AW57: No | AX57: Yes | AY57: No | AZ57: No | BA57: Yes | BB57: No | BC57: No | BD57: No | BE57: No | BF57: No | BG57: No | BH57: 40 | BI57: 0 | BJ57: 40 | BK57: 0 | BM57: 1 | BU57: 36 | BV57: 40 | BW57: 0.9 | BX57: 43535.55086
A58: 56 | B58: 2019 | C58: PSH | D58: Carrfour Supportive Housing | E58: Royalton | G58: C | I58: NA | J58: 0 | K58: 0 | L58: 77 | M58: 0 | N58: 0 | O58: 0 | P58: 0 | Q58: 0 | R58: 0 | S58: 7 | T58: 0 | U58: No | V58: No | W58: No | X58: No | Y58: No | AF58: No | AI58: No | AJ58: No | AK58: No | AL58: No | AQ58: No | AR58: No | AS58: Site-based – single site | AT58: Yes | AU58: No | AV58: No | AW58: No | AX58: Yes | AY58: No | AZ58: No | BA58: Yes | BB58: No | BC58: No | BD58: No | BE58: No | BF58: No | BG58: No | BH58: 77 | BI58: 0 | BJ58: 77 | BK58: 0 | BM58: 1 | BU58: 77 | BV58: 77 | BW58: 1 | BX58: 43535.5527
A59: 57 | B59: 2019 | C59: PSH | D59: Carrfour Supportive Housing | E59: Shepherd House | G59: C | I59: NA | J59: 19 | K59: 6 | L59: 0 | M59: 0 | N59: 0 | O59: 0 | P59: 19 | Q59: 0 | R59: 0 | S59: 0 | T59: 0 | U59: No | V59: No | W59: No | X59: No | Y59: No | AF59: No | AI59: No | AJ59: No | AK59: No | AL59: No | AQ59: No | AR59: No | AS59: Site-based – single site | AT59: Yes | AU59: No | AV59: No | AW59: No | AX59: Yes | AY59: No | AZ59: No | BA59: Yes | BB59: No | BC59: No | BD59: No | BE59: No | BF59: No | BG59: No | BH59: 19 | BI59: 19 | BJ59: 0 | BK59: 0 | BL59: 1 | BU59: 16 | BV59: 19 | BW59: 0.84 | BX59: 43535.55477
A60: 58 | B60: 2019 | C60: RRH | D60: Carrfour Supportive Housing | E60: SSVF - Operation Sacred Trust | G60: C | I60: NA | J60: 28 | K60: 7 | L60: 64 | M60: 0 | N60: 28 | O60: 0 | Q60: 64 | R60: 0 | U60: No | V60: Yes | W60: No | X60: Yes | Y60: No | AF60: No | AI60: No | AJ60: No | AK60: No | AL60: No | AQ60: No | AR60: No | AS60: Tenant-based – scattered site | AT60: No | AU60: No | AV60: No | AW60: No | AX60: No | AY60: No | AZ60: No | BA60: No | BB60: No | BC60: No | BD60: No | BE60: No | BF60: No | BG60: No | BH60: 92 | BI60: 28 | BJ60: 64 | BK60: 0 | BL60: 1 | BM60: 1 | BU60: 92 | BV60: 92 | BW60: 1 | BX60: 43535.55656
A61: 59 | B61: 2019 | C61: PSH | D61: Carrfour Supportive Housing | E61: Sunsouth Apartments | G61: C | I61: NA | J61: 0 | K61: 0 | L61: 15 | M61: 0 | N61: 0 | O61: 0 | Q61: 0 | R61: 0 | S61: 15 | T61: 0 | U61: No | V61: No | W61: No | X61: No | Y61: No | AF61: No | AI61: No | AJ61: No | AK61: No | AL61: No | AQ61: No | AR61: No | AS61: Site-based – single site | AT61: Yes | AU61: No | AV61: No | AW61: No | AX61: Yes | AY61: No | AZ61: No | BA61: Yes | BB61: No | BC61: No | BD61: No | BE61: No | BF61: No | BG61: No | BH61: 15 | BI61: 0 | BJ61: 15 | BK61: 0 | BM61: 1 | BU61: 14 | BV61: 15 | BW61: 0.93 | BX61: 43535.55807
A62: 60 | B62: 2019 | C62: RRH | D62: Carrfour Supportive Housing | E62: THOP RRH | G62: C | I62: NA | J62: 147 | K62: 30 | L62: 0 | M62: 0 | N62: 0 | O62: 0 | Q62: 0 | R62: 0 | U62: No | V62: No | W62: No | X62: No | Y62: No | AF62: No | AI62: No | AJ62: No | AK62: No | AL62: No | AQ62: No | AR62: No | AS62: Tenant-based – scattered site | AT62: Yes | AU62: No | AV62: No | AW62: No | AX62: Yes | AY62: No | AZ62: No | BA62: No | BB62: Yes | BC62: No | BD62: No | BE62: No | BF62: No | BG62: No | BH62: 147 | BI62: 147 | BJ62: 0 | BK62: 0 | BL62: 1 | BU62: 147 | BV62: 147 | BW62: 1 | BX62: 43535.55899
A63: 61 | B63: 2019 | C63: PSH | D63: Carrfour Supportive Housing | E63: Villa Aurora | G63: C | I63: NA | J63: 90 | K63: 25 | L63: 0 | M63: 0 | N63: 0 | O63: 0 | P63: 90 | Q63: 0 | R63: 0 | S63: 0 | T63: 0 | U63: No | V63: No | W63: No | X63: No | Y63: No | AF63: No | AI63: No | AJ63: No | AK63: No | AL63: No | AQ63: No | AR63: No | AS63: Site-based – single site | AT63: Yes | AU63: No | AV63: No | AW63: No | AX63: Yes | AY63: No | AZ63: No | BA63: Yes | BB63: No | BC63: No | BD63: No | BE63: No | BF63: No | BG63: No | BH63: 90 | BI63: 90 | BJ63: 0 | BK63: 0 | BL63: 1 | BU63: 90 | BV63: 90 | BW63: 1 | BX63: 43535.56128
A64: 62 | B64: 2019 | C64: PSH | D64: Carrfour Supportive Housing | E64: Villa Aurora 14 | G64: C | I64: NA | J64: 26 | K64: 14 | L64: 0 | M64: 0 | N64: 0 | O64: 0 | P64: 26 | Q64: 0 | R64: 0 | S64: 0 | U64: No | V64: No | W64: No | X64: No | Y64: No | AF64: No | AI64: No | AJ64: No | AK64: No | AL64: No | AQ64: No | AR64: No | AS64: Site-based – single site | AT64: Yes | AU64: No | AV64: No | AW64: No | AX64: Yes | AY64: No | AZ64: No | BA64: Yes | BB64: No | BC64: No | BD64: No | BE64: No | BF64: No | BG64: No | BH64: 26 | BI64: 26 | BJ64: 0 | BK64: 0 | BL64: 1 | BU64: 26 | BV64: 26 | BW64: 1 | BX64: 43535.64876
A65: 63 | B65: 2019 | C65: PSH | D65: Carrfour Supportive Housing | E65: Wynwood Apartment | G65: C | I65: NA | J65: 0 | K65: 0 | L65: 50 | M65: 0 | N65: 0 | O65: 0 | P65: 0 | Q65: 0 | R65: 0 | S65: 50 | T65: 0 | U65: No | V65: No | W65: No | X65: No | Y65: No | AF65: No | AI65: No | AJ65: No | AK65: No | AL65: No | AQ65: No | AR65: No | AS65: Site-based – single site | AT65: Yes | AU65: No | AV65: No | AW65: No | AX65: Yes | BA65: Yes | BD65: No | BE65: No | BF65: No | BG65: No | BH65: 50 | BI65: 0 | BJ65: 50 | BK65: 0 | BM65: 1 | BU65: 44 | BV65: 50 | BW65: 0.88 | BX65: 43535.65148
A66: 64 | B66: 2019 | C66: PSH | D66: Carrfour supportive Housing/Pinnacle | E66: Amistad | G66: C | I66: NA | J66: 51 | K66: 18 | L66: 39 | M66: 0 | N66: 0 | O66: 0 | P66: 51 | Q66: 0 | R66: 0 | S66: 39 | T66: 0 | U66: No | V66: No | W66: No | X66: No | Y66: No | AF66: No | AI66: No | AJ66: No | AK66: No | AL66: No | AQ66: No | AR66: No | AS66: Site-based – single site | AT66: Yes | AU66: No | AV66: No | AW66: No | AX66: Yes | AY66: No | AZ66: No | BA66: Yes | BB66: No | BC66: No | BD66: No | BE66: No | BF66: No | BG66: No | BH66: 90 | BI66: 51 | BJ66: 39 | BK66: 0 | BL66: 1 | BM66: 1 | BU66: 90 | BV66: 90 | BW66: 1 | BX66: 43556.71703
A67: 65 | B67: 2019 | C67: ES | D67: Catholic Charties | E67: New Life Family Center | G67: C | H67: Facility-based beds | I67: NA | J67: 20 | K67: 5 | L67: 0 | M67: 0 | N67: 0 | O67: 0 | Q67: 0 | R67: 0 | U67: No | V67: No | W67: No | X67: No | Y67: No | AF67: No | AI67: No | AJ67: No | AK67: No | AL67: No | AQ67: No | AR67: No | AS67: Site-based – single site | AT67: No | AU67: No | AV67: No | AW67: No | AX67: No | AY67: No | AZ67: No | BA67: No | BB67: No | BC67: No | BD67: No | BE67: No | BF67: No | BG67: No | BH67: 20 | BI67: 20 | BJ67: 0 | BK67: 0 | BL67: 1 | BO67: 0 | BP67: 0 | BS67: 0 | BT67: 0 | BU67: 20 | BV67: 20 | BW67: 1 | BX67: 43565.57066
A68: 66 | B68: 2019 | C68: ES | D68: Chapman Partnership | E68: Chapman Center North | G68: C | H68: Facility-based beds | I68: NA | J68: 224 | K68: 52 | L68: 276 | M68: 0 | N68: 0 | O68: 0 | Q68: 0 | R68: 0 | U68: No | V68: No | W68: No | X68: No | Y68: No | AF68: No | AI68: No | AJ68: No | AK68: No | AL68: No | AQ68: No | AR68: No | AS68: Site-based – single site | AT68: No | AU68: No | AV68: No | AW68: No | AX68: No | AY68: No | AZ68: No | BA68: No | BB68: No | BC68: No | BD68: No | BE68: No | BF68: No | BG68: No | BH68: 500 | BI68: 224 | BJ68: 276 | BK68: 0 | BL68: 1 | BM68: 1 | BO68: 0 | BP68: 0 | BS68: 0 | BT68: 0 | BU68: 486 | BV68: 500 | BW68: 0.97 | BX68: 43552.56491
A69: 67 | B69: 2019 | C69: ES | D69: Chapman Partnership | E69: Chapman Center South | G69: C | H69: Facility-based beds | I69: NA | J69: 142 | K69: 32 | L69: 158 | M69: 0 | N69: 0 | O69: 0 | Q69: 0 | R69: 0 | U69: No | V69: No | W69: No | X69: No | Y69: No | AF69: No | AI69: No | AJ69: No | AK69: No | AL69: No | AQ69: No | AR69: No | AS69: Site-based – clustered / multiple sites | AT69: No | AU69: No | AV69: No | AW69: No | AX69: No | AY69: No | AZ69: No | BA69: No | BB69: No | BC69: No | BD69: No | BE69: No | BF69: No | BG69: No | BH69: 300 | BI69: 142 | BJ69: 158 | BK69: 0 | BL69: 1 | BM69: 1 | BO69: 0 | BP69: 0 | BS69: 4 | BT69: 4 | BU69: 304 | BV69: 304 | BW69: 1 | BX69: 43552.56519
A70: 68 | B70: 2019 | C70: PSH | D70: Citrus Health Network | E70: 95 TRA | G70: C | I70: NA | J70: 61 | K70: 17 | L70: 115 | M70: 0 | N70: 0 | O70: 0 | P70: 61 | Q70: 0 | R70: 0 | S70: 115 | T70: 0 | U70: No | V70: No | W70: No | X70: No | Y70: No | AF70: No | AI70: No | AJ70: No | AK70: No | AL70: No | AQ70: No | AR70: No | AS70: Tenant-based – scattered site | AT70: Yes | AU70: No | AV70: No | AW70: No | AX70: Yes | AY70: No | AZ70: No | BA70: Yes | BB70: No | BC70: No | BD70: No | BE70: No | BF70: No | BG70: No | BH70: 176 | BI70: 61 | BJ70: 115 | BK70: 0 | BL70: 1 | BM70: 1 | BU70: 173 | BV70: 176 | BW70: 0.98 | BX70: 43543.56623
A71: 69 | B71: 2019 | C71: RRH | D71: Citrus Health Network | E71: Challenge Grant RRH | G71: C | I71: NA | J71: 11 | K71: 3 | L71: 14 | M71: 0 | N71: 0 | O71: 0 | Q71: 0 | R71: 0 | U71: No | V71: No | W71: No | X71: No | Y71: No | AF71: No | AI71: No | AJ71: No | AK71: No | AL71: No | AQ71: No | AR71: No | AS71: Tenant-based – scattered site | AT71: No | AU71: No | AV71: No | AW71: No | AX71: No | AY71: No | AZ71: No | BA71: No | BB71: No | BC71: No | BD71: No | BE71: No | BF71: No | BG71: No | BH71: 25 | BI71: 11 | BJ71: 14 | BK71: 0 | BL71: 1 | BM71: 1 | BU71: 25 | BV71: 25 | BW71: 1 | BX71: 43543.57142
A72: 70 | B72: 2019 | C72: RRH | D72: Citrus Health Network | E72: City of Hialeah SHIP Rapid Re-housing | G72: C | I72: NA | J72: 4 | K72: 1 | L72: 0 | M72: 0 | N72: 0 | O72: 0 | Q72: 0 | R72: 0 | U72: No | V72: No | W72: No | X72: No | Y72: No | AF72: No | AI72: No | AJ72: No | AK72: No | AL72: No | AQ72: No | AR72: No | AS72: Tenant-based – scattered site | AT72: No | AU72: No | AV72: No | AW72: No | AX72: No | AY72: No | AZ72: No | BA72: No | BB72: No | BC72: No | BD72: No | BE72: No | BF72: No | BG72: No | BH72: 4 | BI72: 4 | BJ72: 0 | BK72: 0 | BL72: 1 | BU72: 4 | BV72: 4 | BW72: 1 | BX72: 43543.58491
A73: 71 | B73: 2019 | C73: RRH | D73: Citrus Health Network | E73: City of Miami Gardens SHIP Rapid Re-housing | G73: U | I73: NA | J73: 0 | K73: 0 | L73: 0 | M73: 0 | N73: 0 | O73: 0 | Q73: 0 | R73: 0 | U73: No | V73: No | W73: No | X73: No | Y73: No | AF73: No | AI73: No | AJ73: No | AK73: No | AL73: No | AQ73: No | AR73: No | AS73: Tenant-based – scattered site | AT73: No | AU73: No | AV73: No | AW73: No | AX73: No | AY73: No | AZ73: No | BA73: No | BB73: No | BC73: No | BD73: No | BE73: No | BF73: No | BG73: No | BH73: 0 | BV73: 0 | BX73: 43543.58573
A74: 72 | B74: 2019 | C74: RRH | D74: Citrus Health Network | E74: DCF State ESG Rapid Re-housing | G74: C | I74: NA | J74: 35 | K74: 9 | L74: 11 | M74: 0 | N74: 0 | O74: 0 | Q74: 0 | R74: 0 | U74: No | V74: No | W74: No | X74: No | Y74: No | AF74: No | AI74: No | AJ74: No | AK74: No | AL74: No | AQ74: No | AR74: No | AS74: Tenant-based – scattered site | AT74: Yes | AU74: Yes | AV74: No | AW74: Yes | AX74: No | AY74: No | AZ74: No | BA74: No | BB74: No | BC74: No | BD74: No | BE74: No | BF74: No | BG74: No | BH74: 46 | BI74: 35 | BJ74: 11 | BK74: 0 | BL74: 1 | BM74: 1 | BU74: 46 | BV74: 46 | BW74: 1 | BX74: 43543.58755
A75: 73 | B75: 2019 | C75: PSH | D75: Citrus Health Network | E75: Elan Project | G75: C | I75: NA | J75: 0 | K75: 0 | L75: 20 | M75: 0 | N75: 0 | O75: 0 | P75: 0 | Q75: 0 | R75: 0 | S75: 20 | T75: 0 | U75: No | V75: No | W75: No | X75: No | Y75: No | AF75: No | AI75: No | AJ75: No | AK75: No | AL75: No | AQ75: No | AR75: No | AS75: Site-based – single site | AT75: Yes | AU75: No | AV75: No | AW75: No | AX75: Yes | AY75: No | AZ75: No | BA75: Yes | BB75: No | BC75: No | BD75: No | BE75: No | BF75: No | BG75: No | BH75: 20 | BI75: 0 | BJ75: 20 | BK75: 0 | BM75: 1 | BU75: 16 | BV75: 20 | BW75: 0.8 | BX75: 43543.5914
A76: 74 | B76: 2019 | C76: RRH | D76: Citrus Health Network | E76: ESG Program - City of Hialeah | G76: C | I76: NA | J76: 12 | K76: 3 | L76: 3 | M76: 0 | N76: 0 | O76: 0 | Q76: 0 | R76: 0 | U76: No | V76: No | W76: No | X76: No | Y76: No | AF76: No | AI76: No | AJ76: No | AK76: No | AL76: No | AQ76: No | AR76: No | AS76: Tenant-based – scattered site | AT76: Yes | AU76: Yes | AV76: No | AW76: Yes | AX76: No | BD76: No | BE76: No | BF76: No | BG76: No | BH76: 15 | BI76: 12 | BJ76: 3 | BK76: 0 | BL76: 1 | BM76: 1 | BU76: 15 | BV76: 15 | BW76: 1 | BX76: 43543.57299
A77: 75 | B77: 2019 | C77: RRH | D77: Citrus Health Network | E77: ESG Program - City of Miami | G77: C | I77: NA | J77: 14 | K77: 4 | L77: 2 | M77: 0 | N77: 0 | O77: 0 | Q77: 0 | R77: 0 | U77: No | V77: No | W77: No | X77: No | Y77: No | AF77: No | AI77: No | AJ77: No | AK77: No | AL77: No | AQ77: No | AR77: No | AS77: Tenant-based – scattered site | AT77: Yes | AU77: Yes | AV77: No | AW77: Yes | AX77: No | BD77: No | BE77: No | BF77: No | BG77: No | BH77: 16 | BI77: 14 | BJ77: 2 | BK77: 0 | BL77: 1 | BM77: 1 | BU77: 16 | BV77: 16 | BW77: 1 | BX77: 43543.57429
A78: 76 | B78: 2019 | C78: RRH | D78: Citrus Health Network | E78: ESG Program - Miami-Dade County | G78: C | I78: NA | J78: 73 | K78: 18 | L78: 11 | M78: 0 | N78: 0 | O78: 0 | Q78: 0 | R78: 0 | U78: No | V78: No | W78: No | X78: No | Y78: No | AF78: No | AI78: No | AJ78: No | AK78: No | AL78: No | AQ78: No | AR78: No | AS78: Tenant-based – scattered site | AT78: Yes | AU78: Yes | AV78: No | AW78: Yes | AX78: No | BD78: No | BE78: No | BF78: No | BG78: No | BH78: 84 | BI78: 73 | BJ78: 11 | BK78: 0 | BL78: 1 | BM78: 1 | BU78: 84 | BV78: 84 | BW78: 1 | BX78: 43543.57575
A79: 77 | B79: 2019 | C79: TH | D79: Citrus Health Network | E79: F.R.A.T. Homeless Youth Program | G79: C | I79: NA | J79: 0 | K79: 0 | L79: 12 | M79: 0 | N79: 0 | O79: 0 | Q79: 0 | R79: 12 | U79: No | V79: No | W79: No | X79: No | Y79: No | AF79: No | AI79: No | AJ79: No | AK79: No | AL79: No | AQ79: No | AR79: No | AS79: Site-based – clustered / multiple sites | AT79: Yes | AU79: No | AV79: No | AW79: No | AX79: Yes | AZ79: Yes | BD79: No | BE79: No | BF79: No | BG79: No | BH79: 12 | BI79: 0 | BJ79: 12 | BK79: 0 | BM79: 1 | BU79: 5 | BV79: 12 | BW79: 0.42 | BX79: 43543.60697
A80: 78 | B80: 2019 | C80: RRH | D80: Citrus Health Network | E80: HOME RRH | G80: C | I80: NA | J80: 61 | K80: 16 | L80: 0 | M80: 0 | N80: 0 | O80: 0 | Q80: 0 | R80: 0 | U80: No | V80: No | W80: No | X80: No | Y80: No | AF80: No | AI80: No | AJ80: No | AK80: No | AL80: No | AQ80: No | AR80: No | AS80: Tenant-based – scattered site | AT80: No | AU80: No | AV80: No | AW80: No | AX80: No | AY80: No | AZ80: No | BA80: No | BB80: No | BC80: No | BD80: No | BE80: No | BF80: No | BG80: No | BH80: 61 | BI80: 61 | BJ80: 0 | BK80: 0 | BL80: 1 | BU80: 61 | BV80: 61 | BW80: 1 | BX80: 43543.57669
A81: 79 | B81: 2019 | C81: PSH | D81: Citrus Health Network | E81: Housing Act | G81: C | I81: NA | J81: 23 | K81: 8 | L81: 156 | M81: 0 | N81: 0 | O81: 0 | P81: 23 | Q81: 0 | R81: 0 | S81: 156 | T81: 0 | U81: No | V81: No | W81: No | X81: No | Y81: No | AF81: No | AI81: No | AJ81: No | AK81: No | AL81: No | AQ81: No | AR81: No | AS81: Site-based – single site | AT81: Yes | AU81: No | AV81: No | AW81: No | AX81: Yes | AY81: No | AZ81: No | BA81: Yes | BB81: No | BC81: No | BD81: No | BE81: No | BF81: No | BG81: No | BH81: 179 | BI81: 23 | BJ81: 156 | BK81: 0 | BL81: 1 | BM81: 1 | BU81: 179 | BV81: 179 | BW81: 1 | BX81: 43543.59468
A82: 80 | B82: 2019 | C82: PSH | D82: Citrus Health Network | E82: Housing First | G82: C | I82: NA | J82: 0 | K82: 0 | L82: 37 | M82: 0 | N82: 0 | O82: 0 | P82: 0 | Q82: 0 | R82: 0 | S82: 37 | T82: 0 | U82: No | V82: No | W82: No | X82: No | Y82: No | AF82: No | AI82: No | AJ82: No | AK82: No | AL82: No | AQ82: No | AR82: No | AS82: Tenant-based – scattered site | AT82: Yes | AU82: No | AV82: No | AW82: No | AX82: Yes | AY82: No | AZ82: No | BA82: Yes | BB82: No | BC82: No | BD82: No | BE82: No | BF82: No | BG82: No | BH82: 37 | BI82: 0 | BJ82: 37 | BK82: 0 | BM82: 1 | BU82: 32 | BV82: 37 | BW82: 0.86 | BX82: 43543.59812
A83: 81 | B83: 2019 | C83: PSH | D83: Citrus Health Network | E83: Kensington Apartments | G83: C | I83: NA | J83: 0 | K83: 0 | L83: 31 | M83: 0 | N83: 0 | O83: 0 | P83: 0 | Q83: 0 | R83: 0 | S83: 31 | T83: 0 | U83: No | V83: No | W83: No | X83: No | Y83: No | AF83: No | AI83: No | AJ83: No | AK83: No | AL83: No | AQ83: No | AR83: No | AS83: Site-based – single site | AT83: Yes | AU83: No | AV83: No | AW83: No | AX83: Yes | AY83: No | AZ83: No | BA83: Yes | BB83: No | BC83: No | BD83: No | BE83: No | BF83: No | BG83: No | BH83: 31 | BI83: 0 | BJ83: 31 | BK83: 0 | BM83: 1 | BU83: 23 | BV83: 31 | BW83: 0.74 | BX83: 43543.60073
A84: 82 | B84: 2019 | C84: SH | D84: Citrus Health Network | E84: Kiva Safe Haven | G84: C | I84: NA | L84: 14 | M84: 0 | Q84: 0 | R84: 0 | U84: No | V84: No | W84: No | X84: No | Y84: No | AF84: No | AI84: No | AJ84: No | AK84: No | AL84: No | AQ84: No | AR84: No | AS84: Site-based – single site | AT84: Yes | AU84: No | AV84: No | AW84: No | AX84: Yes | AY84: Yes | AZ84: No | BA84: No | BB84: No | BC84: No | BD84: No | BE84: No | BF84: No | BG84: No | BH84: 14 | BJ84: 14 | BK84: 0 | BM84: 1 | BU84: 14 | BV84: 14 | BW84: 1 | BX84: 43543.60132
A85: 83 | B85: 2019 | C85: PSH | D85: Citrus Health Network | E85: KOLAPI | G85: C | I85: NA | J85: 48 | K85: 10 | L85: 126 | M85: 0 | N85: 7 | O85: 0 | P85: 48 | Q85: 30 | R85: 0 | S85: 126 | T85: 0 | U85: No | V85: No | W85: No | X85: No | Y85: No | AF85: No | AI85: No | AJ85: No | AK85: No | AL85: No | AQ85: No | AR85: No | AS85: Site-based – single site | AT85: Yes | AU85: No | AV85: No | AW85: No | AX85: Yes | AY85: No | AZ85: No | BA85: Yes | BB85: No | BC85: No | BD85: No | BE85: No | BF85: No | BG85: No | BH85: 174 | BI85: 48 | BJ85: 126 | BK85: 0 | BL85: 1 | BM85: 1 | BU85: 165 | BV85: 174 | BW85: 0.95 | BX85: 43581.55588
A86: 84 | B86: 2019 | C86: PSH | D86: Citrus Health Network | E86: KOLAPI II | G86: C | I86: NA | J86: 3 | K86: 1 | L86: 43 | M86: 0 | N86: 0 | O86: 0 | P86: 3 | Q86: 0 | R86: 0 | S86: 43 | T86: 0 | U86: No | V86: No | W86: No | X86: No | Y86: No | AF86: No | AI86: No | AJ86: No | AK86: No | AL86: No | AQ86: No | AR86: No | AS86: Site-based – single site | AT86: No | AU86: No | AV86: No | AW86: No | AX86: No | AY86: No | AZ86: No | BA86: No | BB86: No | BC86: No | BD86: No | BE86: No | BF86: No | BG86: No | BH86: 46 | BI86: 3 | BJ86: 43 | BK86: 0 | BL86: 1 | BM86: 1 | BU86: 46 | BV86: 46 | BW86: 1 | BX86: 43543.60597
A87: 85 | B87: 2019 | C87: RRH | D87: Citrus Health Network | E87: Miami Dade County SHIP RRH | G87: C | I87: NA | J87: 47 | K87: 11 | L87: 0 | M87: 0 | N87: 0 | O87: 0 | Q87: 0 | R87: 0 | U87: No | V87: No | W87: No | X87: No | Y87: No | AF87: No | AI87: No | AJ87: No | AK87: No | AL87: No | AQ87: No | AR87: No | AS87: Tenant-based – scattered site | AT87: No | AU87: No | AV87: No | AW87: No | AX87: No | AY87: No | AZ87: No | BA87: No | BB87: No | BC87: No | BD87: No | BE87: No | BF87: No | BG87: No | BH87: 47 | BI87: 47 | BJ87: 0 | BK87: 0 | BL87: 1 | BU87: 47 | BV87: 47 | BW87: 1 | BX87: 43543.58919
A88: 86 | B88: 2019 | C88: RRH | D88: Citrus Health Network | E88: Our Kids Youth Aging Out | G88: C | I88: NA | J88: 2 | K88: 1 | L88: 1 | M88: 0 | N88: 0 | O88: 2 | Q88: 0 | R88: 1 | U88: No | V88: No | W88: No | X88: No | Y88: No | AF88: No | AI88: No | AJ88: No | AK88: No | AL88: No | AQ88: No | AR88: No | AS88: Site-based – clustered / multiple sites | AT88: No | AU88: No | AV88: No | AW88: No | AX88: No | AY88: No | AZ88: No | BA88: No | BB88: No | BC88: No | BD88: No | BE88: No | BF88: No | BG88: No | BH88: 3 | BI88: 2 | BJ88: 1 | BK88: 0 | BL88: 1 | BM88: 1 | BU88: 3 | BV88: 3 | BW88: 1 | BX88: 43567.51513
A89: 87 | B89: 2019 | C89: TH | D89: Citrus Health Network | E89: Safe Haven for Youth | G89: C | I89: NA | J89: 0 | K89: 0 | L89: 20 | M89: 0 | N89: 0 | O89: 0 | Q89: 0 | R89: 20 | U89: No | V89: No | W89: No | X89: No | Y89: No | AF89: No | AI89: No | AJ89: No | AK89: No | AL89: No | AQ89: No | AR89: No | AS89: Site-based – single site | AT89: No | AU89: No | AV89: No | AW89: No | AX89: No | AY89: No | AZ89: No | BA89: No | BB89: No | BC89: No | BD89: No | BE89: No | BF89: No | BG89: No | BH89: 20 | BI89: 0 | BJ89: 20 | BK89: 0 | BM89: 1 | BU89: 14 | BV89: 20 | BW89: 0.7 | BX89: 43543.61125
A90: 88 | B90: 2019 | C90: PSH | D90: Citrus Health Network | E90: Shaman | G90: C | I90: NA | J90: 0 | K90: 0 | L90: 24 | M90: 0 | N90: 0 | O90: 0 | P90: 0 | Q90: 0 | R90: 0 | S90: 24 | T90: 0 | U90: No | V90: No | W90: No | X90: No | Y90: No | AF90: No | AI90: No | AJ90: No | AK90: No | AL90: No | AQ90: No | AR90: No | AS90: Tenant-based – scattered site | AT90: Yes | AU90: No | AV90: No | AW90: No | AX90: Yes | AY90: No | AZ90: No | BA90: Yes | BB90: No | BC90: No | BD90: No | BE90: No | BF90: No | BG90: No | BH90: 24 | BI90: 0 | BJ90: 24 | BK90: 0 | BM90: 1 | BU90: 23 | BV90: 24 | BW90: 0.96 | BX90: 43543.61242
A91: 89 | B91: 2019 | C91: PSH | D91: Citrus Health Network | E91: SPC TRA 30 Units | G91: C | I91: NA | J91: 56 | K91: 14 | L91: 30 | M91: 0 | N91: 0 | O91: 0 | P91: 56 | Q91: 0 | R91: 0 | S91: 30 | T91: 0 | U91: No | V91: No | W91: No | X91: No | Y91: No | AF91: No | AI91: No | AJ91: No | AK91: No | AL91: No | AQ91: No | AR91: No | AS91: Tenant-based – scattered site | AT91: Yes | AU91: No | AV91: No | AW91: No | AX91: Yes | AY91: No | AZ91: No | BA91: Yes | BB91: No | BC91: No | BD91: No | BE91: No | BF91: No | BG91: No | BH91: 86 | BI91: 56 | BJ91: 30 | BK91: 0 | BL91: 1 | BM91: 1 | BU91: 74 | BV91: 86 | BW91: 0.86 | BX91: 43543.61411
A92: 90 | B92: 2019 | C92: PSH | D92: Citrus Health Network | E92: SPC TRA 55 | G92: C | I92: NA | J92: 9 | K92: 5 | L92: 52 | M92: 0 | N92: 0 | O92: 0 | P92: 9 | Q92: 0 | R92: 0 | S92: 0 | T92: 0 | U92: No | V92: No | W92: No | X92: No | Y92: No | AF92: No | AI92: No | AJ92: No | AK92: No | AL92: No | AQ92: No | AR92: No | AS92: Tenant-based – scattered site | AT92: Yes | AU92: No | AV92: No | AW92: No | AX92: Yes | AY92: No | AZ92: No | BA92: Yes | BB92: No | BC92: No | BD92: No | BE92: No | BF92: No | BG92: No | BH92: 61 | BI92: 9 | BJ92: 52 | BK92: 0 | BL92: 1 | BM92: 1 | BU92: 61 | BV92: 61 | BW92: 1 | BX92: 43543.61542
A93: 91 | B93: 2019 | C93: ES | D93: City of Miami Homeless Assistance Program | E93: Hotels/Motels | G93: C | H93: Voucher beds | I93: NA | J93: 101 | K93: 24 | L93: 4 | M93: 0 | N93: 0 | O93: 0 | Q93: 0 | R93: 0 | U93: No | V93: No | W93: No | X93: No | Y93: No | AF93: No | AI93: No | AJ93: No | AK93: No | AL93: No | AQ93: No | AR93: No | AS93: Tenant-based – scattered site | AT93: No | AU93: No | AV93: No | AW93: No | AX93: No | AY93: No | AZ93: No | BA93: No | BB93: No | BC93: No | BD93: No | BE93: No | BF93: No | BG93: No | BH93: 105 | BI93: 101 | BJ93: 4 | BK93: 0 | BL93: 1 | BM93: 1 | BO93: 0 | BP93: 0 | BS93: 0 | BT93: 0 | BU93: 105 | BV93: 105 | BW93: 1 | BX93: 43552.56684
A94: 92 | B94: 2019 | C94: PSH | D94: Community Health of South Dade (CHI) | E94: 92 Program | G94: C | I94: NA | J94: 0 | K94: 0 | L94: 10 | M94: 0 | N94: 0 | O94: 0 | P94: 0 | Q94: 0 | R94: 0 | S94: 10 | T94: 0 | U94: No | V94: No | W94: No | X94: No | Y94: No | AF94: No | AI94: No | AJ94: No | AK94: No | AL94: No | AQ94: No | AR94: No | AS94: Tenant-based – scattered site | AT94: Yes | AU94: No | AV94: No | AW94: No | AX94: Yes | AY94: No | AZ94: No | BA94: Yes | BB94: No | BC94: No | BD94: No | BE94: No | BF94: No | BG94: No | BH94: 10 | BI94: 0 | BJ94: 10 | BK94: 0 | BM94: 1 | BU94: 10 | BV94: 10 | BW94: 1 | BX94: 43567.51788
A95: 93 | B95: 2019 | C95: PSH | D95: Community Health of South Dade (CHI) | E95: 93 Program | G95: C | I95: NA | J95: 0 | K95: 0 | L95: 25 | M95: 0 | N95: 0 | O95: 0 | P95: 0 | Q95: 0 | R95: 0 | S95: 25 | T95: 0 | U95: No | V95: No | W95: No | X95: No | Y95: No | AF95: No | AI95: No | AJ95: No | AK95: No | AL95: No | AQ95: No | AR95: No | AS95: Site-based – single site | AT95: Yes | AU95: No | AV95: No | AW95: No | AX95: Yes | AY95: No | AZ95: No | BA95: Yes | BB95: No | BC95: No | BD95: No | BE95: No | BF95: No | BG95: No | BH95: 25 | BI95: 0 | BJ95: 25 | BK95: 0 | BM95: 1 | BU95: 16 | BV95: 25 | BW95: 0.64 | BX95: 43567.51799
A96: 94 | B96: 2019 | C96: PSH | D96: Douglas Gardens Community Mental Health | E96: Another Chance | G96: C | I96: NA | J96: 5 | K96: 2 | L96: 23 | M96: 0 | N96: 0 | O96: 0 | P96: 5 | Q96: 0 | R96: 0 | S96: 23 | T96: 0 | U96: No | V96: No | W96: No | X96: No | Y96: No | AF96: No | AI96: No | AJ96: No | AK96: No | AL96: No | AQ96: No | AR96: No | AS96: Site-based – single site | AT96: Yes | AU96: No | AV96: No | AW96: No | AX96: Yes | AY96: No | AZ96: No | BA96: Yes | BB96: No | BC96: No | BD96: No | BE96: No | BF96: No | BG96: No | BH96: 28 | BI96: 5 | BJ96: 23 | BK96: 0 | BL96: 1 | BM96: 1 | BU96: 21 | BV96: 28 | BW96: 0.75 | BX96: 43543.62234
A97: 95 | B97: 2019 | C97: PSH | D97: Douglas Gardens Community Mental Health | E97: Healthy Choice | G97: C | I97: NA | J97: 0 | K97: 0 | L97: 12 | M97: 0 | N97: 0 | O97: 0 | P97: 0 | Q97: 0 | R97: 0 | S97: 12 | T97: 0 | U97: No | V97: No | W97: No | X97: No | Y97: No | AF97: No | AI97: No | AJ97: No | AK97: No | AL97: No | AQ97: No | AR97: No | AS97: Site-based – single site | AT97: Yes | AU97: No | AV97: No | AW97: No | AX97: Yes | AY97: No | AZ97: No | BA97: Yes | BB97: No | BC97: No | BD97: No | BE97: No | BF97: No | BG97: No | BH97: 12 | BI97: 0 | BJ97: 12 | BK97: 0 | BM97: 1 | BU97: 11 | BV97: 12 | BW97: 0.92 | BX97: 43543.62128
A98: 96 | B98: 2019 | C98: PSH | D98: Douglas Gardens Community Mental Health | E98: Mayfair Apartments | G98: C | I98: NA | J98: 0 | K98: 0 | L98: 22 | M98: 0 | N98: 0 | O98: 0 | P98: 0 | Q98: 0 | R98: 0 | S98: 22 | T98: 0 | U98: No | V98: No | W98: No | X98: No | Y98: No | AF98: No | AI98: No | AJ98: No | AK98: No | AL98: No | AQ98: No | AR98: No | AS98: Site-based – single site | AT98: Yes | AU98: No | AV98: No | AW98: No | AX98: Yes | AY98: No | AZ98: No | BA98: Yes | BB98: No | BC98: No | BD98: No | BE98: No | BF98: No | BG98: No | BH98: 22 | BI98: 0 | BJ98: 22 | BK98: 0 | BM98: 1 | BU98: 20 | BV98: 22 | BW98: 0.91 | BX98: 43543.62633
A99: 97 | B99: 2019 | C99: PSH | D99: Douglas Gardens Community Mental Health | E99: My Choice | G99: C | I99: NA | J99: 7 | K99: 2 | L99: 15 | M99: 0 | N99: 0 | O99: 0 | P99: 7 | Q99: 0 | R99: 0 | S99: 15 | T99: 0 | U99: No | V99: No | W99: No | X99: No | Y99: No | AF99: No | AI99: No | AJ99: No | AK99: No | AL99: No | AQ99: No | AR99: No | AS99: Site-based – single site | AT99: Yes | AU99: No | AV99: No | AW99: No | AX99: Yes | AY99: No | AZ99: No | BA99: Yes | BB99: No | BC99: No | BD99: No | BE99: No | BF99: No | BG99: No | BH99: 22 | BI99: 7 | BJ99: 15 | BK99: 0 | BL99: 1 | BM99: 1 | BU99: 22 | BV99: 22 | BW99: 1 | BX99: 43543.6284
A100: 98 | B100: 2019 | C100: PSH | D100: Douglas Gardens Community Mental Health | E100: Right Direction | G100: C | I100: NA | J100: 0 | K100: 0 | L100: 14 | M100: 0 | N100: 0 | O100: 0 | Q100: 0 | R100: 0 | S100: 14 | T100: 0 | U100: No | V100: No | W100: No | X100: No | Y100: No | AF100: No | AI100: No | AJ100: No | AK100: No | AL100: No | AQ100: No | AR100: No | AS100: Site-based – single site | AT100: Yes | AU100: No | AV100: No | AW100: No | AX100: Yes | AY100: No | AZ100: No | BA100: Yes | BB100: No | BC100: No | BD100: No | BE100: No | BF100: No | BG100: No | BH100: 14 | BI100: 0 | BJ100: 14 | BK100: 0 | BM100: 1 | BU100: 14 | BV100: 14 | BW100: 1 | BX100: 43543.62065
A101: 99 | B101: 2019 | C101: PSH | D101: Douglas Gardens Community Mental Health | E101: Starting Again | G101: C | I101: NA | J101: 0 | K101: 0 | L101: 15 | M101: 0 | N101: 0 | O101: 0 | P101: 0 | Q101: 0 | R101: 0 | S101: 15 | T101: 0 | U101: No | V101: No | W101: No | X101: No | Y101: No | AF101: No | AI101: No | AJ101: No | AK101: No | AL101: No | AQ101: No | AR101: No | AS101: Site-based – single site | AT101: Yes | AU101: No | AV101: No | AW101: No | AX101: Yes | AY101: No | AZ101: No | BA101: Yes | BB101: No | BC101: No | BD101: No | BE101: No | BF101: No | BG101: No | BH101: 15 | BI101: 0 | BJ101: 15 | BK101: 0 | BM101: 1 | BU101: 15 | BV101: 15 | BW101: 1 | BX101: 43543.63065
A102: 100 | B102: 2019 | C102: PSH | D102: Fellowship House | E102: Coconut Grove I | G102: C | I102: NA | J102: 0 | K102: 0 | L102: 20 | M102: 0 | N102: 0 | O102: 0 | P102: 0 | Q102: 0 | R102: 0 | S102: 20 | T102: 0 | U102: No | V102: No | W102: No | X102: No | Y102: No | AF102: No | AI102: No | AJ102: No | AK102: No | AL102: No | AQ102: No | AR102: No | AS102: Site-based – single site | AT102: Yes | AU102: No | AV102: No | AW102: No | AX102: Yes | AY102: No | AZ102: No | BA102: Yes | BB102: No | BC102: No | BD102: No | BE102: No | BF102: No | BG102: No | BH102: 20 | BI102: 0 | BJ102: 20 | BK102: 0 | BM102: 1 | BU102: 18 | BV102: 20 | BW102: 0.9 | BX102: 43535.67376
A103: 101 | B103: 2019 | C103: PSH | D103: Fellowship House | E103: Coconut Grove II | G103: C | I103: NA | J103: 0 | K103: 0 | L103: 4 | M103: 0 | N103: 0 | O103: 0 | P103: 0 | Q103: 0 | R103: 0 | S103: 4 | T103: 0 | U103: No | V103: No | W103: No | X103: No | Y103: No | AF103: No | AI103: No | AJ103: No | AK103: No | AL103: No | AQ103: No | AR103: No | AS103: Site-based – single site | AT103: Yes | AU103: No | AV103: No | AW103: No | AX103: Yes | AY103: No | AZ103: No | BA103: Yes | BB103: No | BC103: No | BD103: No | BE103: No | BF103: No | BG103: No | BH103: 4 | BI103: 0 | BJ103: 4 | BK103: 0 | BM103: 1 | BU103: 4 | BV103: 4 | BW103: 1 | BX103: 43535.67487
A104: 102 | B104: 2019 | C104: PSH | D104: Fellowship House | E104: South Dade Apartments | G104: C | I104: NA | J104: 0 | K104: 0 | L104: 14 | M104: 0 | N104: 0 | O104: 0 | Q104: 0 | R104: 0 | S104: 14 | U104: No | V104: No | W104: No | X104: No | Y104: No | AF104: No | AI104: No | AJ104: No | AK104: No | AL104: No | AQ104: No | AR104: No | AS104: Tenant-based – scattered site | AT104: Yes | AU104: No | AV104: No | AW104: No | AX104: Yes | AY104: No | AZ104: No | BA104: Yes | BB104: No | BC104: No | BD104: No | BE104: No | BF104: No | BG104: No | BH104: 14 | BI104: 0 | BJ104: 14 | BK104: 0 | BM104: 1 | BU104: 10 | BV104: 14 | BW104: 0.71 | BX104: 43535.67618
A105: 103 | B105: 2019 | C105: ES | D105: Miami Bridge | E105: Miami Bridge RHY Youth Shelter | G105: C | H105: Facility-based beds | I105: NA | J105: 0 | K105: 0 | L105: 0 | M105: 10 | N105: 0 | O105: 0 | Q105: 0 | R105: 0 | U105: No | V105: Yes | W105: No | X105: No | Y105: No | AF105: No | AI105: Yes | AJ105: No | AK105: No | AL105: No | AQ105: No | AR105: No | AS105: Site-based – single site | AT105: No | AU105: No | AV105: No | AW105: No | AX105: No | AY105: No | AZ105: No | BA105: No | BB105: No | BC105: No | BD105: No | BE105: No | BF105: No | BG105: No | BH105: 10 | BI105: 0 | BJ105: 0 | BK105: 10 | BN105: 1 | BO105: 0 | BP105: 0 | BS105: 0 | BT105: 0 | BU105: 1 | BV105: 10 | BW105: 0.1 | BX105: 43551.49373
A106: 104 | B106: 2019 | C106: OPH | D106: Miami Dade County PHCD | E106: OPH | G106: C | I106: NA | J106: 0 | K106: 0 | L106: 146 | M106: 0 | N106: 0 | O106: 0 | Q106: 0 | R106: 0 | U106: No | V106: No | W106: No | X106: No | Y106: No | AF106: No | AI106: No | AJ106: No | AK106: No | AL106: No | AQ106: No | AR106: No | AS106: Tenant-based – scattered site | AT106: No | AU106: No | AV106: No | AW106: No | AX106: No | AY106: No | AZ106: No | BA106: No | BB106: No | BC106: No | BD106: No | BE106: No | BF106: No | BG106: No | BH106: 146 | BI106: 0 | BJ106: 146 | BK106: 0 | BM106: 1 | BU106: 146 | BV106: 146 | BW106: 1 | BX106: 43567.51833
A107: 105 | B107: 2019 | C107: ES | D107: Miami Rescue Mission | E107: Miami Rescue Mission HT Emergency Singles | G107: C | H107: Facility-based beds | I107: NA | J107: 0 | K107: 0 | L107: 87 | M107: 0 | N107: 0 | O107: 0 | Q107: 0 | R107: 0 | U107: No | V107: No | W107: No | X107: No | Y107: No | AF107: No | AI107: No | AJ107: No | AK107: No | AL107: No | AQ107: No | AR107: No | AS107: Site-based – single site | AT107: No | AU107: No | AV107: No | AW107: No | AX107: No | AY107: No | AZ107: No | BA107: No | BB107: No | BC107: No | BD107: No | BE107: No | BF107: No | BG107: No | BH107: 87 | BI107: 0 | BJ107: 87 | BK107: 0 | BM107: 1 | BO107: 0 | BP107: 0 | BS107: 3 | BT107: 3 | BU107: 90 | BV107: 90 | BW107: 1 | BX107: 43552.57791
A108: 106 | B108: 2019 | C108: ES | D108: Miami Rescue Mission | E108: MRM Miami Beach Program | G108: C | H108: Facility-based beds | I108: NA | J108: 0 | K108: 0 | L108: 15 | M108: 0 | N108: 0 | O108: 0 | Q108: 0 | R108: 0 | U108: No | V108: No | W108: No | X108: No | Y108: No | AF108: No | AI108: No | AJ108: No | AK108: No | AL108: No | AQ108: No | AR108: No | AS108: Site-based – single site | AT108: No | AU108: No | AV108: No | AW108: No | AX108: No | AY108: No | AZ108: No | BA108: No | BB108: No | BC108: No | BD108: No | BE108: No | BF108: No | BG108: No | BH108: 15 | BI108: 0 | BJ108: 15 | BK108: 0 | BM108: 1 | BO108: 0 | BP108: 0 | BS108: 0 | BT108: 0 | BU108: 1 | BV108: 15 | BW108: 0.07 | BX108: 43546.50038
A109: 107 | B109: 2019 | C109: TH | D109: Miami Rescue Mission | E109: Regeneration Program TH | G109: C | I109: NA | J109: 0 | K109: 0 | L109: 213 | M109: 0 | N109: 0 | O109: 0 | Q109: 0 | R109: 0 | U109: No | V109: No | W109: No | X109: No | Y109: No | AF109: No | AI109: No | AJ109: No | AK109: No | AL109: No | AQ109: No | AR109: No | AS109: Site-based – single site | AT109: No | AU109: No | AV109: No | AW109: No | AX109: No | AY109: No | AZ109: No | BA109: No | BB109: No | BC109: No | BD109: No | BE109: No | BF109: No | BG109: No | BH109: 213 | BI109: 0 | BJ109: 213 | BK109: 0 | BM109: 1 | BU109: 184 | BV109: 213 | BW109: 0.86 | BX109: 43579.5984
A110: 108 | B110: 2019 | C110: TH | D110: Miami-Dade County Community Action and Human Services Dept. | E110: Inn Transition North | G110: C | I110: DV | J110: 81 | K110: 19 | L110: 0 | M110: 0 | N110: 0 | O110: 0 | Q110: 0 | R110: 0 | U110: Yes | V110: No | W110: No | X110: No | Y110: No | AF110: No | AI110: No | AJ110: No | AK110: No | AL110: No | AQ110: No | AR110: No | AS110: Site-based – single site | AT110: No | AU110: No | AV110: No | AW110: No | AX110: No | AY110: No | AZ110: No | BA110: No | BB110: No | BC110: No | BD110: No | BE110: No | BF110: No | BG110: No | BH110: 81 | BU110: 54 | BV110: 81 | BW110: 0.67 | BX110: 43567.52315
A111: 109 | B111: 2019 | C111: TH | D111: Miami-Dade County Community Action and Human Services Dept. | E111: Inn Transition South | G111: C | I111: DV | J111: 250 | K111: 55 | L111: 0 | M111: 0 | N111: 0 | O111: 0 | Q111: 0 | R111: 0 | U111: Yes | V111: No | W111: No | X111: No | Y111: No | AF111: No | AI111: No | AJ111: No | AK111: No | AL111: No | AQ111: No | AR111: No | AS111: Site-based – single site | AT111: No | AU111: No | AV111: No | AW111: No | AX111: No | AY111: No | AZ111: No | BA111: No | BB111: No | BC111: No | BD111: No | BE111: No | BF111: No | BG111: No | BH111: 250 | BU111: 206 | BV111: 250 | BW111: 0.82 | BX111: 43567.52253
A112: 110 | B112: 2019 | C112: ES | D112: Miami-Dade County Community Action and Human Services Dept. | E112: Safe Space-North | G112: C | H112: Facility-based beds | I112: DV | J112: 63 | K112: 11 | L112: 0 | M112: 0 | N112: 0 | O112: 0 | Q112: 0 | R112: 0 | U112: Yes | V112: No | W112: No | X112: No | Y112: No | AF112: No | AI112: No | AJ112: No | AK112: No | AL112: No | AQ112: No | AR112: No | AS112: Site-based – single site | AT112: No | AU112: No | AV112: No | AW112: No | AX112: No | AY112: No | AZ112: No | BA112: No | BB112: No | BC112: No | BD112: No | BE112: No | BF112: No | BG112: No | BH112: 63 | BO112: 0 | BP112: 0 | BS112: 0 | BT112: 0 | BU112: 63 | BV112: 63 | BW112: 1 | BX112: 43567.52457
A113: 111 | B113: 2019 | C113: ES | D113: Miami-Dade County Community Action and Human Services Dept. | E113: Safe Space-South | G113: C | H113: Facility-based beds | I113: DV | J113: 40 | K113: 10 | L113: 0 | M113: 0 | N113: 0 | O113: 0 | Q113: 0 | R113: 0 | U113: Yes | V113: No | W113: No | X113: No | Y113: No | AF113: No | AI113: No | AJ113: No | AK113: No | AL113: No | AQ113: No | AR113: No | AS113: Site-based – single site | AT113: No | AU113: No | AV113: No | AW113: No | AX113: No | AY113: No | AZ113: No | BA113: No | BB113: No | BC113: No | BD113: No | BE113: No | BF113: No | BG113: No | BH113: 40 | BO113: 0 | BP113: 0 | BS113: 0 | BT113: 0 | BU113: 40 | BV113: 40 | BW113: 1 | BX113: 43567.52477
A114: 112 | B114: 2019 | C114: PSH | D114: New Horizons Community Mental Health | E114: Barrett Place | G114: C | I114: NA | J114: 0 | K114: 0 | L114: 20 | N114: 0 | O114: 0 | P114: 0 | Q114: 0 | R114: 0 | S114: 20 | U114: No | V114: No | W114: No | X114: No | Y114: No | AF114: No | AI114: No | AJ114: No | AK114: No | AL114: No | AQ114: No | AR114: No | AS114: Tenant-based – scattered site | AT114: Yes | AU114: No | AX114: Yes | BA114: Yes | BD114: No | BE114: No | BF114: No | BH114: 20 | BI114: 0 | BJ114: 20 | BM114: 1 | BU114: 20 | BV114: 20 | BW114: 1 | BX114: 43574.48308
A115: 113 | B115: 2019 | C115: PSH | D115: New Horizons Community Mental Health | E115: Carolyn Wilson | G115: C | I115: NA | J115: 0 | K115: 0 | L115: 30 | M115: 0 | N115: 0 | O115: 0 | P115: 0 | Q115: 0 | R115: 0 | S115: 30 | T115: 0 | U115: No | V115: No | W115: No | X115: No | Y115: No | AF115: No | AI115: No | AJ115: No | AK115: No | AL115: No | AQ115: No | AR115: No | AS115: Site-based – single site | AT115: Yes | AU115: No | AV115: No | AW115: No | AX115: Yes | AY115: No | AZ115: No | BA115: Yes | BB115: No | BC115: No | BD115: No | BE115: No | BF115: No | BG115: No | BH115: 30 | BI115: 0 | BJ115: 30 | BK115: 0 | BM115: 1 | BU115: 30 | BV115: 30 | BW115: 1 | BX115: 43544.59287
A116: 114 | B116: 2019 | C116: PSH | D116: New Horizons Community Mental Health | E116: J. Moss | G116: C | I116: NA | J116: 74 | K116: 20 | L116: 15 | M116: 0 | N116: 0 | O116: 0 | P116: 74 | Q116: 0 | R116: 0 | S116: 15 | T116: 0 | U116: No | V116: No | W116: No | X116: No | Y116: No | AF116: No | AI116: No | AJ116: No | AK116: No | AL116: No | AQ116: No | AR116: No | AS116: Tenant-based – scattered site | AT116: Yes | AU116: No | AV116: No | AW116: No | AX116: Yes | AY116: No | AZ116: No | BA116: Yes | BB116: No | BC116: No | BD116: No | BE116: No | BF116: No | BG116: No | BH116: 89 | BI116: 74 | BJ116: 15 | BK116: 0 | BL116: 1 | BM116: 1 | BU116: 84 | BV116: 89 | BW116: 0.94 | BX116: 43544.59389
A117: 115 | B117: 2019 | C117: PSH | D117: New Horizons Community Mental Health | E117: M. Toussaint | G117: C | I117: NA | J117: 70 | K117: 20 | L117: 15 | M117: 0 | N117: 0 | O117: 0 | P117: 70 | Q117: 0 | R117: 0 | S117: 15 | T117: 0 | U117: No | V117: No | W117: No | X117: No | Y117: No | AF117: No | AI117: No | AJ117: No | AK117: No | AL117: No | AQ117: No | AR117: No | AS117: Site-based – single site | AT117: Yes | AU117: No | AV117: No | AW117: No | AX117: Yes | BA117: Yes | BD117: No | BE117: No | BF117: No | BG117: No | BH117: 85 | BI117: 70 | BJ117: 15 | BK117: 0 | BL117: 1 | BM117: 1 | BU117: 85 | BV117: 85 | BW117: 1 | BX117: 43544.59543
A118: 116 | B118: 2019 | C118: PSH | D118: New Horizons Community Mental Health | E118: Thomas Jefferson | G118: C | I118: NA | J118: 0 | K118: 0 | L118: 25 | M118: 0 | N118: 0 | O118: 0 | P118: 0 | Q118: 0 | R118: 0 | S118: 25 | T118: 0 | U118: No | V118: No | W118: No | X118: No | Y118: No | AF118: No | AI118: No | AJ118: No | AK118: No | AL118: No | AQ118: No | AR118: No | AS118: Tenant-based – scattered site | AT118: Yes | AU118: No | AV118: No | AW118: No | AX118: Yes | BA118: Yes | BD118: No | BE118: No | BF118: No | BG118: No | BH118: 25 | BI118: 0 | BJ118: 25 | BK118: 0 | BM118: 1 | BU118: 24 | BV118: 25 | BW118: 0.96 | BX118: 43544.59611
A119: 117 | B119: 2019 | C119: RRH | D119: The Advocate Program | E119: Advocate Housing Solutions | G119: C | I119: NA | J119: 64 | K119: 20 | L119: 10 | M119: 0 | N119: 0 | O119: 0 | Q119: 0 | R119: 0 | U119: No | V119: No | W119: No | X119: No | Y119: No | AF119: No | AI119: No | AJ119: No | AK119: No | AL119: No | AQ119: No | AR119: No | AS119: Tenant-based – scattered site | AT119: Yes | AU119: No | AV119: No | AW119: No | AX119: Yes | AY119: No | AZ119: No | BA119: No | BB119: Yes | BC119: No | BD119: No | BE119: No | BF119: No | BG119: No | BH119: 74 | BI119: 64 | BJ119: 10 | BK119: 0 | BL119: 1 | BM119: 1 | BU119: 74 | BV119: 74 | BW119: 1 | BX119: 43530.57895
A120: 118 | B120: 2019 | C120: RRH | D120: The Advocate Program | E120: SSVF Rapid-Rehousing Project | G120: C | I120: NA | J120: 6 | K120: 2 | L120: 36 | M120: 0 | N120: 6 | O120: 0 | Q120: 36 | R120: 0 | U120: No | V120: Yes | W120: No | X120: Yes | Y120: No | AF120: No | AI120: No | AJ120: No | AK120: No | AL120: No | AQ120: No | AR120: No | AS120: Tenant-based – scattered site | AT120: No | AU120: No | AV120: No | AW120: No | AX120: No | AY120: No | AZ120: No | BA120: No | BB120: No | BC120: No | BD120: No | BE120: No | BF120: No | BG120: No | BH120: 42 | BI120: 6 | BJ120: 36 | BK120: 0 | BL120: 1 | BM120: 1 | BU120: 42 | BV120: 42 | BW120: 1 | BX120: 43530.58053
A121: 119 | B121: 2019 | C121: ES | D121: The Salvation Army | E121: City of Miami Beach Emergency Beds | G121: C | H121: Facility-based beds | I121: NA | J121: 0 | K121: 0 | L121: 20 | M121: 0 | N121: 0 | O121: 0 | Q121: 0 | R121: 0 | U121: No | V121: No | W121: No | X121: No | Y121: No | AF121: No | AI121: No | AJ121: No | AK121: No | AL121: No | AQ121: No | AR121: No | AS121: Site-based – single site | AT121: No | AU121: No | AV121: No | AW121: No | AX121: No | AY121: No | AZ121: No | BA121: No | BB121: No | BC121: No | BD121: No | BE121: No | BF121: No | BG121: No | BH121: 20 | BI121: 0 | BJ121: 20 | BK121: 0 | BM121: 1 | BO121: 0 | BP121: 0 | BS121: 0 | BT121: 0 | BU121: 19 | BV121: 20 | BW121: 0.95 | BX121: 43544.59689
A122: 120 | B122: 2019 | C122: ES | D122: The Salvation Army | E122: HT Emergency Housing Program | G122: C | H122: Facility-based beds | I122: NA | J122: 0 | K122: 0 | L122: 80 | M122: 0 | N122: 0 | O122: 0 | Q122: 0 | R122: 0 | U122: No | V122: No | W122: No | X122: No | Y122: No | AF122: No | AI122: No | AJ122: No | AK122: No | AL122: No | AQ122: No | AR122: No | AS122: Site-based – single site | AT122: No | AU122: No | AV122: No | AW122: No | AX122: No | AY122: No | AZ122: No | BA122: No | BB122: No | BC122: No | BD122: No | BE122: No | BF122: No | BG122: No | BH122: 80 | BI122: 0 | BJ122: 80 | BK122: 0 | BM122: 1 | BO122: 0 | BP122: 0 | BS122: 0 | BT122: 0 | BU122: 36 | BV122: 80 | BW122: 0.45 | BX122: 43544.59771
A123: 121 | B123: 2019 | C123: RRH | D123: The Sundari Foundation | E123: Rapid Re-housing | G123: C | I123: NA | J123: 179 | K123: 54 | L123: 43 | M123: 0 | N123: 0 | O123: 0 | Q123: 0 | R123: 0 | U123: No | V123: No | W123: No | X123: No | Y123: No | AF123: No | AI123: No | AJ123: No | AK123: No | AL123: No | AQ123: No | AR123: No | AS123: Tenant-based – scattered site | AT123: Yes | AU123: Yes | AV123: No | AW123: Yes | AX123: No | AY123: No | AZ123: No | BA123: No | BB123: No | BC123: No | BD123: No | BE123: No | BF123: No | BG123: No | BH123: 222 | BI123: 179 | BJ123: 43 | BK123: 0 | BL123: 1 | BM123: 1 | BU123: 222 | BV123: 222 | BW123: 1 | BX123: 43558.58668
A124: 122 | B124: 2019 | C124: RRH | D124: The Sundari Foundation | E124: Tenant Based Rental Assistance | G124: C | I124: NA | J124: 64 | K124: 19 | L124: 36 | M124: 0 | N124: 0 | O124: 0 | Q124: 0 | R124: 0 | U124: No | V124: No | W124: No | X124: No | Y124: No | AF124: No | AI124: No | AJ124: No | AK124: No | AL124: No | AQ124: No | AR124: No | AS124: Tenant-based – scattered site | AT124: No | AU124: No | AV124: No | AW124: No | AX124: No | AY124: No | AZ124: No | BA124: No | BB124: No | BC124: No | BD124: No | BE124: No | BF124: No | BG124: No | BH124: 100 | BI124: 64 | BJ124: 36 | BK124: 0 | BL124: 1 | BM124: 1 | BU124: 100 | BV124: 100 | BW124: 1 | BX124: 43558.5899
A125: 123 | B125: 2019 | C125: ES | D125: The Sundari Foundation | E125: The Sundari Foundation Emergency 33 Beds PC-1516-IND-1 | G125: C | H125: Facility-based beds | I125: NA | J125: 0 | K125: 0 | L125: 127 | M125: 0 | N125: 0 | O125: 0 | Q125: 0 | R125: 20 | U125: No | V125: No | W125: No | X125: No | Y125: No | AF125: No | AI125: No | AJ125: No | AK125: No | AL125: No | AQ125: No | AR125: No | AS125: Site-based – single site | AT125: No | AU125: No | AV125: No | AW125: No | AX125: No | AY125: No | AZ125: No | BA125: No | BB125: No | BC125: No | BD125: No | BE125: No | BF125: No | BG125: No | BH125: 127 | BI125: 0 | BJ125: 127 | BK125: 0 | BM125: 1 | BO125: 0 | BP125: 0 | BS125: 0 | BT125: 0 | BU125: 105 | BV125: 127 | BW125: 0.83 | BX125: 43558.58116
A126: 124 | B126: 2019 | C126: ES | D126: The Sundari Foundation | E126: The Sundari Foundation Emergency 92 Beds PC-1516-FAM-1 | G126: C | H126: Facility-based beds | I126: NA | J126: 196 | K126: 65 | L126: 0 | M126: 0 | N126: 0 | O126: 18 | Q126: 0 | R126: 0 | U126: No | V126: No | W126: No | X126: No | Y126: No | AF126: No | AI126: No | AJ126: No | AK126: No | AL126: No | AQ126: No | AR126: No | AS126: Site-based – single site | AT126: No | AU126: No | AV126: No | AW126: No | AX126: No | AY126: No | AZ126: No | BA126: No | BB126: No | BC126: No | BD126: No | BE126: No | BF126: No | BG126: No | BH126: 196 | BI126: 196 | BJ126: 0 | BK126: 0 | BL126: 1 | BO126: 0 | BP126: 0 | BS126: 86 | BT126: 86 | BU126: 282 | BV126: 282 | BW126: 1 | BX126: 43579.5969
A127: 125 | B127: 2019 | C127: PSH | D127: Veterans Administration | E127: HUD VASH Permanent Housing | G127: C | I127: NA | J127: 193 | K127: 48 | L127: 488 | M127: 0 | N127: 193 | O127: 0 | P127: 0 | Q127: 488 | R127: 0 | S127: 0 | T127: 0 | U127: No | V127: Yes | W127: Yes | X127: No | Y127: No | AF127: No | AI127: No | AJ127: No | AK127: No | AL127: No | AQ127: No | AR127: No | AS127: Tenant-based – scattered site | AT127: No | AU127: No | AV127: No | AW127: No | AX127: No | AY127: No | AZ127: No | BA127: No | BB127: No | BC127: No | BD127: No | BE127: No | BF127: No | BG127: No | BH127: 681 | BI127: 0 | BJ127: 0 | BK127: 0 | BU127: 681 | BV127: 681 | BW127: 1 | BX127: 43567.51889
A128: 126 | B128: 2019 | C128: ES | D128: Victims Reponse, Inc. | E128: The Lodge | G128: C | H128: Facility-based beds | I128: DV | J128: 38 | K128: 10 | L128: 10 | M128: 0 | N128: 0 | O128: 0 | Q128: 0 | R128: 0 | U128: Yes | V128: No | W128: No | X128: No | Y128: No | AF128: No | AI128: No | AJ128: No | AK128: No | AL128: No | AQ128: No | AR128: No | AS128: Site-based – single site | AT128: No | AU128: No | AV128: No | AW128: No | AX128: No | AY128: No | AZ128: No | BA128: No | BB128: No | BC128: No | BD128: No | BE128: No | BF128: No | BG128: No | BH128: 48 | BO128: 0 | BP128: 0 | BS128: 0 | BT128: 0 | BU128: 48 | BV128: 48 | BW128: 1 | BX128: 43567.52882
A129: 127 | B129: 2019 | C129: PSH | D129: VOA/Biscayne Housing | E129: St. Martin's Place | G129: C | I129: NA | J129: 141 | K129: 47 | L129: 0 | M129: 0 | N129: 0 | O129: 0 | P129: 0 | Q129: 0 | R129: 0 | S129: 0 | T129: 0 | U129: No | V129: No | W129: No | X129: No | Y129: No | AF129: No | AI129: No | AJ129: No | AK129: No | AL129: No | AQ129: No | AR129: No | AS129: Site-based – single site | AT129: No | AU129: No | AV129: No | AW129: No | AX129: No | AY129: No | AZ129: No | BA129: No | BB129: No | BC129: No | BD129: No | BE129: No | BF129: No | BG129: No | BH129: 141 | BI129: 141 | BJ129: 0 | BK129: 0 | BL129: 1 | BU129: 141 | BV129: 141 | BW129: 1 | BX129: 43546.50769
A130: 128 | B130: 2019 | C130: TH | D130: Volunteers of America | E130: GPD Veterans | G130: C | I130: NA | J130: 0 | K130: 0 | L130: 30 | M130: 0 | N130: 0 | O130: 0 | Q130: 30 | R130: 0 | U130: No | V130: Yes | W130: No | X130: No | Y130: Yes | Z130: Yes | AF130: No | AI130: No | AJ130: No | AK130: No | AL130: No | AQ130: No | AR130: No | AS130: Site-based – single site | AT130: No | AU130: No | AV130: No | AW130: No | AX130: No | AY130: No | AZ130: No | BA130: No | BB130: No | BC130: No | BD130: No | BE130: No | BF130: No | BG130: No | BH130: 30 | BI130: 0 | BJ130: 30 | BK130: 0 | BM130: 1 | BU130: 27 | BV130: 30 | BW130: 0.9 | BX130: 43567.51016
A131: 129 | B131: 2019 | C131: PSH | D131: Volunteers of America | E131: Hogar I | G131: C | I131: NA | J131: 31 | K131: 7 | L131: 44 | M131: 0 | N131: 0 | O131: 0 | P131: 31 | Q131: 0 | R131: 0 | S131: 44 | T131: 0 | U131: No | V131: No | W131: No | X131: No | Y131: No | AF131: No | AI131: No | AJ131: No | AK131: No | AL131: No | AQ131: No | AR131: No | AS131: Site-based – single site | AT131: Yes | AU131: No | AV131: No | AW131: No | AX131: Yes | AY131: No | AZ131: No | BA131: Yes | BB131: No | BC131: No | BD131: No | BE131: No | BF131: No | BG131: No | BH131: 75 | BI131: 31 | BJ131: 44 | BK131: 0 | BL131: 1 | BM131: 1 | BU131: 75 | BV131: 75 | BW131: 1 | BX131: 43556.71866
A132: 130 | B132: 2019 | C132: PSH | D132: Volunteers of America | E132: Hogar II | G132: C | I132: NA | J132: 132 | K132: 37 | L132: 21 | M132: 0 | N132: 0 | O132: 0 | P132: 132 | Q132: 7 | R132: 0 | S132: 21 | T132: 0 | U132: No | V132: No | W132: No | X132: No | Y132: No | AF132: No | AI132: No | AJ132: No | AK132: No | AL132: No | AQ132: No | AR132: No | AS132: Site-based – clustered / multiple sites | AT132: Yes | AU132: No | AV132: No | AW132: No | AX132: Yes | AY132: No | AZ132: No | BA132: Yes | BB132: No | BC132: No | BD132: No | BE132: No | BF132: No | BG132: No | BH132: 153 | BI132: 132 | BJ132: 21 | BK132: 0 | BL132: 1 | BM132: 1 | BU132: 153 | BV132: 153 | BW132: 1 | BX132: 43581.55722

Sheet LIST OF PROJECTS TO BE REVIEWED (hidden)
B1: Navigation Pane
B4: GENERAL
B6: RATING
B8: RANKING
B11: LIST OF PROJECTS TO BE REVIEWED
C13: Sort projects by: | D13: You can sort the project list below using the drop down selection to the left. Please note that you cannot sort by “Renewal, New, Expansion….” until you have completed the green section of this form | U13: = | V13: Auto-populated cell. Cannot be edited | AB13: =SUMIF(FullPreparedList[Reallocated money],">0",FullPreparedList[Reallocated money]) -> 16338591
C14: Organization Name | I14: Use your Grant Inventory Worksheet and project spending records to complete these columns | Q14: Check once you have confirmed the bed inventory listed for the projects below is consistent with the number of beds listed for each project in your CoC’s Grant Inventory Worksheet. | AB14: √
B16: Project ID | C16: Organization Name | D16: Project Name | E16: Project Type | F16: McKinney- Vento | G16: McKinney- Vento: EsgRrh | H16: McKinney- Vento: EsgEs | I16: Grant Number | J16: CoC Amount Awarded Last Operating Year | K16: CoC Amount Expended Last Operating Year | L16: CoC Funding Requested | M16: Renewal, New, Expansion, Reallocate, Ignore | N16: Reallocated money | O16: Geo Code | P16: DV/HIV | Q16: All Fam Beds | R16: DV Fam Beds | S16: CH Fam Beds | T16: Vet Fam Beds | U16: Par Youth Beds | V16: Beds HH w/o Children | W16: Beds HH w/ only Children | X16: All Ind Beds | Y16: DV Ind Beds | Z16: CH Beds HH w/o Children | AA16: CH Beds HH w/ only Children | AB16: Total CH Ind Beds | AC16: Vet Ind Beds | AD16: Single Youth Beds | AE16: Is 100% Dedicated + or CH Fam (Yes/No) | AF16: Is 100% Dedicated + or CH Ind (Yes/No) | AG16: Is 100% DV (Yes/No) | AH16: CH Bed Inventory (PSH Only) | AI16: Vet Bed Inventory | AJ16: Youth Bed Inventory | AK16: Individually Ratable Project | AL16: Count Of Project Names | AM16: Project is Ignore
B17: 1 | C17: Better Way of Miami | D17: Better Way Apartment | E17: PSH | F17: Yes | G17: No | H17: No | I17: FL0170L4D001710 | J17: 526733 | K17: 193198.66 | M17: Renewal | N17: =IF(FullPreparedList[[#This Row],[Renewal, New, Expansion, Reallocate, Ignore]]="Renewal",FullPreparedList[[#This Row],[CoC Amount Awarded Last Operating Year]]-FullPreparedList[[#This Row],[CoC Funding Requested]],0) -> 526733 | Q17: 0 | R17: =IF(FullPreparedList[[#This Row],[DV/HIV]]="DV",FullPreparedList[[#This Row],[All Fam Beds]],0) -> 0 | S17: 0 | T17: 0 | U17: 0 | V17: 55 | W17: 0 | X17: =SUM(FullPreparedList[[#This Row],[Beds HH w/o Children]],FullPreparedList[[#This Row],[Beds HH w/ only Children]]) -> 55 | Y17: =IF(FullPreparedList[[#This Row],[DV/HIV]]="DV",FullPreparedList[[#This Row],[All Ind Beds]],0) -> 0 | Z17: 55 | AA17: 0 | AB17: =SUM(FullPreparedList[[#This Row],[CH Beds HH w/o Children]],FullPreparedList[[#This Row],[CH Beds HH w/ only Children]]) -> 55 | AC17: 3 | AD17: 0 | AH17: =SUM(FullPreparedList[[#This Row],[CH Fam Beds]],FullPreparedList[[#This Row],[Total CH Ind Beds]]) -> 55 | AI17: =SUM(FullPreparedList[[#This Row],[Vet Fam Beds]],FullPreparedList[[#This Row],[Vet Ind Beds]]) -> 3 | AJ17: =SUM(FullPreparedList[[#This Row],[Par Youth Beds]],FullPreparedList[[#This Row],[Single Youth Beds]]) -> 0 | AK17: =OR( AND(FullPreparedList[[#This Row],[Renewal, New, Expansion, Reallocate, Ignore]]="New",OR(FullPreparedList[[#This Row],[Project Type]]="RRH",FullPreparedList[[#This Row],[Project Type]]="PSH",FullPreparedList[[#This Row],[Project Type]]="TH/RRH")), AND(FullPreparedList[[#This Row],[Renewal, New, Expansion, Reallocate, Ignore]]="Renewal",OR(FullPreparedList[[#This Row],[Project Type]]="RRH",FullPreparedList[[#This Row],[Project Type]]="PSH",FullPreparedList[[#This Row],[Project Type]]="TH",FullPreparedList[[#This Row],[Project Type]]="OPH",FullPreparedList[[#This Row],[Project Type]]="DEM")), AND(FullPreparedList[[#This Row],[Renewal, New, Expansion, Reallocate, Ignore]]="Expansion",OR(FullPreparedList[[#This Row],[Project Type]]="RRH",FullPreparedList[[#This Row],[Project Type]]="PSH",FullPreparedList[[#This Row],[Project Type]]="TH/RRH"))) -> TRUE | AL17: =COUNTIF(INDEX(FullPreparedList[Project Name],1):FullPreparedList[[#This Row],[Project Name]],FullPreparedList[[#This Row],[Project Name]]) -> 1 | AM17: =IF(AND(FullPreparedList[[#This Row],[Project Name]]<>"",FullPreparedList[[#This Row],[Renewal, New, Expansion, Reallocate, Ignore]]="Ignore"),0,IF(FullPreparedList[[#This Row],[Project Name]]="",-999,1)) -> 1
B18: 2 | C18: Better Way of Miami | D18: Better Way West Apartment | E18: PSH | F18: Yes | G18: No | H18: No | M18: Renewal | N18: =IF(FullPreparedList[[#This Row],[Renewal, New, Expansion, Reallocate, Ignore]]="Renewal",FullPreparedList[[#This Row],[CoC Amount Awarded Last Operating Year]]-FullPreparedList[[#This Row],[CoC Funding Requested]],0) -> 0 | Q18: 0 | R18: =IF(FullPreparedList[[#This Row],[DV/HIV]]="DV",FullPreparedList[[#This Row],[All Fam Beds]],0) -> 0 | T18: 0 | U18: 0 | V18: 36 | W18: 0 | X18: =SUM(FullPreparedList[[#This Row],[Beds HH w/o Children]],FullPreparedList[[#This Row],[Beds HH w/ only Children]]) -> 36 | Y18: =IF(FullPreparedList[[#This Row],[DV/HIV]]="DV",FullPreparedList[[#This Row],[All Ind Beds]],0) -> 0 | Z18: 36 | AB18: =SUM(FullPreparedList[[#This Row],[CH Beds HH w/o Children]],FullPreparedList[[#This Row],[CH Beds HH w/ only Children]]) -> 36 | AC18: 2 | AD18: 0 | AH18: =SUM(FullPreparedList[[#This Row],[CH Fam Beds]],FullPreparedList[[#This Row],[Total CH Ind Beds]]) -> 36 | AI18: =SUM(FullPreparedList[[#This Row],[Vet Fam Beds]],FullPreparedList[[#This Row],[Vet Ind Beds]]) -> 2 | AJ18: =SUM(FullPreparedList[[#This Row],[Par Youth Beds]],FullPreparedList[[#This Row],[Single Youth Beds]]) -> 0 | AK18: =OR( AND(FullPreparedList[[#This Row],[Renewal, New, Expansion, Reallocate, Ignore]]="New",OR(FullPreparedList[[#This Row],[Project Type]]="RRH",FullPreparedList[[#This Row],[Project Type]]="PSH",FullPreparedList[[#This Row],[Project Type]]="TH/RRH")), AND(FullPreparedList[[#This Row],[Renewal, New, Expansion, Reallocate, Ignore]]="Renewal",OR(FullPreparedList[[#This Row],[Project Type]]="RRH",FullPreparedList[[#This Row],[Project Type]]="PSH",FullPreparedList[[#This Row],[Project Type]]="TH",FullPreparedList[[#This Row],[Project Type]]="OPH",FullPreparedList[[#This Row],[Project Type]]="DEM")), AND(FullPreparedList[[#This Row],[Renewal, New, Expansion, Reallocate, Ignore]]="Expansion",OR(FullPreparedList[[#This Row],[Project Type]]="RRH",FullPreparedList[[#This Row],[Project Type]]="PSH",FullPreparedList[[#This Row],[Project Type]]="TH/RRH"))) -> TRUE | AL18: =COUNTIF(INDEX(FullPreparedList[Project Name],1):FullPreparedList[[#This Row],[Project Name]],FullPreparedList[[#This Row],[Project Name]]) -> 1 | AM18: =IF(AND(FullPreparedList[[#This Row],[Project Name]]<>"",FullPreparedList[[#This Row],[Renewal, New, Expansion, Reallocate, Ignore]]="Ignore"),0,IF(FullPreparedList[[#This Row],[Project Name]]="",-999,1)) -> 1
B19: 3 | C19: Better Way of Miami | D19: Partners PSH | E19: PSH | F19: Yes | G19: No | H19: No | I19: FL0218L4D001710 | J19: 803274 | K19: 339736 | M19: Renewal | N19: =IF(FullPreparedList[[#This Row],[Renewal, New, Expansion, Reallocate, Ignore]]="Renewal",FullPreparedList[[#This Row],[CoC Amount Awarded Last Operating Year]]-FullPreparedList[[#This Row],[CoC Funding Requested]],0) -> 803274 | Q19: 50 | R19: =IF(FullPreparedList[[#This Row],[DV/HIV]]="DV",FullPreparedList[[#This Row],[All Fam Beds]],0) -> 0 | S19: 50 | T19: 0 | U19: 0 | V19: 24 | W19: 0 | X19: =SUM(FullPreparedList[[#This Row],[Beds HH w/o Children]],FullPreparedList[[#This Row],[Beds HH w/ only Children]]) -> 24 | Y19: =IF(FullPreparedList[[#This Row],[DV/HIV]]="DV",FullPreparedList[[#This Row],[All Ind Beds]],0) -> 0 | Z19: 24 | AB19: =SUM(FullPreparedList[[#This Row],[CH Beds HH w/o Children]],FullPreparedList[[#This Row],[CH Beds HH w/ only Children]]) -> 24 | AC19: 0 | AD19: 0 | AH19: =SUM(FullPreparedList[[#This Row],[CH Fam Beds]],FullPreparedList[[#This Row],[Total CH Ind Beds]]) -> 74 | AI19: =SUM(FullPreparedList[[#This Row],[Vet Fam Beds]],FullPreparedList[[#This Row],[Vet Ind Beds]]) -> 0 | AJ19: =SUM(FullPreparedList[[#This Row],[Par Youth Beds]],FullPreparedList[[#This Row],[Single Youth Beds]]) -> 0 | AK19: =OR( AND(FullPreparedList[[#This Row],[Renewal, New, Expansion, Reallocate, Ignore]]="New",OR(FullPreparedList[[#This Row],[Project Type]]="RRH",FullPreparedList[[#This Row],[Project Type]]="PSH",FullPreparedList[[#This Row],[Project Type]]="TH/RRH")), AND(FullPreparedList[[#This Row],[Renewal, New, Expansion, Reallocate, Ignore]]="Renewal",OR(FullPreparedList[[#This Row],[Project Type]]="RRH",FullPreparedList[[#This Row],[Project Type]]="PSH",FullPreparedList[[#This Row],[Project Type]]="TH",FullPreparedList[[#This Row],[Project Type]]="OPH",FullPreparedList[[#This Row],[Project Type]]="DEM")), AND(FullPreparedList[[#This Row],[Renewal, New, Expansion, Reallocate, Ignore]]="Expansion",OR(FullPreparedList[[#This Row],[Project Type]]="RRH",FullPreparedList[[#This Row],[Project Type]]="PSH",FullPreparedList[[#This Row],[Project Type]]="TH/RRH"))) -> TRUE | AL19: =COUNTIF(INDEX(FullPreparedList[Project Name],1):FullPreparedList[[#This Row],[Project Name]],FullPreparedList[[#This Row],[Project Name]]) -> 1 | AM19: =IF(AND(FullPreparedList[[#This Row],[Project Name]]<>"",FullPreparedList[[#This Row],[Renewal, New, Expansion, Reallocate, Ignore]]="Ignore"),0,IF(FullPreparedList[[#This Row],[Project Name]]="",-999,1)) -> 1
B20: 4 | C20: Camillus House | D20: Archbishop Carroll Homes | E20: PSH | F20: Yes | G20: No | H20: No | I20: FL0311L4D001709 | J20: 976704 | K20: 331859 | M20: Renewal | N20: =IF(FullPreparedList[[#This Row],[Renewal, New, Expansion, Reallocate, Ignore]]="Renewal",FullPreparedList[[#This Row],[CoC Amount Awarded Last Operating Year]]-FullPreparedList[[#This Row],[CoC Funding Requested]],0) -> 976704 | Q20: 0 | R20: =IF(FullPreparedList[[#This Row],[DV/HIV]]="DV",FullPreparedList[[#This Row],[All Fam Beds]],0) -> 0 | S20: 0 | T20: 0 | U20: 0 | V20: 65 | W20: 0 | X20: =SUM(FullPreparedList[[#This Row],[Beds HH w/o Children]],FullPreparedList[[#This Row],[Beds HH w/ only Children]]) -> 65 | Y20: =IF(FullPreparedList[[#This Row],[DV/HIV]]="DV",FullPreparedList[[#This Row],[All Ind Beds]],0) -> 0 | Z20: 65 | AA20: 0 | AB20: =SUM(FullPreparedList[[#This Row],[CH Beds HH w/o Children]],FullPreparedList[[#This Row],[CH Beds HH w/ only Children]]) -> 65 | AC20: 0 | AD20: 0 | AH20: =SUM(FullPreparedList[[#This Row],[CH Fam Beds]],FullPreparedList[[#This Row],[Total CH Ind Beds]]) -> 65 | AI20: =SUM(FullPreparedList[[#This Row],[Vet Fam Beds]],FullPreparedList[[#This Row],[Vet Ind Beds]]) -> 0 | AJ20: =SUM(FullPreparedList[[#This Row],[Par Youth Beds]],FullPreparedList[[#This Row],[Single Youth Beds]]) -> 0 | AK20: =OR( AND(FullPreparedList[[#This Row],[Renewal, New, Expansion, Reallocate, Ignore]]="New",OR(FullPreparedList[[#This Row],[Project Type]]="RRH",FullPreparedList[[#This Row],[Project Type]]="PSH",FullPreparedList[[#This Row],[Project Type]]="TH/RRH")), AND(FullPreparedList[[#This Row],[Renewal, New, Expansion, Reallocate, Ignore]]="Renewal",OR(FullPreparedList[[#This Row],[Project Type]]="RRH",FullPreparedList[[#This Row],[Project Type]]="PSH",FullPreparedList[[#This Row],[Project Type]]="TH",FullPreparedList[[#This Row],[Project Type]]="OPH",FullPreparedList[[#This Row],[Project Type]]="DEM")), AND(FullPreparedList[[#This Row],[Renewal, New, Expansion, Reallocate, Ignore]]="Expansion",OR(FullPreparedList[[#This Row],[Project Type]]="RRH",FullPreparedList[[#This Row],[Project Type]]="PSH",FullPreparedList[[#This Row],[Project Type]]="TH/RRH"))) -> TRUE | AL20: =COUNTIF(INDEX(FullPreparedList[Project Name],1):FullPreparedList[[#This Row],[Project Name]],FullPreparedList[[#This Row],[Project Name]]) -> 1 | AM20: =IF(AND(FullPreparedList[[#This Row],[Project Name]]<>"",FullPreparedList[[#This Row],[Renewal, New, Expansion, Reallocate, Ignore]]="Ignore"),0,IF(FullPreparedList[[#This Row],[Project Name]]="",-999,1)) -> 1
B21: 5 | C21: Camillus House | D21: Baptist Emergency Shelter | E21: ES | F21: No | G21: No | H21: No | M21: Ignore | N21: =IF(FullPreparedList[[#This Row],[Renewal, New, Expansion, Reallocate, Ignore]]="Renewal",FullPreparedList[[#This Row],[CoC Amount Awarded Last Operating Year]]-FullPreparedList[[#This Row],[CoC Funding Requested]],0) -> 0 | Q21: 0 | R21: =IF(FullPreparedList[[#This Row],[DV/HIV]]="DV",FullPreparedList[[#This Row],[All Fam Beds]],0) -> 0 | T21: 0 | U21: 0 | V21: 5 | W21: 0 | X21: =SUM(FullPreparedList[[#This Row],[Beds HH w/o Children]],FullPreparedList[[#This Row],[Beds HH w/ only Children]]) -> 5 | Y21: =IF(FullPreparedList[[#This Row],[DV/HIV]]="DV",FullPreparedList[[#This Row],[All Ind Beds]],0) -> 0 | AB21: =SUM(FullPreparedList[[#This Row],[CH Beds HH w/o Children]],FullPreparedList[[#This Row],[CH Beds HH w/ only Children]]) -> 0 | AC21: 0 | AD21: 0 | AH21: =SUM(FullPreparedList[[#This Row],[CH Fam Beds]],FullPreparedList[[#This Row],[Total CH Ind Beds]]) -> 0 | AI21: =SUM(FullPreparedList[[#This Row],[Vet Fam Beds]],FullPreparedList[[#This Row],[Vet Ind Beds]]) -> 0 | AJ21: =SUM(FullPreparedList[[#This Row],[Par Youth Beds]],FullPreparedList[[#This Row],[Single Youth Beds]]) -> 0 | AK21: =OR( AND(FullPreparedList[[#This Row],[Renewal, New, Expansion, Reallocate, Ignore]]="New",OR(FullPreparedList[[#This Row],[Project Type]]="RRH",FullPreparedList[[#This Row],[Project Type]]="PSH",FullPreparedList[[#This Row],[Project Type]]="TH/RRH")), AND(FullPreparedList[[#This Row],[Renewal, New, Expansion, Reallocate, Ignore]]="Renewal",OR(FullPreparedList[[#This Row],[Project Type]]="RRH",FullPreparedList[[#This Row],[Project Type]]="PSH",FullPreparedList[[#This Row],[Project Type]]="TH",FullPreparedList[[#This Row],[Project Type]]="OPH",FullPreparedList[[#This Row],[Project Type]]="DEM")), AND(FullPreparedList[[#This Row],[Renewal, New, Expansion, Reallocate, Ignore]]="Expansion",OR(FullPreparedList[[#This Row],[Project Type]]="RRH",FullPreparedList[[#This Row],[Project Type]]="PSH",FullPreparedList[[#This Row],[Project Type]]="TH/RRH"))) -> FALSE | AL21: =COUNTIF(INDEX(FullPreparedList[Project Name],1):FullPreparedList[[#This Row],[Project Name]],FullPreparedList[[#This Row],[Project Name]]) -> 1 | AM21: =IF(AND(FullPreparedList[[#This Row],[Project Name]]<>"",FullPreparedList[[#This Row],[Renewal, New, Expansion, Reallocate, Ignore]]="Ignore"),0,IF(FullPreparedList[[#This Row],[Project Name]]="",-999,1)) -> 0
B22: 6 | C22: Camillus House | D22: Beckham Hall Shelter | E22: ES | F22: Yes | G22: No | H22: Yes | M22: Ignore | N22: =IF(FullPreparedList[[#This Row],[Renewal, New, Expansion, Reallocate, Ignore]]="Renewal",FullPreparedList[[#This Row],[CoC Amount Awarded Last Operating Year]]-FullPreparedList[[#This Row],[CoC Funding Requested]],0) -> 0 | Q22: 0 | R22: =IF(FullPreparedList[[#This Row],[DV/HIV]]="DV",FullPreparedList[[#This Row],[All Fam Beds]],0) -> 0 | T22: 0 | U22: 0 | V22: 64 | W22: 0 | X22: =SUM(FullPreparedList[[#This Row],[Beds HH w/o Children]],FullPreparedList[[#This Row],[Beds HH w/ only Children]]) -> 64 | Y22: =IF(FullPreparedList[[#This Row],[DV/HIV]]="DV",FullPreparedList[[#This Row],[All Ind Beds]],0) -> 0 | AB22: =SUM(FullPreparedList[[#This Row],[CH Beds HH w/o Children]],FullPreparedList[[#This Row],[CH Beds HH w/ only Children]]) -> 0 | AC22: 0 | AD22: 0 | AH22: =SUM(FullPreparedList[[#This Row],[CH Fam Beds]],FullPreparedList[[#This Row],[Total CH Ind Beds]]) -> 0 | AI22: =SUM(FullPreparedList[[#This Row],[Vet Fam Beds]],FullPreparedList[[#This Row],[Vet Ind Beds]]) -> 0 | AJ22: =SUM(FullPreparedList[[#This Row],[Par Youth Beds]],FullPreparedList[[#This Row],[Single Youth Beds]]) -> 0 | AK22: =OR( AND(FullPreparedList[[#This Row],[Renewal, New, Expansion, Reallocate, Ignore]]="New",OR(FullPreparedList[[#This Row],[Project Type]]="RRH",FullPreparedList[[#This Row],[Project Type]]="PSH",FullPreparedList[[#This Row],[Project Type]]="TH/RRH")), AND(FullPreparedList[[#This Row],[Renewal, New, Expansion, Reallocate, Ignore]]="Renewal",OR(FullPreparedList[[#This Row],[Project Type]]="RRH",FullPreparedList[[#This Row],[Project Type]]="PSH",FullPreparedList[[#This Row],[Project Type]]="TH",FullPreparedList[[#This Row],[Project Type]]="OPH",FullPreparedList[[#This Row],[Project Type]]="DEM")), AND(FullPreparedList[[#This Row],[Renewal, New, Expansion, Reallocate, Ignore]]="Expansion",OR(FullPreparedList[[#This Row],[Project Type]]="RRH",FullPreparedList[[#This Row],[Project Type]]="PSH",FullPreparedList[[#This Row],[Project Type]]="TH/RRH"))) -> FALSE | AL22: =COUNTIF(INDEX(FullPreparedList[Project Name],1):FullPreparedList[[#This Row],[Project Name]],FullPreparedList[[#This Row],[Project Name]]) -> 1 | AM22: =IF(AND(FullPreparedList[[#This Row],[Project Name]]<>"",FullPreparedList[[#This Row],[Renewal, New, Expansion, Reallocate, Ignore]]="Ignore"),0,IF(FullPreparedList[[#This Row],[Project Name]]="",-999,1)) -> 0
B23: 7 | C23: Camillus House | D23: Bethesda Place (Building D) | E23: PSH | F23: Yes | G23: No | H23: No | M23: Ignore | N23: =IF(FullPreparedList[[#This Row],[Renewal, New, Expansion, Reallocate, Ignore]]="Renewal",FullPreparedList[[#This Row],[CoC Amount Awarded Last Operating Year]]-FullPreparedList[[#This Row],[CoC Funding Requested]],0) -> 0 | Q23: 0 | R23: =IF(FullPreparedList[[#This Row],[DV/HIV]]="DV",FullPreparedList[[#This Row],[All Fam Beds]],0) -> 0 | S23: 0 | T23: 0 | U23: 0 | V23: 36 | W23: 0 | X23: =SUM(FullPreparedList[[#This Row],[Beds HH w/o Children]],FullPreparedList[[#This Row],[Beds HH w/ only Children]]) -> 36 | Y23: =IF(FullPreparedList[[#This Row],[DV/HIV]]="DV",FullPreparedList[[#This Row],[All Ind Beds]],0) -> 0 | Z23: 36 | AA23: 0 | AB23: =SUM(FullPreparedList[[#This Row],[CH Beds HH w/o Children]],FullPreparedList[[#This Row],[CH Beds HH w/ only Children]]) -> 36 | AC23: 0 | AD23: 0 | AH23: =SUM(FullPreparedList[[#This Row],[CH Fam Beds]],FullPreparedList[[#This Row],[Total CH Ind Beds]]) -> 36 | AI23: =SUM(FullPreparedList[[#This Row],[Vet Fam Beds]],FullPreparedList[[#This Row],[Vet Ind Beds]]) -> 0 | AJ23: =SUM(FullPreparedList[[#This Row],[Par Youth Beds]],FullPreparedList[[#This Row],[Single Youth Beds]]) -> 0 | AK23: =OR( AND(FullPreparedList[[#This Row],[Renewal, New, Expansion, Reallocate, Ignore]]="New",OR(FullPreparedList[[#This Row],[Project Type]]="RRH",FullPreparedList[[#This Row],[Project Type]]="PSH",FullPreparedList[[#This Row],[Project Type]]="TH/RRH")), AND(FullPreparedList[[#This Row],[Renewal, New, Expansion, Reallocate, Ignore]]="Renewal",OR(FullPreparedList[[#This Row],[Project Type]]="RRH",FullPreparedList[[#This Row],[Project Type]]="PSH",FullPreparedList[[#This Row],[Project Type]]="TH",FullPreparedList[[#This Row],[Project Type]]="OPH",FullPreparedList[[#This Row],[Project Type]]="DEM")), AND(FullPreparedList[[#This Row],[Renewal, New, Expansion, Reallocate, Ignore]]="Expansion",OR(FullPreparedList[[#This Row],[Project Type]]="RRH",FullPreparedList[[#This Row],[Project Type]]="PSH",FullPreparedList[[#This Row],[Project Type]]="TH/RRH"))) -> FALSE | AL23: =COUNTIF(INDEX(FullPreparedList[Project Name],1):FullPreparedList[[#This Row],[Project Name]],FullPreparedList[[#This Row],[Project Name]]) -> 1 | AM23: =IF(AND(FullPreparedList[[#This Row],[Project Name]]<>"",FullPreparedList[[#This Row],[Renewal, New, Expansion, Reallocate, Ignore]]="Ignore"),0,IF(FullPreparedList[[#This Row],[Project Name]]="",-999,1)) -> 0
B24: 8 | C24: Camillus House | D24: Br. Keily Permanent Supportive Housing | E24: PSH | F24: Yes | G24: No | H24: No | I24: FL0590L4D001601 | J24: 538124 | K24: 249822.5 | M24: Renewal | N24: =IF(FullPreparedList[[#This Row],[Renewal, New, Expansion, Reallocate, Ignore]]="Renewal",FullPreparedList[[#This Row],[CoC Amount Awarded Last Operating Year]]-FullPreparedList[[#This Row],[CoC Funding Requested]],0) -> 538124 | Q24: 0 | R24: =IF(FullPreparedList[[#This Row],[DV/HIV]]="DV",FullPreparedList[[#This Row],[All Fam Beds]],0) -> 0 | S24: 0 | T24: 0 | U24: 0 | V24: 27 | W24: 0 | X24: =SUM(FullPreparedList[[#This Row],[Beds HH w/o Children]],FullPreparedList[[#This Row],[Beds HH w/ only Children]]) -> 27 | Y24: =IF(FullPreparedList[[#This Row],[DV/HIV]]="DV",FullPreparedList[[#This Row],[All Ind Beds]],0) -> 0 | Z24: 27 | AA24: 0 | AB24: =SUM(FullPreparedList[[#This Row],[CH Beds HH w/o Children]],FullPreparedList[[#This Row],[CH Beds HH w/ only Children]]) -> 27 | AC24: 0 | AD24: 0 | AH24: =SUM(FullPreparedList[[#This Row],[CH Fam Beds]],FullPreparedList[[#This Row],[Total CH Ind Beds]]) -> 27 | AI24: =SUM(FullPreparedList[[#This Row],[Vet Fam Beds]],FullPreparedList[[#This Row],[Vet Ind Beds]]) -> 0 | AJ24: =SUM(FullPreparedList[[#This Row],[Par Youth Beds]],FullPreparedList[[#This Row],[Single Youth Beds]]) -> 0 | AK24: =OR( AND(FullPreparedList[[#This Row],[Renewal, New, Expansion, Reallocate, Ignore]]="New",OR(FullPreparedList[[#This Row],[Project Type]]="RRH",FullPreparedList[[#This Row],[Project Type]]="PSH",FullPreparedList[[#This Row],[Project Type]]="TH/RRH")), AND(FullPreparedList[[#This Row],[Renewal, New, Expansion, Reallocate, Ignore]]="Renewal",OR(FullPreparedList[[#This Row],[Project Type]]="RRH",FullPreparedList[[#This Row],[Project Type]]="PSH",FullPreparedList[[#This Row],[Project Type]]="TH",FullPreparedList[[#This Row],[Project Type]]="OPH",FullPreparedList[[#This Row],[Project Type]]="DEM")), AND(FullPreparedList[[#This Row],[Renewal, New, Expansion, Reallocate, Ignore]]="Expansion",OR(FullPreparedList[[#This Row],[Project Type]]="RRH",FullPreparedList[[#This Row],[Project Type]]="PSH",FullPreparedList[[#This Row],[Project Type]]="TH/RRH"))) -> TRUE | AL24: =COUNTIF(INDEX(FullPreparedList[Project Name],1):FullPreparedList[[#This Row],[Project Name]],FullPreparedList[[#This Row],[Project Name]]) -> 1 | AM24: =IF(AND(FullPreparedList[[#This Row],[Project Name]]<>"",FullPreparedList[[#This Row],[Renewal, New, Expansion, Reallocate, Ignore]]="Ignore"),0,IF(FullPreparedList[[#This Row],[Project Name]]="",-999,1)) -> 1
B25: 9 | C25: Camillus House | D25: Brother Mathias Place | E25: PSH | F25: Yes | G25: No | H25: No | I25: FL0174L4D001710 | J25: 241280 | K25: 156848 | M25: Renewal | N25: =IF(FullPreparedList[[#This Row],[Renewal, New, Expansion, Reallocate, Ignore]]="Renewal",FullPreparedList[[#This Row],[CoC Amount Awarded Last Operating Year]]-FullPreparedList[[#This Row],[CoC Funding Requested]],0) -> 241280 | Q25: 35 | R25: =IF(FullPreparedList[[#This Row],[DV/HIV]]="DV",FullPreparedList[[#This Row],[All Fam Beds]],0) -> 0 | S25: 35 | T25: 0 | U25: 0 | V25: 0 | W25: 0 | X25: =SUM(FullPreparedList[[#This Row],[Beds HH w/o Children]],FullPreparedList[[#This Row],[Beds HH w/ only Children]]) -> 0 | Y25: =IF(FullPreparedList[[#This Row],[DV/HIV]]="DV",FullPreparedList[[#This Row],[All Ind Beds]],0) -> 0 | Z25: 0 | AA25: 0 | AB25: =SUM(FullPreparedList[[#This Row],[CH Beds HH w/o Children]],FullPreparedList[[#This Row],[CH Beds HH w/ only Children]]) -> 0 | AC25: 0 | AD25: 0 | AH25: =SUM(FullPreparedList[[#This Row],[CH Fam Beds]],FullPreparedList[[#This Row],[Total CH Ind Beds]]) -> 35 | AI25: =SUM(FullPreparedList[[#This Row],[Vet Fam Beds]],FullPreparedList[[#This Row],[Vet Ind Beds]]) -> 0 | AJ25: =SUM(FullPreparedList[[#This Row],[Par Youth Beds]],FullPreparedList[[#This Row],[Single Youth Beds]]) -> 0 | AK25: =OR( AND(FullPreparedList[[#This Row],[Renewal, New, Expansion, Reallocate, Ignore]]="New",OR(FullPreparedList[[#This Row],[Project Type]]="RRH",FullPreparedList[[#This Row],[Project Type]]="PSH",FullPreparedList[[#This Row],[Project Type]]="TH/RRH")), AND(FullPreparedList[[#This Row],[Renewal, New, Expansion, Reallocate, Ignore]]="Renewal",OR(FullPreparedList[[#This Row],[Project Type]]="RRH",FullPreparedList[[#This Row],[Project Type]]="PSH",FullPreparedList[[#This Row],[Project Type]]="TH",FullPreparedList[[#This Row],[Project Type]]="OPH",FullPreparedList[[#This Row],[Project Type]]="DEM")), AND(FullPreparedList[[#This Row],[Renewal, New, Expansion, Reallocate, Ignore]]="Expansion",OR(FullPreparedList[[#This Row],[Project Type]]="RRH",FullPreparedList[[#This Row],[Project Type]]="PSH",FullPreparedList[[#This Row],[Project Type]]="TH/RRH"))) -> TRUE | AL25: =COUNTIF(INDEX(FullPreparedList[Project Name],1):FullPreparedList[[#This Row],[Project Name]],FullPreparedList[[#This Row],[Project Name]]) -> 1 | AM25: =IF(AND(FullPreparedList[[#This Row],[Project Name]]<>"",FullPreparedList[[#This Row],[Renewal, New, Expansion, Reallocate, Ignore]]="Ignore"),0,IF(FullPreparedList[[#This Row],[Project Name]]="",-999,1)) -> 1
B26: 10 | C26: Camillus House | D26: Camillus House - ISPA After-Care Completion | E26: TH | F26: No | G26: No | H26: No | M26: Ignore | N26: =IF(FullPreparedList[[#This Row],[Renewal, New, Expansion, Reallocate, Ignore]]="Renewal",FullPreparedList[[#This Row],[CoC Amount Awarded Last Operating Year]]-FullPreparedList[[#This Row],[CoC Funding Requested]],0) -> 0 | Q26: 0 | R26: =IF(FullPreparedList[[#This Row],[DV/HIV]]="DV",FullPreparedList[[#This Row],[All Fam Beds]],0) -> 0 | T26: 0 | U26: 0 | V26: 10 | W26: 0 | X26: =SUM(FullPreparedList[[#This Row],[Beds HH w/o Children]],FullPreparedList[[#This Row],[Beds HH w/ only Children]]) -> 10 | Y26: =IF(FullPreparedList[[#This Row],[DV/HIV]]="DV",FullPreparedList[[#This Row],[All Ind Beds]],0) -> 0 | AB26: =SUM(FullPreparedList[[#This Row],[CH Beds HH w/o Children]],FullPreparedList[[#This Row],[CH Beds HH w/ only Children]]) -> 0 | AC26: 0 | AD26: 0 | AH26: =SUM(FullPreparedList[[#This Row],[CH Fam Beds]],FullPreparedList[[#This Row],[Total CH Ind Beds]]) -> 0 | AI26: =SUM(FullPreparedList[[#This Row],[Vet Fam Beds]],FullPreparedList[[#This Row],[Vet Ind Beds]]) -> 0 | AJ26: =SUM(FullPreparedList[[#This Row],[Par Youth Beds]],FullPreparedList[[#This Row],[Single Youth Beds]]) -> 0 | AK26: =OR( AND(FullPreparedList[[#This Row],[Renewal, New, Expansion, Reallocate, Ignore]]="New",OR(FullPreparedList[[#This Row],[Project Type]]="RRH",FullPreparedList[[#This Row],[Project Type]]="PSH",FullPreparedList[[#This Row],[Project Type]]="TH/RRH")), AND(FullPreparedList[[#This Row],[Renewal, New, Expansion, Reallocate, Ignore]]="Renewal",OR(FullPreparedList[[#This Row],[Project Type]]="RRH",FullPreparedList[[#This Row],[Project Type]]="PSH",FullPreparedList[[#This Row],[Project Type]]="TH",FullPreparedList[[#This Row],[Project Type]]="OPH",FullPreparedList[[#This Row],[Project Type]]="DEM")), AND(FullPreparedList[[#This Row],[Renewal, New, Expansion, Reallocate, Ignore]]="Expansion",OR(FullPreparedList[[#This Row],[Project Type]]="RRH",FullPreparedList[[#This Row],[Project Type]]="PSH",FullPreparedList[[#This Row],[Project Type]]="TH/RRH"))) -> FALSE | AL26: =COUNTIF(INDEX(FullPreparedList[Project Name],1):FullPreparedList[[#This Row],[Project Name]],FullPreparedList[[#This Row],[Project Name]]) -> 1 | AM26: =IF(AND(FullPreparedList[[#This Row],[Project Name]]<>"",FullPreparedList[[#This Row],[Renewal, New, Expansion, Reallocate, Ignore]]="Ignore"),0,IF(FullPreparedList[[#This Row],[Project Name]]="",-999,1)) -> 0
B27: 11 | C27: Camillus House | D27: Camillus House - ISPA Re-Entry Transitional Housing Program (SFBHN) | E27: TH | F27: No | G27: No | H27: No | M27: Ignore | N27: =IF(FullPreparedList[[#This Row],[Renewal, New, Expansion, Reallocate, Ignore]]="Renewal",FullPreparedList[[#This Row],[CoC Amount Awarded Last Operating Year]]-FullPreparedList[[#This Row],[CoC Funding Requested]],0) -> 0 | Q27: 0 | R27: =IF(FullPreparedList[[#This Row],[DV/HIV]]="DV",FullPreparedList[[#This Row],[All Fam Beds]],0) -> 0 | T27: 0 | U27: 0 | V27: 15 | W27: 0 | X27: =SUM(FullPreparedList[[#This Row],[Beds HH w/o Children]],FullPreparedList[[#This Row],[Beds HH w/ only Children]]) -> 15 | Y27: =IF(FullPreparedList[[#This Row],[DV/HIV]]="DV",FullPreparedList[[#This Row],[All Ind Beds]],0) -> 0 | AB27: =SUM(FullPreparedList[[#This Row],[CH Beds HH w/o Children]],FullPreparedList[[#This Row],[CH Beds HH w/ only Children]]) -> 0 | AC27: 0 | AD27: 0 | AH27: =SUM(FullPreparedList[[#This Row],[CH Fam Beds]],FullPreparedList[[#This Row],[Total CH Ind Beds]]) -> 0 | AI27: =SUM(FullPreparedList[[#This Row],[Vet Fam Beds]],FullPreparedList[[#This Row],[Vet Ind Beds]]) -> 0 | AJ27: =SUM(FullPreparedList[[#This Row],[Par Youth Beds]],FullPreparedList[[#This Row],[Single Youth Beds]]) -> 0 | AK27: =OR( AND(FullPreparedList[[#This Row],[Renewal, New, Expansion, Reallocate, Ignore]]="New",OR(FullPreparedList[[#This Row],[Project Type]]="RRH",FullPreparedList[[#This Row],[Project Type]]="PSH",FullPreparedList[[#This Row],[Project Type]]="TH/RRH")), AND(FullPreparedList[[#This Row],[Renewal, New, Expansion, Reallocate, Ignore]]="Renewal",OR(FullPreparedList[[#This Row],[Project Type]]="RRH",FullPreparedList[[#This Row],[Project Type]]="PSH",FullPreparedList[[#This Row],[Project Type]]="TH",FullPreparedList[[#This Row],[Project Type]]="OPH",FullPreparedList[[#This Row],[Project Type]]="DEM")), AND(FullPreparedList[[#This Row],[Renewal, New, Expansion, Reallocate, Ignore]]="Expansion",OR(FullPreparedList[[#This Row],[Project Type]]="RRH",FullPreparedList[[#This Row],[Project Type]]="PSH",FullPreparedList[[#This Row],[Project Type]]="TH/RRH"))) -> FALSE | AL27: =COUNTIF(INDEX(FullPreparedList[Project Name],1):FullPreparedList[[#This Row],[Project Name]],FullPreparedList[[#This Row],[Project Name]]) -> 1 | AM27: =IF(AND(FullPreparedList[[#This Row],[Project Name]]<>"",FullPreparedList[[#This Row],[Renewal, New, Expansion, Reallocate, Ignore]]="Ignore"),0,IF(FullPreparedList[[#This Row],[Project Name]]="",-999,1)) -> 0
B28: 12 | C28: Camillus House | D28: Camillus House - ISPA Substance Abuse Transitional Housing Program (SFBHN) | E28: TH | F28: No | G28: No | H28: No | M28: Ignore | N28: =IF(FullPreparedList[[#This Row],[Renewal, New, Expansion, Reallocate, Ignore]]="Renewal",FullPreparedList[[#This Row],[CoC Amount Awarded Last Operating Year]]-FullPreparedList[[#This Row],[CoC Funding Requested]],0) -> 0 | Q28: 0 | R28: =IF(FullPreparedList[[#This Row],[DV/HIV]]="DV",FullPreparedList[[#This Row],[All Fam Beds]],0) -> 0 | T28: 0 | U28: 0 | V28: 26 | W28: 0 | X28: =SUM(FullPreparedList[[#This Row],[Beds HH w/o Children]],FullPreparedList[[#This Row],[Beds HH w/ only Children]]) -> 26 | Y28: =IF(FullPreparedList[[#This Row],[DV/HIV]]="DV",FullPreparedList[[#This Row],[All Ind Beds]],0) -> 0 | AB28: =SUM(FullPreparedList[[#This Row],[CH Beds HH w/o Children]],FullPreparedList[[#This Row],[CH Beds HH w/ only Children]]) -> 0 | AC28: 0 | AD28: 0 | AH28: =SUM(FullPreparedList[[#This Row],[CH Fam Beds]],FullPreparedList[[#This Row],[Total CH Ind Beds]]) -> 0 | AI28: =SUM(FullPreparedList[[#This Row],[Vet Fam Beds]],FullPreparedList[[#This Row],[Vet Ind Beds]]) -> 0 | AJ28: =SUM(FullPreparedList[[#This Row],[Par Youth Beds]],FullPreparedList[[#This Row],[Single Youth Beds]]) -> 0 | AK28: =OR( AND(FullPreparedList[[#This Row],[Renewal, New, Expansion, Reallocate, Ignore]]="New",OR(FullPreparedList[[#This Row],[Project Type]]="RRH",FullPreparedList[[#This Row],[Project Type]]="PSH",FullPreparedList[[#This Row],[Project Type]]="TH/RRH")), AND(FullPreparedList[[#This Row],[Renewal, New, Expansion, Reallocate, Ignore]]="Renewal",OR(FullPreparedList[[#This Row],[Project Type]]="RRH",FullPreparedList[[#This Row],[Project Type]]="PSH",FullPreparedList[[#This Row],[Project Type]]="TH",FullPreparedList[[#This Row],[Project Type]]="OPH",FullPreparedList[[#This Row],[Project Type]]="DEM")), AND(FullPreparedList[[#This Row],[Renewal, New, Expansion, Reallocate, Ignore]]="Expansion",OR(FullPreparedList[[#This Row],[Project Type]]="RRH",FullPreparedList[[#This Row],[Project Type]]="PSH",FullPreparedList[[#This Row],[Project Type]]="TH/RRH"))) -> FALSE | AL28: =COUNTIF(INDEX(FullPreparedList[Project Name],1):FullPreparedList[[#This Row],[Project Name]],FullPreparedList[[#This Row],[Project Name]]) -> 1 | AM28: =IF(AND(FullPreparedList[[#This Row],[Project Name]]<>"",FullPreparedList[[#This Row],[Renewal, New, Expansion, Reallocate, Ignore]]="Ignore"),0,IF(FullPreparedList[[#This Row],[Project Name]]="",-999,1)) -> 0
B29: 13 | C29: Camillus House | D29: Camillus House City of Coral Gables Emergency Shelter Program | E29: ES | F29: No | G29: No | H29: No | M29: Ignore | N29: =IF(FullPreparedList[[#This Row],[Renewal, New, Expansion, Reallocate, Ignore]]="Renewal",FullPreparedList[[#This Row],[CoC Amount Awarded Last Operating Year]]-FullPreparedList[[#This Row],[CoC Funding Requested]],0) -> 0 | Q29: 0 | R29: =IF(FullPreparedList[[#This Row],[DV/HIV]]="DV",FullPreparedList[[#This Row],[All Fam Beds]],0) -> 0 | T29: 0 | U29: 0 | V29: 3 | W29: 0 | X29: =SUM(FullPreparedList[[#This Row],[Beds HH w/o Children]],FullPreparedList[[#This Row],[Beds HH w/ only Children]]) -> 3 | Y29: =IF(FullPreparedList[[#This Row],[DV/HIV]]="DV",FullPreparedList[[#This Row],[All Ind Beds]],0) -> 0 | AB29: =SUM(FullPreparedList[[#This Row],[CH Beds HH w/o Children]],FullPreparedList[[#This Row],[CH Beds HH w/ only Children]]) -> 0 | AC29: 0 | AD29: 0 | AH29: =SUM(FullPreparedList[[#This Row],[CH Fam Beds]],FullPreparedList[[#This Row],[Total CH Ind Beds]]) -> 0 | AI29: =SUM(FullPreparedList[[#This Row],[Vet Fam Beds]],FullPreparedList[[#This Row],[Vet Ind Beds]]) -> 0 | AJ29: =SUM(FullPreparedList[[#This Row],[Par Youth Beds]],FullPreparedList[[#This Row],[Single Youth Beds]]) -> 0 | AK29: =OR( AND(FullPreparedList[[#This Row],[Renewal, New, Expansion, Reallocate, Ignore]]="New",OR(FullPreparedList[[#This Row],[Project Type]]="RRH",FullPreparedList[[#This Row],[Project Type]]="PSH",FullPreparedList[[#This Row],[Project Type]]="TH/RRH")), AND(FullPreparedList[[#This Row],[Renewal, New, Expansion, Reallocate, Ignore]]="Renewal",OR(FullPreparedList[[#This Row],[Project Type]]="RRH",FullPreparedList[[#This Row],[Project Type]]="PSH",FullPreparedList[[#This Row],[Project Type]]="TH",FullPreparedList[[#This Row],[Project Type]]="OPH",FullPreparedList[[#This Row],[Project Type]]="DEM")), AND(FullPreparedList[[#This Row],[Renewal, New, Expansion, Reallocate, Ignore]]="Expansion",OR(FullPreparedList[[#This Row],[Project Type]]="RRH",FullPreparedList[[#This Row],[Project Type]]="PSH",FullPreparedList[[#This Row],[Project Type]]="TH/RRH"))) -> FALSE | AL29: =COUNTIF(INDEX(FullPreparedList[Project Name],1):FullPreparedList[[#This Row],[Project Name]],FullPreparedList[[#This Row],[Project Name]]) -> 1 | AM29: =IF(AND(FullPreparedList[[#This Row],[Project Name]]<>"",FullPreparedList[[#This Row],[Renewal, New, Expansion, Reallocate, Ignore]]="Ignore"),0,IF(FullPreparedList[[#This Row],[Project Name]]="",-999,1)) -> 0
B30: 14 | C30: Camillus House | D30: Camillus House City of Miami Emergency Shelter Program | E30: ES | F30: No | G30: No | H30: No | M30: Ignore | N30: =IF(FullPreparedList[[#This Row],[Renewal, New, Expansion, Reallocate, Ignore]]="Renewal",FullPreparedList[[#This Row],[CoC Amount Awarded Last Operating Year]]-FullPreparedList[[#This Row],[CoC Funding Requested]],0) -> 0 | Q30: 0 | R30: =IF(FullPreparedList[[#This Row],[DV/HIV]]="DV",FullPreparedList[[#This Row],[All Fam Beds]],0) -> 0 | T30: 0 | U30: 0 | V30: 65 | W30: 0 | X30: =SUM(FullPreparedList[[#This Row],[Beds HH w/o Children]],FullPreparedList[[#This Row],[Beds HH w/ only Children]]) -> 65 | Y30: =IF(FullPreparedList[[#This Row],[DV/HIV]]="DV",FullPreparedList[[#This Row],[All Ind Beds]],0) -> 0 | AB30: =SUM(FullPreparedList[[#This Row],[CH Beds HH w/o Children]],FullPreparedList[[#This Row],[CH Beds HH w/ only Children]]) -> 0 | AC30: 0 | AD30: 0 | AH30: =SUM(FullPreparedList[[#This Row],[CH Fam Beds]],FullPreparedList[[#This Row],[Total CH Ind Beds]]) -> 0 | AI30: =SUM(FullPreparedList[[#This Row],[Vet Fam Beds]],FullPreparedList[[#This Row],[Vet Ind Beds]]) -> 0 | AJ30: =SUM(FullPreparedList[[#This Row],[Par Youth Beds]],FullPreparedList[[#This Row],[Single Youth Beds]]) -> 0 | AK30: =OR( AND(FullPreparedList[[#This Row],[Renewal, New, Expansion, Reallocate, Ignore]]="New",OR(FullPreparedList[[#This Row],[Project Type]]="RRH",FullPreparedList[[#This Row],[Project Type]]="PSH",FullPreparedList[[#This Row],[Project Type]]="TH/RRH")), AND(FullPreparedList[[#This Row],[Renewal, New, Expansion, Reallocate, Ignore]]="Renewal",OR(FullPreparedList[[#This Row],[Project Type]]="RRH",FullPreparedList[[#This Row],[Project Type]]="PSH",FullPreparedList[[#This Row],[Project Type]]="TH",FullPreparedList[[#This Row],[Project Type]]="OPH",FullPreparedList[[#This Row],[Project Type]]="DEM")), AND(FullPreparedList[[#This Row],[Renewal, New, Expansion, Reallocate, Ignore]]="Expansion",OR(FullPreparedList[[#This Row],[Project Type]]="RRH",FullPreparedList[[#This Row],[Project Type]]="PSH",FullPreparedList[[#This Row],[Project Type]]="TH/RRH"))) -> FALSE | AL30: =COUNTIF(INDEX(FullPreparedList[Project Name],1):FullPreparedList[[#This Row],[Project Name]],FullPreparedList[[#This Row],[Project Name]]) -> 1 | AM30: =IF(AND(FullPreparedList[[#This Row],[Project Name]]<>"",FullPreparedList[[#This Row],[Renewal, New, Expansion, Reallocate, Ignore]]="Ignore"),0,IF(FullPreparedList[[#This Row],[Project Name]]="",-999,1)) -> 0
B31: 15 | C31: Camillus House | D31: Camillus House City of Miami Pottinger | E31: ES | F31: No | M31: Ignore | N31: =IF(FullPreparedList[[#This Row],[Renewal, New, Expansion, Reallocate, Ignore]]="Renewal",FullPreparedList[[#This Row],[CoC Amount Awarded Last Operating Year]]-FullPreparedList[[#This Row],[CoC Funding Requested]],0) -> 0 | Q31: 0 | R31: =IF(FullPreparedList[[#This Row],[DV/HIV]]="DV",FullPreparedList[[#This Row],[All Fam Beds]],0) -> 0 | T31: 0 | U31: 0 | V31: 10 | W31: 0 | X31: =SUM(FullPreparedList[[#This Row],[Beds HH w/o Children]],FullPreparedList[[#This Row],[Beds HH w/ only Children]]) -> 10 | Y31: =IF(FullPreparedList[[#This Row],[DV/HIV]]="DV",FullPreparedList[[#This Row],[All Ind Beds]],0) -> 0 | AB31: =SUM(FullPreparedList[[#This Row],[CH Beds HH w/o Children]],FullPreparedList[[#This Row],[CH Beds HH w/ only Children]]) -> 0 | AC31: 0 | AD31: 0 | AH31: =SUM(FullPreparedList[[#This Row],[CH Fam Beds]],FullPreparedList[[#This Row],[Total CH Ind Beds]]) -> 0 | AI31: =SUM(FullPreparedList[[#This Row],[Vet Fam Beds]],FullPreparedList[[#This Row],[Vet Ind Beds]]) -> 0 | AJ31: =SUM(FullPreparedList[[#This Row],[Par Youth Beds]],FullPreparedList[[#This Row],[Single Youth Beds]]) -> 0 | AK31: =OR( AND(FullPreparedList[[#This Row],[Renewal, New, Expansion, Reallocate, Ignore]]="New",OR(FullPreparedList[[#This Row],[Project Type]]="RRH",FullPreparedList[[#This Row],[Project Type]]="PSH",FullPreparedList[[#This Row],[Project Type]]="TH/RRH")), AND(FullPreparedList[[#This Row],[Renewal, New, Expansion, Reallocate, Ignore]]="Renewal",OR(FullPreparedList[[#This Row],[Project Type]]="RRH",FullPreparedList[[#This Row],[Project Type]]="PSH",FullPreparedList[[#This Row],[Project Type]]="TH",FullPreparedList[[#This Row],[Project Type]]="OPH",FullPreparedList[[#This Row],[Project Type]]="DEM")), AND(FullPreparedList[[#This Row],[Renewal, New, Expansion, Reallocate, Ignore]]="Expansion",OR(FullPreparedList[[#This Row],[Project Type]]="RRH",FullPreparedList[[#This Row],[Project Type]]="PSH",FullPreparedList[[#This Row],[Project Type]]="TH/RRH"))) -> FALSE | AL31: =COUNTIF(INDEX(FullPreparedList[Project Name],1):FullPreparedList[[#This Row],[Project Name]],FullPreparedList[[#This Row],[Project Name]]) -> 1 | AM31: =IF(AND(FullPreparedList[[#This Row],[Project Name]]<>"",FullPreparedList[[#This Row],[Renewal, New, Expansion, Reallocate, Ignore]]="Ignore"),0,IF(FullPreparedList[[#This Row],[Project Name]]="",-999,1)) -> 0
B32: 16 | C32: Camillus House | D32: Camillus House Emergency HT | E32: ES | F32: No | M32: Ignore | N32: =IF(FullPreparedList[[#This Row],[Renewal, New, Expansion, Reallocate, Ignore]]="Renewal",FullPreparedList[[#This Row],[CoC Amount Awarded Last Operating Year]]-FullPreparedList[[#This Row],[CoC Funding Requested]],0) -> 0 | Q32: 0 | R32: =IF(FullPreparedList[[#This Row],[DV/HIV]]="DV",FullPreparedList[[#This Row],[All Fam Beds]],0) -> 0 | T32: 0 | U32: 0 | V32: 69 | W32: 0 | X32: =SUM(FullPreparedList[[#This Row],[Beds HH w/o Children]],FullPreparedList[[#This Row],[Beds HH w/ only Children]]) -> 69 | Y32: =IF(FullPreparedList[[#This Row],[DV/HIV]]="DV",FullPreparedList[[#This Row],[All Ind Beds]],0) -> 0 | AB32: =SUM(FullPreparedList[[#This Row],[CH Beds HH w/o Children]],FullPreparedList[[#This Row],[CH Beds HH w/ only Children]]) -> 0 | AC32: 0 | AD32: 0 | AH32: =SUM(FullPreparedList[[#This Row],[CH Fam Beds]],FullPreparedList[[#This Row],[Total CH Ind Beds]]) -> 0 | AI32: =SUM(FullPreparedList[[#This Row],[Vet Fam Beds]],FullPreparedList[[#This Row],[Vet Ind Beds]]) -> 0 | AJ32: =SUM(FullPreparedList[[#This Row],[Par Youth Beds]],FullPreparedList[[#This Row],[Single Youth Beds]]) -> 0 | AK32: =OR( AND(FullPreparedList[[#This Row],[Renewal, New, Expansion, Reallocate, Ignore]]="New",OR(FullPreparedList[[#This Row],[Project Type]]="RRH",FullPreparedList[[#This Row],[Project Type]]="PSH",FullPreparedList[[#This Row],[Project Type]]="TH/RRH")), AND(FullPreparedList[[#This Row],[Renewal, New, Expansion, Reallocate, Ignore]]="Renewal",OR(FullPreparedList[[#This Row],[Project Type]]="RRH",FullPreparedList[[#This Row],[Project Type]]="PSH",FullPreparedList[[#This Row],[Project Type]]="TH",FullPreparedList[[#This Row],[Project Type]]="OPH",FullPreparedList[[#This Row],[Project Type]]="DEM")), AND(FullPreparedList[[#This Row],[Renewal, New, Expansion, Reallocate, Ignore]]="Expansion",OR(FullPreparedList[[#This Row],[Project Type]]="RRH",FullPreparedList[[#This Row],[Project Type]]="PSH",FullPreparedList[[#This Row],[Project Type]]="TH/RRH"))) -> FALSE | AL32: =COUNTIF(INDEX(FullPreparedList[Project Name],1):FullPreparedList[[#This Row],[Project Name]],FullPreparedList[[#This Row],[Project Name]]) -> 1 | AM32: =IF(AND(FullPreparedList[[#This Row],[Project Name]]<>"",FullPreparedList[[#This Row],[Renewal, New, Expansion, Reallocate, Ignore]]="Ignore"),0,IF(FullPreparedList[[#This Row],[Project Name]]="",-999,1)) -> 0
B33: 17 | C33: Camillus House | D33: Camillus House Emmaus Place | E33: TH | F33: No | M33: Ignore | N33: =IF(FullPreparedList[[#This Row],[Renewal, New, Expansion, Reallocate, Ignore]]="Renewal",FullPreparedList[[#This Row],[CoC Amount Awarded Last Operating Year]]-FullPreparedList[[#This Row],[CoC Funding Requested]],0) -> 0 | Q33: 0 | R33: =IF(FullPreparedList[[#This Row],[DV/HIV]]="DV",FullPreparedList[[#This Row],[All Fam Beds]],0) -> 0 | T33: 0 | U33: 0 | V33: 7 | W33: 0 | X33: =SUM(FullPreparedList[[#This Row],[Beds HH w/o Children]],FullPreparedList[[#This Row],[Beds HH w/ only Children]]) -> 7 | Y33: =IF(FullPreparedList[[#This Row],[DV/HIV]]="DV",FullPreparedList[[#This Row],[All Ind Beds]],0) -> 0 | AB33: =SUM(FullPreparedList[[#This Row],[CH Beds HH w/o Children]],FullPreparedList[[#This Row],[CH Beds HH w/ only Children]]) -> 0 | AC33: 0 | AD33: 0 | AH33: =SUM(FullPreparedList[[#This Row],[CH Fam Beds]],FullPreparedList[[#This Row],[Total CH Ind Beds]]) -> 0 | AI33: =SUM(FullPreparedList[[#This Row],[Vet Fam Beds]],FullPreparedList[[#This Row],[Vet Ind Beds]]) -> 0 | AJ33: =SUM(FullPreparedList[[#This Row],[Par Youth Beds]],FullPreparedList[[#This Row],[Single Youth Beds]]) -> 0 | AK33: =OR( AND(FullPreparedList[[#This Row],[Renewal, New, Expansion, Reallocate, Ignore]]="New",OR(FullPreparedList[[#This Row],[Project Type]]="RRH",FullPreparedList[[#This Row],[Project Type]]="PSH",FullPreparedList[[#This Row],[Project Type]]="TH/RRH")), AND(FullPreparedList[[#This Row],[Renewal, New, Expansion, Reallocate, Ignore]]="Renewal",OR(FullPreparedList[[#This Row],[Project Type]]="RRH",FullPreparedList[[#This Row],[Project Type]]="PSH",FullPreparedList[[#This Row],[Project Type]]="TH",FullPreparedList[[#This Row],[Project Type]]="OPH",FullPreparedList[[#This Row],[Project Type]]="DEM")), AND(FullPreparedList[[#This Row],[Renewal, New, Expansion, Reallocate, Ignore]]="Expansion",OR(FullPreparedList[[#This Row],[Project Type]]="RRH",FullPreparedList[[#This Row],[Project Type]]="PSH",FullPreparedList[[#This Row],[Project Type]]="TH/RRH"))) -> FALSE | AL33: =COUNTIF(INDEX(FullPreparedList[Project Name],1):FullPreparedList[[#This Row],[Project Name]],FullPreparedList[[#This Row],[Project Name]]) -> 1 | AM33: =IF(AND(FullPreparedList[[#This Row],[Project Name]]<>"",FullPreparedList[[#This Row],[Renewal, New, Expansion, Reallocate, Ignore]]="Ignore"),0,IF(FullPreparedList[[#This Row],[Project Name]]="",-999,1)) -> 0
B34: 18 | C34: Camillus House | D34: Camillus House ES PH | E34: PSH | F34: No | M34: Ignore | N34: =IF(FullPreparedList[[#This Row],[Renewal, New, Expansion, Reallocate, Ignore]]="Renewal",FullPreparedList[[#This Row],[CoC Amount Awarded Last Operating Year]]-FullPreparedList[[#This Row],[CoC Funding Requested]],0) -> 0 | Q34: 0 | R34: =IF(FullPreparedList[[#This Row],[DV/HIV]]="DV",FullPreparedList[[#This Row],[All Fam Beds]],0) -> 0 | S34: 0 | T34: 0 | U34: 0 | V34: 6 | W34: 0 | X34: =SUM(FullPreparedList[[#This Row],[Beds HH w/o Children]],FullPreparedList[[#This Row],[Beds HH w/ only Children]]) -> 6 | Y34: =IF(FullPreparedList[[#This Row],[DV/HIV]]="DV",FullPreparedList[[#This Row],[All Ind Beds]],0) -> 0 | Z34: 6 | AA34: 0 | AB34: =SUM(FullPreparedList[[#This Row],[CH Beds HH w/o Children]],FullPreparedList[[#This Row],[CH Beds HH w/ only Children]]) -> 6 | AC34: 0 | AD34: 0 | AH34: =SUM(FullPreparedList[[#This Row],[CH Fam Beds]],FullPreparedList[[#This Row],[Total CH Ind Beds]]) -> 6 | AI34: =SUM(FullPreparedList[[#This Row],[Vet Fam Beds]],FullPreparedList[[#This Row],[Vet Ind Beds]]) -> 0 | AJ34: =SUM(FullPreparedList[[#This Row],[Par Youth Beds]],FullPreparedList[[#This Row],[Single Youth Beds]]) -> 0 | AK34: =OR( AND(FullPreparedList[[#This Row],[Renewal, New, Expansion, Reallocate, Ignore]]="New",OR(FullPreparedList[[#This Row],[Project Type]]="RRH",FullPreparedList[[#This Row],[Project Type]]="PSH",FullPreparedList[[#This Row],[Project Type]]="TH/RRH")), AND(FullPreparedList[[#This Row],[Renewal, New, Expansion, Reallocate, Ignore]]="Renewal",OR(FullPreparedList[[#This Row],[Project Type]]="RRH",FullPreparedList[[#This Row],[Project Type]]="PSH",FullPreparedList[[#This Row],[Project Type]]="TH",FullPreparedList[[#This Row],[Project Type]]="OPH",FullPreparedList[[#This Row],[Project Type]]="DEM")), AND(FullPreparedList[[#This Row],[Renewal, New, Expansion, Reallocate, Ignore]]="Expansion",OR(FullPreparedList[[#This Row],[Project Type]]="RRH",FullPreparedList[[#This Row],[Project Type]]="PSH",FullPreparedList[[#This Row],[Project Type]]="TH/RRH"))) -> FALSE | AL34: =COUNTIF(INDEX(FullPreparedList[Project Name],1):FullPreparedList[[#This Row],[Project Name]],FullPreparedList[[#This Row],[Project Name]]) -> 1 | AM34: =IF(AND(FullPreparedList[[#This Row],[Project Name]]<>"",FullPreparedList[[#This Row],[Renewal, New, Expansion, Reallocate, Ignore]]="Ignore"),0,IF(FullPreparedList[[#This Row],[Project Name]]="",-999,1)) -> 0
B35: 19 | C35: Camillus House | D35: Camillus House FPL Emergency Shelter Program (Miami Beach) | E35: ES | F35: No | G35: No | H35: No | M35: Ignore | N35: =IF(FullPreparedList[[#This Row],[Renewal, New, Expansion, Reallocate, Ignore]]="Renewal",FullPreparedList[[#This Row],[CoC Amount Awarded Last Operating Year]]-FullPreparedList[[#This Row],[CoC Funding Requested]],0) -> 0 | Q35: 0 | R35: =IF(FullPreparedList[[#This Row],[DV/HIV]]="DV",FullPreparedList[[#This Row],[All Fam Beds]],0) -> 0 | T35: 0 | U35: 0 | V35: 12 | W35: 0 | X35: =SUM(FullPreparedList[[#This Row],[Beds HH w/o Children]],FullPreparedList[[#This Row],[Beds HH w/ only Children]]) -> 12 | Y35: =IF(FullPreparedList[[#This Row],[DV/HIV]]="DV",FullPreparedList[[#This Row],[All Ind Beds]],0) -> 0 | AB35: =SUM(FullPreparedList[[#This Row],[CH Beds HH w/o Children]],FullPreparedList[[#This Row],[CH Beds HH w/ only Children]]) -> 0 | AC35: 0 | AD35: 0 | AH35: =SUM(FullPreparedList[[#This Row],[CH Fam Beds]],FullPreparedList[[#This Row],[Total CH Ind Beds]]) -> 0 | AI35: =SUM(FullPreparedList[[#This Row],[Vet Fam Beds]],FullPreparedList[[#This Row],[Vet Ind Beds]]) -> 0 | AJ35: =SUM(FullPreparedList[[#This Row],[Par Youth Beds]],FullPreparedList[[#This Row],[Single Youth Beds]]) -> 0 | AK35: =OR( AND(FullPreparedList[[#This Row],[Renewal, New, Expansion, Reallocate, Ignore]]="New",OR(FullPreparedList[[#This Row],[Project Type]]="RRH",FullPreparedList[[#This Row],[Project Type]]="PSH",FullPreparedList[[#This Row],[Project Type]]="TH/RRH")), AND(FullPreparedList[[#This Row],[Renewal, New, Expansion, Reallocate, Ignore]]="Renewal",OR(FullPreparedList[[#This Row],[Project Type]]="RRH",FullPreparedList[[#This Row],[Project Type]]="PSH",FullPreparedList[[#This Row],[Project Type]]="TH",FullPreparedList[[#This Row],[Project Type]]="OPH",FullPreparedList[[#This Row],[Project Type]]="DEM")), AND(FullPreparedList[[#This Row],[Renewal, New, Expansion, Reallocate, Ignore]]="Expansion",OR(FullPreparedList[[#This Row],[Project Type]]="RRH",FullPreparedList[[#This Row],[Project Type]]="PSH",FullPreparedList[[#This Row],[Project Type]]="TH/RRH"))) -> FALSE | AL35: =COUNTIF(INDEX(FullPreparedList[Project Name],1):FullPreparedList[[#This Row],[Project Name]],FullPreparedList[[#This Row],[Project Name]]) -> 1 | AM35: =IF(AND(FullPreparedList[[#This Row],[Project Name]]<>"",FullPreparedList[[#This Row],[Renewal, New, Expansion, Reallocate, Ignore]]="Ignore"),0,IF(FullPreparedList[[#This Row],[Project Name]]="",-999,1)) -> 0
B36: 20 | C36: Camillus House | D36: Camillus House Health Department Emergency | E36: ES | F36: No | M36: Ignore | N36: =IF(FullPreparedList[[#This Row],[Renewal, New, Expansion, Reallocate, Ignore]]="Renewal",FullPreparedList[[#This Row],[CoC Amount Awarded Last Operating Year]]-FullPreparedList[[#This Row],[CoC Funding Requested]],0) -> 0 | Q36: 0 | R36: =IF(FullPreparedList[[#This Row],[DV/HIV]]="DV",FullPreparedList[[#This Row],[All Fam Beds]],0) -> 0 | T36: 0 | U36: 0 | V36: 2 | W36: 0 | X36: =SUM(FullPreparedList[[#This Row],[Beds HH w/o Children]],FullPreparedList[[#This Row],[Beds HH w/ only Children]]) -> 2 | Y36: =IF(FullPreparedList[[#This Row],[DV/HIV]]="DV",FullPreparedList[[#This Row],[All Ind Beds]],0) -> 0 | AB36: =SUM(FullPreparedList[[#This Row],[CH Beds HH w/o Children]],FullPreparedList[[#This Row],[CH Beds HH w/ only Children]]) -> 0 | AC36: 0 | AD36: 0 | AH36: =SUM(FullPreparedList[[#This Row],[CH Fam Beds]],FullPreparedList[[#This Row],[Total CH Ind Beds]]) -> 0 | AI36: =SUM(FullPreparedList[[#This Row],[Vet Fam Beds]],FullPreparedList[[#This Row],[Vet Ind Beds]]) -> 0 | AJ36: =SUM(FullPreparedList[[#This Row],[Par Youth Beds]],FullPreparedList[[#This Row],[Single Youth Beds]]) -> 0 | AK36: =OR( AND(FullPreparedList[[#This Row],[Renewal, New, Expansion, Reallocate, Ignore]]="New",OR(FullPreparedList[[#This Row],[Project Type]]="RRH",FullPreparedList[[#This Row],[Project Type]]="PSH",FullPreparedList[[#This Row],[Project Type]]="TH/RRH")), AND(FullPreparedList[[#This Row],[Renewal, New, Expansion, Reallocate, Ignore]]="Renewal",OR(FullPreparedList[[#This Row],[Project Type]]="RRH",FullPreparedList[[#This Row],[Project Type]]="PSH",FullPreparedList[[#This Row],[Project Type]]="TH",FullPreparedList[[#This Row],[Project Type]]="OPH",FullPreparedList[[#This Row],[Project Type]]="DEM")), AND(FullPreparedList[[#This Row],[Renewal, New, Expansion, Reallocate, Ignore]]="Expansion",OR(FullPreparedList[[#This Row],[Project Type]]="RRH",FullPreparedList[[#This Row],[Project Type]]="PSH",FullPreparedList[[#This Row],[Project Type]]="TH/RRH"))) -> FALSE | AL36: =COUNTIF(INDEX(FullPreparedList[Project Name],1):FullPreparedList[[#This Row],[Project Name]],FullPreparedList[[#This Row],[Project Name]]) -> 1 | AM36: =IF(AND(FullPreparedList[[#This Row],[Project Name]]<>"",FullPreparedList[[#This Row],[Renewal, New, Expansion, Reallocate, Ignore]]="Ignore"),0,IF(FullPreparedList[[#This Row],[Project Name]]="",-999,1)) -> 0
B37: 21 | C37: Camillus House | D37: Camillus House Re-Entry HT | E37: TH | F37: No | M37: Ignore | N37: =IF(FullPreparedList[[#This Row],[Renewal, New, Expansion, Reallocate, Ignore]]="Renewal",FullPreparedList[[#This Row],[CoC Amount Awarded Last Operating Year]]-FullPreparedList[[#This Row],[CoC Funding Requested]],0) -> 0 | Q37: 0 | R37: =IF(FullPreparedList[[#This Row],[DV/HIV]]="DV",FullPreparedList[[#This Row],[All Fam Beds]],0) -> 0 | T37: 0 | U37: 0 | V37: 12 | W37: 0 | X37: =SUM(FullPreparedList[[#This Row],[Beds HH w/o Children]],FullPreparedList[[#This Row],[Beds HH w/ only Children]]) -> 12 | Y37: =IF(FullPreparedList[[#This Row],[DV/HIV]]="DV",FullPreparedList[[#This Row],[All Ind Beds]],0) -> 0 | AB37: =SUM(FullPreparedList[[#This Row],[CH Beds HH w/o Children]],FullPreparedList[[#This Row],[CH Beds HH w/ only Children]]) -> 0 | AC37: 0 | AD37: 0 | AH37: =SUM(FullPreparedList[[#This Row],[CH Fam Beds]],FullPreparedList[[#This Row],[Total CH Ind Beds]]) -> 0 | AI37: =SUM(FullPreparedList[[#This Row],[Vet Fam Beds]],FullPreparedList[[#This Row],[Vet Ind Beds]]) -> 0 | AJ37: =SUM(FullPreparedList[[#This Row],[Par Youth Beds]],FullPreparedList[[#This Row],[Single Youth Beds]]) -> 0 | AK37: =OR( AND(FullPreparedList[[#This Row],[Renewal, New, Expansion, Reallocate, Ignore]]="New",OR(FullPreparedList[[#This Row],[Project Type]]="RRH",FullPreparedList[[#This Row],[Project Type]]="PSH",FullPreparedList[[#This Row],[Project Type]]="TH/RRH")), AND(FullPreparedList[[#This Row],[Renewal, New, Expansion, Reallocate, Ignore]]="Renewal",OR(FullPreparedList[[#This Row],[Project Type]]="RRH",FullPreparedList[[#This Row],[Project Type]]="PSH",FullPreparedList[[#This Row],[Project Type]]="TH",FullPreparedList[[#This Row],[Project Type]]="OPH",FullPreparedList[[#This Row],[Project Type]]="DEM")), AND(FullPreparedList[[#This Row],[Renewal, New, Expansion, Reallocate, Ignore]]="Expansion",OR(FullPreparedList[[#This Row],[Project Type]]="RRH",FullPreparedList[[#This Row],[Project Type]]="PSH",FullPreparedList[[#This Row],[Project Type]]="TH/RRH"))) -> FALSE | AL37: =COUNTIF(INDEX(FullPreparedList[Project Name],1):FullPreparedList[[#This Row],[Project Name]],FullPreparedList[[#This Row],[Project Name]]) -> 1 | AM37: =IF(AND(FullPreparedList[[#This Row],[Project Name]]<>"",FullPreparedList[[#This Row],[Renewal, New, Expansion, Reallocate, Ignore]]="Ignore"),0,IF(FullPreparedList[[#This Row],[Project Name]]="",-999,1)) -> 0
B38: 22 | C38: Camillus House | D38: Camillus House SFBHN Emergency Shelter | E38: ES | F38: No | M38: Ignore | N38: =IF(FullPreparedList[[#This Row],[Renewal, New, Expansion, Reallocate, Ignore]]="Renewal",FullPreparedList[[#This Row],[CoC Amount Awarded Last Operating Year]]-FullPreparedList[[#This Row],[CoC Funding Requested]],0) -> 0 | Q38: 0 | R38: =IF(FullPreparedList[[#This Row],[DV/HIV]]="DV",FullPreparedList[[#This Row],[All Fam Beds]],0) -> 0 | T38: 0 | U38: 0 | V38: 5 | W38: 0 | X38: =SUM(FullPreparedList[[#This Row],[Beds HH w/o Children]],FullPreparedList[[#This Row],[Beds HH w/ only Children]]) -> 5 | Y38: =IF(FullPreparedList[[#This Row],[DV/HIV]]="DV",FullPreparedList[[#This Row],[All Ind Beds]],0) -> 0 | AB38: =SUM(FullPreparedList[[#This Row],[CH Beds HH w/o Children]],FullPreparedList[[#This Row],[CH Beds HH w/ only Children]]) -> 0 | AC38: 0 | AD38: 0 | AH38: =SUM(FullPreparedList[[#This Row],[CH Fam Beds]],FullPreparedList[[#This Row],[Total CH Ind Beds]]) -> 0 | AI38: =SUM(FullPreparedList[[#This Row],[Vet Fam Beds]],FullPreparedList[[#This Row],[Vet Ind Beds]]) -> 0 | AJ38: =SUM(FullPreparedList[[#This Row],[Par Youth Beds]],FullPreparedList[[#This Row],[Single Youth Beds]]) -> 0 | AK38: =OR( AND(FullPreparedList[[#This Row],[Renewal, New, Expansion, Reallocate, Ignore]]="New",OR(FullPreparedList[[#This Row],[Project Type]]="RRH",FullPreparedList[[#This Row],[Project Type]]="PSH",FullPreparedList[[#This Row],[Project Type]]="TH/RRH")), AND(FullPreparedList[[#This Row],[Renewal, New, Expansion, Reallocate, Ignore]]="Renewal",OR(FullPreparedList[[#This Row],[Project Type]]="RRH",FullPreparedList[[#This Row],[Project Type]]="PSH",FullPreparedList[[#This Row],[Project Type]]="TH",FullPreparedList[[#This Row],[Project Type]]="OPH",FullPreparedList[[#This Row],[Project Type]]="DEM")), AND(FullPreparedList[[#This Row],[Renewal, New, Expansion, Reallocate, Ignore]]="Expansion",OR(FullPreparedList[[#This Row],[Project Type]]="RRH",FullPreparedList[[#This Row],[Project Type]]="PSH",FullPreparedList[[#This Row],[Project Type]]="TH/RRH"))) -> FALSE | AL38: =COUNTIF(INDEX(FullPreparedList[Project Name],1):FullPreparedList[[#This Row],[Project Name]],FullPreparedList[[#This Row],[Project Name]]) -> 1 | AM38: =IF(AND(FullPreparedList[[#This Row],[Project Name]]<>"",FullPreparedList[[#This Row],[Renewal, New, Expansion, Reallocate, Ignore]]="Ignore"),0,IF(FullPreparedList[[#This Row],[Project Name]]="",-999,1)) -> 0
B39: 23 | C39: Camillus House | D39: Camillus House Special Care Ambassadors | E39: TH | F39: No | M39: Ignore | N39: =IF(FullPreparedList[[#This Row],[Renewal, New, Expansion, Reallocate, Ignore]]="Renewal",FullPreparedList[[#This Row],[CoC Amount Awarded Last Operating Year]]-FullPreparedList[[#This Row],[CoC Funding Requested]],0) -> 0 | Q39: 0 | R39: =IF(FullPreparedList[[#This Row],[DV/HIV]]="DV",FullPreparedList[[#This Row],[All Fam Beds]],0) -> 0 | T39: 0 | U39: 0 | V39: 5 | W39: 0 | X39: =SUM(FullPreparedList[[#This Row],[Beds HH w/o Children]],FullPreparedList[[#This Row],[Beds HH w/ only Children]]) -> 5 | Y39: =IF(FullPreparedList[[#This Row],[DV/HIV]]="DV",FullPreparedList[[#This Row],[All Ind Beds]],0) -> 0 | AB39: =SUM(FullPreparedList[[#This Row],[CH Beds HH w/o Children]],FullPreparedList[[#This Row],[CH Beds HH w/ only Children]]) -> 0 | AC39: 0 | AD39: 0 | AH39: =SUM(FullPreparedList[[#This Row],[CH Fam Beds]],FullPreparedList[[#This Row],[Total CH Ind Beds]]) -> 0 | AI39: =SUM(FullPreparedList[[#This Row],[Vet Fam Beds]],FullPreparedList[[#This Row],[Vet Ind Beds]]) -> 0 | AJ39: =SUM(FullPreparedList[[#This Row],[Par Youth Beds]],FullPreparedList[[#This Row],[Single Youth Beds]]) -> 0 | AK39: =OR( AND(FullPreparedList[[#This Row],[Renewal, New, Expansion, Reallocate, Ignore]]="New",OR(FullPreparedList[[#This Row],[Project Type]]="RRH",FullPreparedList[[#This Row],[Project Type]]="PSH",FullPreparedList[[#This Row],[Project Type]]="TH/RRH")), AND(FullPreparedList[[#This Row],[Renewal, New, Expansion, Reallocate, Ignore]]="Renewal",OR(FullPreparedList[[#This Row],[Project Type]]="RRH",FullPreparedList[[#This Row],[Project Type]]="PSH",FullPreparedList[[#This Row],[Project Type]]="TH",FullPreparedList[[#This Row],[Project Type]]="OPH",FullPreparedList[[#This Row],[Project Type]]="DEM")), AND(FullPreparedList[[#This Row],[Renewal, New, Expansion, Reallocate, Ignore]]="Expansion",OR(FullPreparedList[[#This Row],[Project Type]]="RRH",FullPreparedList[[#This Row],[Project Type]]="PSH",FullPreparedList[[#This Row],[Project Type]]="TH/RRH"))) -> FALSE | AL39: =COUNTIF(INDEX(FullPreparedList[Project Name],1):FullPreparedList[[#This Row],[Project Name]],FullPreparedList[[#This Row],[Project Name]]) -> 1 | AM39: =IF(AND(FullPreparedList[[#This Row],[Project Name]]<>"",FullPreparedList[[#This Row],[Renewal, New, Expansion, Reallocate, Ignore]]="Ignore"),0,IF(FullPreparedList[[#This Row],[Project Name]]="",-999,1)) -> 0
B40: 24 | C40: Camillus House | D40: Camillus House St. Rose Permanent Housing | E40: PSH | F40: No | M40: Ignore | N40: =IF(FullPreparedList[[#This Row],[Renewal, New, Expansion, Reallocate, Ignore]]="Renewal",FullPreparedList[[#This Row],[CoC Amount Awarded Last Operating Year]]-FullPreparedList[[#This Row],[CoC Funding Requested]],0) -> 0 | Q40: 0 | R40: =IF(FullPreparedList[[#This Row],[DV/HIV]]="DV",FullPreparedList[[#This Row],[All Fam Beds]],0) -> 0 | S40: 0 | T40: 0 | U40: 0 | V40: 19 | W40: 0 | X40: =SUM(FullPreparedList[[#This Row],[Beds HH w/o Children]],FullPreparedList[[#This Row],[Beds HH w/ only Children]]) -> 19 | Y40: =IF(FullPreparedList[[#This Row],[DV/HIV]]="DV",FullPreparedList[[#This Row],[All Ind Beds]],0) -> 0 | Z40: 0 | AA40: 0 | AB40: =SUM(FullPreparedList[[#This Row],[CH Beds HH w/o Children]],FullPreparedList[[#This Row],[CH Beds HH w/ only Children]]) -> 0 | AC40: 0 | AD40: 0 | AH40: =SUM(FullPreparedList[[#This Row],[CH Fam Beds]],FullPreparedList[[#This Row],[Total CH Ind Beds]]) -> 0 | AI40: =SUM(FullPreparedList[[#This Row],[Vet Fam Beds]],FullPreparedList[[#This Row],[Vet Ind Beds]]) -> 0 | AJ40: =SUM(FullPreparedList[[#This Row],[Par Youth Beds]],FullPreparedList[[#This Row],[Single Youth Beds]]) -> 0 | AK40: =OR( AND(FullPreparedList[[#This Row],[Renewal, New, Expansion, Reallocate, Ignore]]="New",OR(FullPreparedList[[#This Row],[Project Type]]="RRH",FullPreparedList[[#This Row],[Project Type]]="PSH",FullPreparedList[[#This Row],[Project Type]]="TH/RRH")), AND(FullPreparedList[[#This Row],[Renewal, New, Expansion, Reallocate, Ignore]]="Renewal",OR(FullPreparedList[[#This Row],[Project Type]]="RRH",FullPreparedList[[#This Row],[Project Type]]="PSH",FullPreparedList[[#This Row],[Project Type]]="TH",FullPreparedList[[#This Row],[Project Type]]="OPH",FullPreparedList[[#This Row],[Project Type]]="DEM")), AND(FullPreparedList[[#This Row],[Renewal, New, Expansion, Reallocate, Ignore]]="Expansion",OR(FullPreparedList[[#This Row],[Project Type]]="RRH",FullPreparedList[[#This Row],[Project Type]]="PSH",FullPreparedList[[#This Row],[Project Type]]="TH/RRH"))) -> FALSE | AL40: =COUNTIF(INDEX(FullPreparedList[Project Name],1):FullPreparedList[[#This Row],[Project Name]],FullPreparedList[[#This Row],[Project Name]]) -> 1 | AM40: =IF(AND(FullPreparedList[[#This Row],[Project Name]]<>"",FullPreparedList[[#This Row],[Renewal, New, Expansion, Reallocate, Ignore]]="Ignore"),0,IF(FullPreparedList[[#This Row],[Project Name]]="",-999,1)) -> 0
B41: 25 | C41: Camillus House | D41: Camillus House VA Court Emergency | E41: ES | F41: No | M41: Ignore | N41: =IF(FullPreparedList[[#This Row],[Renewal, New, Expansion, Reallocate, Ignore]]="Renewal",FullPreparedList[[#This Row],[CoC Amount Awarded Last Operating Year]]-FullPreparedList[[#This Row],[CoC Funding Requested]],0) -> 0 | Q41: 0 | R41: =IF(FullPreparedList[[#This Row],[DV/HIV]]="DV",FullPreparedList[[#This Row],[All Fam Beds]],0) -> 0 | T41: 0 | U41: 0 | V41: 5 | W41: 0 | X41: =SUM(FullPreparedList[[#This Row],[Beds HH w/o Children]],FullPreparedList[[#This Row],[Beds HH w/ only Children]]) -> 5 | Y41: =IF(FullPreparedList[[#This Row],[DV/HIV]]="DV",FullPreparedList[[#This Row],[All Ind Beds]],0) -> 0 | AB41: =SUM(FullPreparedList[[#This Row],[CH Beds HH w/o Children]],FullPreparedList[[#This Row],[CH Beds HH w/ only Children]]) -> 0 | AC41: 5 | AD41: 0 | AH41: =SUM(FullPreparedList[[#This Row],[CH Fam Beds]],FullPreparedList[[#This Row],[Total CH Ind Beds]]) -> 0 | AI41: =SUM(FullPreparedList[[#This Row],[Vet Fam Beds]],FullPreparedList[[#This Row],[Vet Ind Beds]]) -> 5 | AJ41: =SUM(FullPreparedList[[#This Row],[Par Youth Beds]],FullPreparedList[[#This Row],[Single Youth Beds]]) -> 0 | AK41: =OR( AND(FullPreparedList[[#This Row],[Renewal, New, Expansion, Reallocate, Ignore]]="New",OR(FullPreparedList[[#This Row],[Project Type]]="RRH",FullPreparedList[[#This Row],[Project Type]]="PSH",FullPreparedList[[#This Row],[Project Type]]="TH/RRH")), AND(FullPreparedList[[#This Row],[Renewal, New, Expansion, Reallocate, Ignore]]="Renewal",OR(FullPreparedList[[#This Row],[Project Type]]="RRH",FullPreparedList[[#This Row],[Project Type]]="PSH",FullPreparedList[[#This Row],[Project Type]]="TH",FullPreparedList[[#This Row],[Project Type]]="OPH",FullPreparedList[[#This Row],[Project Type]]="DEM")), AND(FullPreparedList[[#This Row],[Renewal, New, Expansion, Reallocate, Ignore]]="Expansion",OR(FullPreparedList[[#This Row],[Project Type]]="RRH",FullPreparedList[[#This Row],[Project Type]]="PSH",FullPreparedList[[#This Row],[Project Type]]="TH/RRH"))) -> FALSE | AL41: =COUNTIF(INDEX(FullPreparedList[Project Name],1):FullPreparedList[[#This Row],[Project Name]],FullPreparedList[[#This Row],[Project Name]]) -> 1 | AM41: =IF(AND(FullPreparedList[[#This Row],[Project Name]]<>"",FullPreparedList[[#This Row],[Renewal, New, Expansion, Reallocate, Ignore]]="Ignore"),0,IF(FullPreparedList[[#This Row],[Project Name]]="",-999,1)) -> 0
B42: 26 | C42: Camillus House | D42: Camillus House VA GPD SITH | E42: TH | F42: No | M42: Ignore | N42: =IF(FullPreparedList[[#This Row],[Renewal, New, Expansion, Reallocate, Ignore]]="Renewal",FullPreparedList[[#This Row],[CoC Amount Awarded Last Operating Year]]-FullPreparedList[[#This Row],[CoC Funding Requested]],0) -> 0 | Q42: 0 | R42: =IF(FullPreparedList[[#This Row],[DV/HIV]]="DV",FullPreparedList[[#This Row],[All Fam Beds]],0) -> 0 | T42: 0 | U42: 0 | V42: 32 | W42: 0 | X42: =SUM(FullPreparedList[[#This Row],[Beds HH w/o Children]],FullPreparedList[[#This Row],[Beds HH w/ only Children]]) -> 32 | Y42: =IF(FullPreparedList[[#This Row],[DV/HIV]]="DV",FullPreparedList[[#This Row],[All Ind Beds]],0) -> 0 | AB42: =SUM(FullPreparedList[[#This Row],[CH Beds HH w/o Children]],FullPreparedList[[#This Row],[CH Beds HH w/ only Children]]) -> 0 | AC42: 32 | AD42: 0 | AH42: =SUM(FullPreparedList[[#This Row],[CH Fam Beds]],FullPreparedList[[#This Row],[Total CH Ind Beds]]) -> 0 | AI42: =SUM(FullPreparedList[[#This Row],[Vet Fam Beds]],FullPreparedList[[#This Row],[Vet Ind Beds]]) -> 32 | AJ42: =SUM(FullPreparedList[[#This Row],[Par Youth Beds]],FullPreparedList[[#This Row],[Single Youth Beds]]) -> 0 | AK42: =OR( AND(FullPreparedList[[#This Row],[Renewal, New, Expansion, Reallocate, Ignore]]="New",OR(FullPreparedList[[#This Row],[Project Type]]="RRH",FullPreparedList[[#This Row],[Project Type]]="PSH",FullPreparedList[[#This Row],[Project Type]]="TH/RRH")), AND(FullPreparedList[[#This Row],[Renewal, New, Expansion, Reallocate, Ignore]]="Renewal",OR(FullPreparedList[[#This Row],[Project Type]]="RRH",FullPreparedList[[#This Row],[Project Type]]="PSH",FullPreparedList[[#This Row],[Project Type]]="TH",FullPreparedList[[#This Row],[Project Type]]="OPH",FullPreparedList[[#This Row],[Project Type]]="DEM")), AND(FullPreparedList[[#This Row],[Renewal, New, Expansion, Reallocate, Ignore]]="Expansion",OR(FullPreparedList[[#This Row],[Project Type]]="RRH",FullPreparedList[[#This Row],[Project Type]]="PSH",FullPreparedList[[#This Row],[Project Type]]="TH/RRH"))) -> FALSE | AL42: =COUNTIF(INDEX(FullPreparedList[Project Name],1):FullPreparedList[[#This Row],[Project Name]],FullPreparedList[[#This Row],[Project Name]]) -> 1 | AM42: =IF(AND(FullPreparedList[[#This Row],[Project Name]]<>"",FullPreparedList[[#This Row],[Renewal, New, Expansion, Reallocate, Ignore]]="Ignore"),0,IF(FullPreparedList[[#This Row],[Project Name]]="",-999,1)) -> 0
B43: 27 | C43: Camillus House | D43: Camillus House Veterans Treatment Court | E43: TH | F43: No | M43: Ignore | N43: =IF(FullPreparedList[[#This Row],[Renewal, New, Expansion, Reallocate, Ignore]]="Renewal",FullPreparedList[[#This Row],[CoC Amount Awarded Last Operating Year]]-FullPreparedList[[#This Row],[CoC Funding Requested]],0) -> 0 | Q43: 0 | R43: =IF(FullPreparedList[[#This Row],[DV/HIV]]="DV",FullPreparedList[[#This Row],[All Fam Beds]],0) -> 0 | T43: 0 | U43: 0 | V43: 5 | W43: 0 | X43: =SUM(FullPreparedList[[#This Row],[Beds HH w/o Children]],FullPreparedList[[#This Row],[Beds HH w/ only Children]]) -> 5 | Y43: =IF(FullPreparedList[[#This Row],[DV/HIV]]="DV",FullPreparedList[[#This Row],[All Ind Beds]],0) -> 0 | AB43: =SUM(FullPreparedList[[#This Row],[CH Beds HH w/o Children]],FullPreparedList[[#This Row],[CH Beds HH w/ only Children]]) -> 0 | AC43: 5 | AD43: 0 | AH43: =SUM(FullPreparedList[[#This Row],[CH Fam Beds]],FullPreparedList[[#This Row],[Total CH Ind Beds]]) -> 0 | AI43: =SUM(FullPreparedList[[#This Row],[Vet Fam Beds]],FullPreparedList[[#This Row],[Vet Ind Beds]]) -> 5 | AJ43: =SUM(FullPreparedList[[#This Row],[Par Youth Beds]],FullPreparedList[[#This Row],[Single Youth Beds]]) -> 0 | AK43: =OR( AND(FullPreparedList[[#This Row],[Renewal, New, Expansion, Reallocate, Ignore]]="New",OR(FullPreparedList[[#This Row],[Project Type]]="RRH",FullPreparedList[[#This Row],[Project Type]]="PSH",FullPreparedList[[#This Row],[Project Type]]="TH/RRH")), AND(FullPreparedList[[#This Row],[Renewal, New, Expansion, Reallocate, Ignore]]="Renewal",OR(FullPreparedList[[#This Row],[Project Type]]="RRH",FullPreparedList[[#This Row],[Project Type]]="PSH",FullPreparedList[[#This Row],[Project Type]]="TH",FullPreparedList[[#This Row],[Project Type]]="OPH",FullPreparedList[[#This Row],[Project Type]]="DEM")), AND(FullPreparedList[[#This Row],[Renewal, New, Expansion, Reallocate, Ignore]]="Expansion",OR(FullPreparedList[[#This Row],[Project Type]]="RRH",FullPreparedList[[#This Row],[Project Type]]="PSH",FullPreparedList[[#This Row],[Project Type]]="TH/RRH"))) -> FALSE | AL43: =COUNTIF(INDEX(FullPreparedList[Project Name],1):FullPreparedList[[#This Row],[Project Name]],FullPreparedList[[#This Row],[Project Name]]) -> 1 | AM43: =IF(AND(FullPreparedList[[#This Row],[Project Name]]<>"",FullPreparedList[[#This Row],[Renewal, New, Expansion, Reallocate, Ignore]]="Ignore"),0,IF(FullPreparedList[[#This Row],[Project Name]]="",-999,1)) -> 0
B44: 28 | C44: Camillus House | D44: Camilus House Phoenix TH | E44: TH | F44: No | M44: Ignore | N44: =IF(FullPreparedList[[#This Row],[Renewal, New, Expansion, Reallocate, Ignore]]="Renewal",FullPreparedList[[#This Row],[CoC Amount Awarded Last Operating Year]]-FullPreparedList[[#This Row],[CoC Funding Requested]],0) -> 0 | Q44: 0 | R44: =IF(FullPreparedList[[#This Row],[DV/HIV]]="DV",FullPreparedList[[#This Row],[All Fam Beds]],0) -> 0 | T44: 0 | U44: 0 | V44: 16 | W44: 0 | X44: =SUM(FullPreparedList[[#This Row],[Beds HH w/o Children]],FullPreparedList[[#This Row],[Beds HH w/ only Children]]) -> 16 | Y44: =IF(FullPreparedList[[#This Row],[DV/HIV]]="DV",FullPreparedList[[#This Row],[All Ind Beds]],0) -> 0 | AB44: =SUM(FullPreparedList[[#This Row],[CH Beds HH w/o Children]],FullPreparedList[[#This Row],[CH Beds HH w/ only Children]]) -> 0 | AC44: 0 | AD44: 0 | AH44: =SUM(FullPreparedList[[#This Row],[CH Fam Beds]],FullPreparedList[[#This Row],[Total CH Ind Beds]]) -> 0 | AI44: =SUM(FullPreparedList[[#This Row],[Vet Fam Beds]],FullPreparedList[[#This Row],[Vet Ind Beds]]) -> 0 | AJ44: =SUM(FullPreparedList[[#This Row],[Par Youth Beds]],FullPreparedList[[#This Row],[Single Youth Beds]]) -> 0 | AK44: =OR( AND(FullPreparedList[[#This Row],[Renewal, New, Expansion, Reallocate, Ignore]]="New",OR(FullPreparedList[[#This Row],[Project Type]]="RRH",FullPreparedList[[#This Row],[Project Type]]="PSH",FullPreparedList[[#This Row],[Project Type]]="TH/RRH")), AND(FullPreparedList[[#This Row],[Renewal, New, Expansion, Reallocate, Ignore]]="Renewal",OR(FullPreparedList[[#This Row],[Project Type]]="RRH",FullPreparedList[[#This Row],[Project Type]]="PSH",FullPreparedList[[#This Row],[Project Type]]="TH",FullPreparedList[[#This Row],[Project Type]]="OPH",FullPreparedList[[#This Row],[Project Type]]="DEM")), AND(FullPreparedList[[#This Row],[Renewal, New, Expansion, Reallocate, Ignore]]="Expansion",OR(FullPreparedList[[#This Row],[Project Type]]="RRH",FullPreparedList[[#This Row],[Project Type]]="PSH",FullPreparedList[[#This Row],[Project Type]]="TH/RRH"))) -> FALSE | AL44: =COUNTIF(INDEX(FullPreparedList[Project Name],1):FullPreparedList[[#This Row],[Project Name]],FullPreparedList[[#This Row],[Project Name]]) -> 1 | AM44: =IF(AND(FullPreparedList[[#This Row],[Project Name]]<>"",FullPreparedList[[#This Row],[Renewal, New, Expansion, Reallocate, Ignore]]="Ignore"),0,IF(FullPreparedList[[#This Row],[Project Name]]="",-999,1)) -> 0
B45: 29 | C45: Camillus House | D45: Christian Hospital | E45: PSH | F45: Yes | G45: No | H45: No | M45: Ignore | N45: =IF(FullPreparedList[[#This Row],[Renewal, New, Expansion, Reallocate, Ignore]]="Renewal",FullPreparedList[[#This Row],[CoC Amount Awarded Last Operating Year]]-FullPreparedList[[#This Row],[CoC Funding Requested]],0) -> 0 | Q45: 0 | R45: =IF(FullPreparedList[[#This Row],[DV/HIV]]="DV",FullPreparedList[[#This Row],[All Fam Beds]],0) -> 0 | T45: 0 | U45: 0 | V45: 74 | W45: 0 | X45: =SUM(FullPreparedList[[#This Row],[Beds HH w/o Children]],FullPreparedList[[#This Row],[Beds HH w/ only Children]]) -> 74 | Y45: =IF(FullPreparedList[[#This Row],[DV/HIV]]="DV",FullPreparedList[[#This Row],[All Ind Beds]],0) -> 0 | Z45: 74 | AA45: 0 | AB45: =SUM(FullPreparedList[[#This Row],[CH Beds HH w/o Children]],FullPreparedList[[#This Row],[CH Beds HH w/ only Children]]) -> 74 | AC45: 0 | AD45: 0 | AH45: =SUM(FullPreparedList[[#This Row],[CH Fam Beds]],FullPreparedList[[#This Row],[Total CH Ind Beds]]) -> 74 | AI45: =SUM(FullPreparedList[[#This Row],[Vet Fam Beds]],FullPreparedList[[#This Row],[Vet Ind Beds]]) -> 0 | AJ45: =SUM(FullPreparedList[[#This Row],[Par Youth Beds]],FullPreparedList[[#This Row],[Single Youth Beds]]) -> 0 | AK45: =OR( AND(FullPreparedList[[#This Row],[Renewal, New, Expansion, Reallocate, Ignore]]="New",OR(FullPreparedList[[#This Row],[Project Type]]="RRH",FullPreparedList[[#This Row],[Project Type]]="PSH",FullPreparedList[[#This Row],[Project Type]]="TH/RRH")), AND(FullPreparedList[[#This Row],[Renewal, New, Expansion, Reallocate, Ignore]]="Renewal",OR(FullPreparedList[[#This Row],[Project Type]]="RRH",FullPreparedList[[#This Row],[Project Type]]="PSH",FullPreparedList[[#This Row],[Project Type]]="TH",FullPreparedList[[#This Row],[Project Type]]="OPH",FullPreparedList[[#This Row],[Project Type]]="DEM")), AND(FullPreparedList[[#This Row],[Renewal, New, Expansion, Reallocate, Ignore]]="Expansion",OR(FullPreparedList[[#This Row],[Project Type]]="RRH",FullPreparedList[[#This Row],[Project Type]]="PSH",FullPreparedList[[#This Row],[Project Type]]="TH/RRH"))) -> FALSE | AL45: =COUNTIF(INDEX(FullPreparedList[Project Name],1):FullPreparedList[[#This Row],[Project Name]],FullPreparedList[[#This Row],[Project Name]]) -> 1 | AM45: =IF(AND(FullPreparedList[[#This Row],[Project Name]]<>"",FullPreparedList[[#This Row],[Renewal, New, Expansion, Reallocate, Ignore]]="Ignore"),0,IF(FullPreparedList[[#This Row],[Project Name]]="",-999,1)) -> 0
B46: 30 | C46: Camillus House | D46: Emergency Shelter Youth | E46: ES | F46: No | G46: No | H46: No | M46: Ignore | N46: =IF(FullPreparedList[[#This Row],[Renewal, New, Expansion, Reallocate, Ignore]]="Renewal",FullPreparedList[[#This Row],[CoC Amount Awarded Last Operating Year]]-FullPreparedList[[#This Row],[CoC Funding Requested]],0) -> 0 | Q46: 0 | R46: =IF(FullPreparedList[[#This Row],[DV/HIV]]="DV",FullPreparedList[[#This Row],[All Fam Beds]],0) -> 0 | T46: 0 | U46: 0 | V46: 12 | W46: 0 | X46: =SUM(FullPreparedList[[#This Row],[Beds HH w/o Children]],FullPreparedList[[#This Row],[Beds HH w/ only Children]]) -> 12 | Y46: =IF(FullPreparedList[[#This Row],[DV/HIV]]="DV",FullPreparedList[[#This Row],[All Ind Beds]],0) -> 0 | AB46: =SUM(FullPreparedList[[#This Row],[CH Beds HH w/o Children]],FullPreparedList[[#This Row],[CH Beds HH w/ only Children]]) -> 0 | AC46: 0 | AD46: 12 | AH46: =SUM(FullPreparedList[[#This Row],[CH Fam Beds]],FullPreparedList[[#This Row],[Total CH Ind Beds]]) -> 0 | AI46: =SUM(FullPreparedList[[#This Row],[Vet Fam Beds]],FullPreparedList[[#This Row],[Vet Ind Beds]]) -> 0 | AJ46: =SUM(FullPreparedList[[#This Row],[Par Youth Beds]],FullPreparedList[[#This Row],[Single Youth Beds]]) -> 12 | AK46: =OR( AND(FullPreparedList[[#This Row],[Renewal, New, Expansion, Reallocate, Ignore]]="New",OR(FullPreparedList[[#This Row],[Project Type]]="RRH",FullPreparedList[[#This Row],[Project Type]]="PSH",FullPreparedList[[#This Row],[Project Type]]="TH/RRH")), AND(FullPreparedList[[#This Row],[Renewal, New, Expansion, Reallocate, Ignore]]="Renewal",OR(FullPreparedList[[#This Row],[Project Type]]="RRH",FullPreparedList[[#This Row],[Project Type]]="PSH",FullPreparedList[[#This Row],[Project Type]]="TH",FullPreparedList[[#This Row],[Project Type]]="OPH",FullPreparedList[[#This Row],[Project Type]]="DEM")), AND(FullPreparedList[[#This Row],[Renewal, New, Expansion, Reallocate, Ignore]]="Expansion",OR(FullPreparedList[[#This Row],[Project Type]]="RRH",FullPreparedList[[#This Row],[Project Type]]="PSH",FullPreparedList[[#This Row],[Project Type]]="TH/RRH"))) -> FALSE | AL46: =COUNTIF(INDEX(FullPreparedList[Project Name],1):FullPreparedList[[#This Row],[Project Name]],FullPreparedList[[#This Row],[Project Name]]) -> 1 | AM46: =IF(AND(FullPreparedList[[#This Row],[Project Name]]<>"",FullPreparedList[[#This Row],[Renewal, New, Expansion, Reallocate, Ignore]]="Ignore"),0,IF(FullPreparedList[[#This Row],[Project Name]]="",-999,1)) -> 0
B47: 31 | C47: Camillus House | D47: Good Sheperd Villas | E47: PSH | F47: Yes | G47: No | H47: No | I47: FL0215L4D001609 | J47: 279022 | K47: 247727 | M47: Ignore | N47: =IF(FullPreparedList[[#This Row],[Renewal, New, Expansion, Reallocate, Ignore]]="Renewal",FullPreparedList[[#This Row],[CoC Amount Awarded Last Operating Year]]-FullPreparedList[[#This Row],[CoC Funding Requested]],0) -> 0 | Q47: 0 | R47: =IF(FullPreparedList[[#This Row],[DV/HIV]]="DV",FullPreparedList[[#This Row],[All Fam Beds]],0) -> 0 | S47: 0 | T47: 0 | U47: 0 | V47: 27 | W47: 0 | X47: =SUM(FullPreparedList[[#This Row],[Beds HH w/o Children]],FullPreparedList[[#This Row],[Beds HH w/ only Children]]) -> 27 | Y47: =IF(FullPreparedList[[#This Row],[DV/HIV]]="DV",FullPreparedList[[#This Row],[All Ind Beds]],0) -> 0 | Z47: 27 | AA47: 0 | AB47: =SUM(FullPreparedList[[#This Row],[CH Beds HH w/o Children]],FullPreparedList[[#This Row],[CH Beds HH w/ only Children]]) -> 27 | AC47: 0 | AD47: 0 | AH47: =SUM(FullPreparedList[[#This Row],[CH Fam Beds]],FullPreparedList[[#This Row],[Total CH Ind Beds]]) -> 27 | AI47: =SUM(FullPreparedList[[#This Row],[Vet Fam Beds]],FullPreparedList[[#This Row],[Vet Ind Beds]]) -> 0 | AJ47: =SUM(FullPreparedList[[#This Row],[Par Youth Beds]],FullPreparedList[[#This Row],[Single Youth Beds]]) -> 0 | AK47: =OR( AND(FullPreparedList[[#This Row],[Renewal, New, Expansion, Reallocate, Ignore]]="New",OR(FullPreparedList[[#This Row],[Project Type]]="RRH",FullPreparedList[[#This Row],[Project Type]]="PSH",FullPreparedList[[#This Row],[Project Type]]="TH/RRH")), AND(FullPreparedList[[#This Row],[Renewal, New, Expansion, Reallocate, Ignore]]="Renewal",OR(FullPreparedList[[#This Row],[Project Type]]="RRH",FullPreparedList[[#This Row],[Project Type]]="PSH",FullPreparedList[[#This Row],[Project Type]]="TH",FullPreparedList[[#This Row],[Project Type]]="OPH",FullPreparedList[[#This Row],[Project Type]]="DEM")), AND(FullPreparedList[[#This Row],[Renewal, New, Expansion, Reallocate, Ignore]]="Expansion",OR(FullPreparedList[[#This Row],[Project Type]]="RRH",FullPreparedList[[#This Row],[Project Type]]="PSH",FullPreparedList[[#This Row],[Project Type]]="TH/RRH"))) -> FALSE | AL47: =COUNTIF(INDEX(FullPreparedList[Project Name],1):FullPreparedList[[#This Row],[Project Name]],FullPreparedList[[#This Row],[Project Name]]) -> 1 | AM47: =IF(AND(FullPreparedList[[#This Row],[Project Name]]<>"",FullPreparedList[[#This Row],[Renewal, New, Expansion, Reallocate, Ignore]]="Ignore"),0,IF(FullPreparedList[[#This Row],[Project Name]]="",-999,1)) -> 0
B48: 32 | C48: Camillus House | D48: GPD St. Michael Residences | E48: SH | F48: No | G48: No | H48: No | M48: Ignore | N48: =IF(FullPreparedList[[#This Row],[Renewal, New, Expansion, Reallocate, Ignore]]="Renewal",FullPreparedList[[#This Row],[CoC Amount Awarded Last Operating Year]]-FullPreparedList[[#This Row],[CoC Funding Requested]],0) -> 0 | R48: =IF(FullPreparedList[[#This Row],[DV/HIV]]="DV",FullPreparedList[[#This Row],[All Fam Beds]],0) -> 0 | V48: 28 | W48: 0 | X48: =SUM(FullPreparedList[[#This Row],[Beds HH w/o Children]],FullPreparedList[[#This Row],[Beds HH w/ only Children]]) -> 28 | Y48: =IF(FullPreparedList[[#This Row],[DV/HIV]]="DV",FullPreparedList[[#This Row],[All Ind Beds]],0) -> 0 | AB48: =SUM(FullPreparedList[[#This Row],[CH Beds HH w/o Children]],FullPreparedList[[#This Row],[CH Beds HH w/ only Children]]) -> 0 | AC48: 28 | AD48: 0 | AH48: =SUM(FullPreparedList[[#This Row],[CH Fam Beds]],FullPreparedList[[#This Row],[Total CH Ind Beds]]) -> 0 | AI48: =SUM(FullPreparedList[[#This Row],[Vet Fam Beds]],FullPreparedList[[#This Row],[Vet Ind Beds]]) -> 28 | AJ48: =SUM(FullPreparedList[[#This Row],[Par Youth Beds]],FullPreparedList[[#This Row],[Single Youth Beds]]) -> 0 | AK48: =OR( AND(FullPreparedList[[#This Row],[Renewal, New, Expansion, Reallocate, Ignore]]="New",OR(FullPreparedList[[#This Row],[Project Type]]="RRH",FullPreparedList[[#This Row],[Project Type]]="PSH",FullPreparedList[[#This Row],[Project Type]]="TH/RRH")), AND(FullPreparedList[[#This Row],[Renewal, New, Expansion, Reallocate, Ignore]]="Renewal",OR(FullPreparedList[[#This Row],[Project Type]]="RRH",FullPreparedList[[#This Row],[Project Type]]="PSH",FullPreparedList[[#This Row],[Project Type]]="TH",FullPreparedList[[#This Row],[Project Type]]="OPH",FullPreparedList[[#This Row],[Project Type]]="DEM")), AND(FullPreparedList[[#This Row],[Renewal, New, Expansion, Reallocate, Ignore]]="Expansion",OR(FullPreparedList[[#This Row],[Project Type]]="RRH",FullPreparedList[[#This Row],[Project Type]]="PSH",FullPreparedList[[#This Row],[Project Type]]="TH/RRH"))) -> FALSE | AL48: =COUNTIF(INDEX(FullPreparedList[Project Name],1):FullPreparedList[[#This Row],[Project Name]],FullPreparedList[[#This Row],[Project Name]]) -> 1 | AM48: =IF(AND(FullPreparedList[[#This Row],[Project Name]]<>"",FullPreparedList[[#This Row],[Renewal, New, Expansion, Reallocate, Ignore]]="Ignore"),0,IF(FullPreparedList[[#This Row],[Project Name]]="",-999,1)) -> 0
B49: 33 | C49: Camillus House | D49: Labre Place | E49: PSH | F49: No | G49: No | H49: No | M49: Ignore | N49: =IF(FullPreparedList[[#This Row],[Renewal, New, Expansion, Reallocate, Ignore]]="Renewal",FullPreparedList[[#This Row],[CoC Amount Awarded Last Operating Year]]-FullPreparedList[[#This Row],[CoC Funding Requested]],0) -> 0 | Q49: 0 | R49: =IF(FullPreparedList[[#This Row],[DV/HIV]]="DV",FullPreparedList[[#This Row],[All Fam Beds]],0) -> 0 | S49: 0 | T49: 0 | U49: 0 | V49: 50 | W49: 0 | X49: =SUM(FullPreparedList[[#This Row],[Beds HH w/o Children]],FullPreparedList[[#This Row],[Beds HH w/ only Children]]) -> 50 | Y49: =IF(FullPreparedList[[#This Row],[DV/HIV]]="DV",FullPreparedList[[#This Row],[All Ind Beds]],0) -> 0 | Z49: 5 | AA49: 0 | AB49: =SUM(FullPreparedList[[#This Row],[CH Beds HH w/o Children]],FullPreparedList[[#This Row],[CH Beds HH w/ only Children]]) -> 5 | AC49: 0 | AD49: 0 | AH49: =SUM(FullPreparedList[[#This Row],[CH Fam Beds]],FullPreparedList[[#This Row],[Total CH Ind Beds]]) -> 5 | AI49: =SUM(FullPreparedList[[#This Row],[Vet Fam Beds]],FullPreparedList[[#This Row],[Vet Ind Beds]]) -> 0 | AJ49: =SUM(FullPreparedList[[#This Row],[Par Youth Beds]],FullPreparedList[[#This Row],[Single Youth Beds]]) -> 0 | AK49: =OR( AND(FullPreparedList[[#This Row],[Renewal, New, Expansion, Reallocate, Ignore]]="New",OR(FullPreparedList[[#This Row],[Project Type]]="RRH",FullPreparedList[[#This Row],[Project Type]]="PSH",FullPreparedList[[#This Row],[Project Type]]="TH/RRH")), AND(FullPreparedList[[#This Row],[Renewal, New, Expansion, Reallocate, Ignore]]="Renewal",OR(FullPreparedList[[#This Row],[Project Type]]="RRH",FullPreparedList[[#This Row],[Project Type]]="PSH",FullPreparedList[[#This Row],[Project Type]]="TH",FullPreparedList[[#This Row],[Project Type]]="OPH",FullPreparedList[[#This Row],[Project Type]]="DEM")), AND(FullPreparedList[[#This Row],[Renewal, New, Expansion, Reallocate, Ignore]]="Expansion",OR(FullPreparedList[[#This Row],[Project Type]]="RRH",FullPreparedList[[#This Row],[Project Type]]="PSH",FullPreparedList[[#This Row],[Project Type]]="TH/RRH"))) -> FALSE | AL49: =COUNTIF(INDEX(FullPreparedList[Project Name],1):FullPreparedList[[#This Row],[Project Name]],FullPreparedList[[#This Row],[Project Name]]) -> 1 | AM49: =IF(AND(FullPreparedList[[#This Row],[Project Name]]<>"",FullPreparedList[[#This Row],[Renewal, New, Expansion, Reallocate, Ignore]]="Ignore"),0,IF(FullPreparedList[[#This Row],[Project Name]]="",-999,1)) -> 0
B50: 34 | C50: Camillus House | D50: Mother Seton Permanent Supportive Housing | E50: PSH | F50: Yes | G50: No | H50: No | I50: FL0590L4D001702 | J50: 550588 | K50: 146883.5 | M50: Renewal | N50: =IF(FullPreparedList[[#This Row],[Renewal, New, Expansion, Reallocate, Ignore]]="Renewal",FullPreparedList[[#This Row],[CoC Amount Awarded Last Operating Year]]-FullPreparedList[[#This Row],[CoC Funding Requested]],0) -> 550588 | Q50: 162 | R50: =IF(FullPreparedList[[#This Row],[DV/HIV]]="DV",FullPreparedList[[#This Row],[All Fam Beds]],0) -> 0 | S50: 162 | T50: 0 | U50: 0 | V50: 0 | W50: 0 | X50: =SUM(FullPreparedList[[#This Row],[Beds HH w/o Children]],FullPreparedList[[#This Row],[Beds HH w/ only Children]]) -> 0 | Y50: =IF(FullPreparedList[[#This Row],[DV/HIV]]="DV",FullPreparedList[[#This Row],[All Ind Beds]],0) -> 0 | Z50: 0 | AA50: 0 | AB50: =SUM(FullPreparedList[[#This Row],[CH Beds HH w/o Children]],FullPreparedList[[#This Row],[CH Beds HH w/ only Children]]) -> 0 | AC50: 0 | AD50: 0 | AH50: =SUM(FullPreparedList[[#This Row],[CH Fam Beds]],FullPreparedList[[#This Row],[Total CH Ind Beds]]) -> 162 | AI50: =SUM(FullPreparedList[[#This Row],[Vet Fam Beds]],FullPreparedList[[#This Row],[Vet Ind Beds]]) -> 0 | AJ50: =SUM(FullPreparedList[[#This Row],[Par Youth Beds]],FullPreparedList[[#This Row],[Single Youth Beds]]) -> 0 | AK50: =OR( AND(FullPreparedList[[#This Row],[Renewal, New, Expansion, Reallocate, Ignore]]="New",OR(FullPreparedList[[#This Row],[Project Type]]="RRH",FullPreparedList[[#This Row],[Project Type]]="PSH",FullPreparedList[[#This Row],[Project Type]]="TH/RRH")), AND(FullPreparedList[[#This Row],[Renewal, New, Expansion, Reallocate, Ignore]]="Renewal",OR(FullPreparedList[[#This Row],[Project Type]]="RRH",FullPreparedList[[#This Row],[Project Type]]="PSH",FullPreparedList[[#This Row],[Project Type]]="TH",FullPreparedList[[#This Row],[Project Type]]="OPH",FullPreparedList[[#This Row],[Project Type]]="DEM")), AND(FullPreparedList[[#This Row],[Renewal, New, Expansion, Reallocate, Ignore]]="Expansion",OR(FullPreparedList[[#This Row],[Project Type]]="RRH",FullPreparedList[[#This Row],[Project Type]]="PSH",FullPreparedList[[#This Row],[Project Type]]="TH/RRH"))) -> TRUE | AL50: =COUNTIF(INDEX(FullPreparedList[Project Name],1):FullPreparedList[[#This Row],[Project Name]],FullPreparedList[[#This Row],[Project Name]]) -> 1 | AM50: =IF(AND(FullPreparedList[[#This Row],[Project Name]]<>"",FullPreparedList[[#This Row],[Renewal, New, Expansion, Reallocate, Ignore]]="Ignore"),0,IF(FullPreparedList[[#This Row],[Project Name]]="",-999,1)) -> 1
B51: 35 | C51: Camillus House | D51: Project Dade Cares PSH | E51: PSH | F51: Yes | G51: No | H51: No | I51: FL0170L4D001508 | J51: 507593 | K51: 232852.49 | M51: Renewal | N51: =IF(FullPreparedList[[#This Row],[Renewal, New, Expansion, Reallocate, Ignore]]="Renewal",FullPreparedList[[#This Row],[CoC Amount Awarded Last Operating Year]]-FullPreparedList[[#This Row],[CoC Funding Requested]],0) -> 507593 | Q51: 0 | R51: =IF(FullPreparedList[[#This Row],[DV/HIV]]="DV",FullPreparedList[[#This Row],[All Fam Beds]],0) -> 0 | S51: 0 | T51: 0 | U51: 0 | V51: 27 | W51: 0 | X51: =SUM(FullPreparedList[[#This Row],[Beds HH w/o Children]],FullPreparedList[[#This Row],[Beds HH w/ only Children]]) -> 27 | Y51: =IF(FullPreparedList[[#This Row],[DV/HIV]]="DV",FullPreparedList[[#This Row],[All Ind Beds]],0) -> 0 | Z51: 27 | AB51: =SUM(FullPreparedList[[#This Row],[CH Beds HH w/o Children]],FullPreparedList[[#This Row],[CH Beds HH w/ only Children]]) -> 27 | AC51: 0 | AD51: 0 | AH51: =SUM(FullPreparedList[[#This Row],[CH Fam Beds]],FullPreparedList[[#This Row],[Total CH Ind Beds]]) -> 27 | AI51: =SUM(FullPreparedList[[#This Row],[Vet Fam Beds]],FullPreparedList[[#This Row],[Vet Ind Beds]]) -> 0 | AJ51: =SUM(FullPreparedList[[#This Row],[Par Youth Beds]],FullPreparedList[[#This Row],[Single Youth Beds]]) -> 0 | AK51: =OR( AND(FullPreparedList[[#This Row],[Renewal, New, Expansion, Reallocate, Ignore]]="New",OR(FullPreparedList[[#This Row],[Project Type]]="RRH",FullPreparedList[[#This Row],[Project Type]]="PSH",FullPreparedList[[#This Row],[Project Type]]="TH/RRH")), AND(FullPreparedList[[#This Row],[Renewal, New, Expansion, Reallocate, Ignore]]="Renewal",OR(FullPreparedList[[#This Row],[Project Type]]="RRH",FullPreparedList[[#This Row],[Project Type]]="PSH",FullPreparedList[[#This Row],[Project Type]]="TH",FullPreparedList[[#This Row],[Project Type]]="OPH",FullPreparedList[[#This Row],[Project Type]]="DEM")), AND(FullPreparedList[[#This Row],[Renewal, New, Expansion, Reallocate, Ignore]]="Expansion",OR(FullPreparedList[[#This Row],[Project Type]]="RRH",FullPreparedList[[#This Row],[Project Type]]="PSH",FullPreparedList[[#This Row],[Project Type]]="TH/RRH"))) -> TRUE | AL51: =COUNTIF(INDEX(FullPreparedList[Project Name],1):FullPreparedList[[#This Row],[Project Name]],FullPreparedList[[#This Row],[Project Name]]) -> 1 | AM51: =IF(AND(FullPreparedList[[#This Row],[Project Name]]<>"",FullPreparedList[[#This Row],[Renewal, New, Expansion, Reallocate, Ignore]]="Ignore"),0,IF(FullPreparedList[[#This Row],[Project Name]]="",-999,1)) -> 1
B52: 36 | C52: Camillus House | D52: Shepherd's Court Hud | E52: PSH | F52: Yes | I52: FL0343L4D001706 | J52: 494397 | K52: 151618 | M52: Renewal | N52: =IF(FullPreparedList[[#This Row],[Renewal, New, Expansion, Reallocate, Ignore]]="Renewal",FullPreparedList[[#This Row],[CoC Amount Awarded Last Operating Year]]-FullPreparedList[[#This Row],[CoC Funding Requested]],0) -> 494397 | Q52: 0 | R52: =IF(FullPreparedList[[#This Row],[DV/HIV]]="DV",FullPreparedList[[#This Row],[All Fam Beds]],0) -> 0 | S52: 0 | T52: 0 | U52: 0 | V52: 60 | W52: 0 | X52: =SUM(FullPreparedList[[#This Row],[Beds HH w/o Children]],FullPreparedList[[#This Row],[Beds HH w/ only Children]]) -> 60 | Y52: =IF(FullPreparedList[[#This Row],[DV/HIV]]="DV",FullPreparedList[[#This Row],[All Ind Beds]],0) -> 0 | Z52: 60 | AA52: 0 | AB52: =SUM(FullPreparedList[[#This Row],[CH Beds HH w/o Children]],FullPreparedList[[#This Row],[CH Beds HH w/ only Children]]) -> 60 | AC52: 0 | AD52: 0 | AH52: =SUM(FullPreparedList[[#This Row],[CH Fam Beds]],FullPreparedList[[#This Row],[Total CH Ind Beds]]) -> 60 | AI52: =SUM(FullPreparedList[[#This Row],[Vet Fam Beds]],FullPreparedList[[#This Row],[Vet Ind Beds]]) -> 0 | AJ52: =SUM(FullPreparedList[[#This Row],[Par Youth Beds]],FullPreparedList[[#This Row],[Single Youth Beds]]) -> 0 | AK52: =OR( AND(FullPreparedList[[#This Row],[Renewal, New, Expansion, Reallocate, Ignore]]="New",OR(FullPreparedList[[#This Row],[Project Type]]="RRH",FullPreparedList[[#This Row],[Project Type]]="PSH",FullPreparedList[[#This Row],[Project Type]]="TH/RRH")), AND(FullPreparedList[[#This Row],[Renewal, New, Expansion, Reallocate, Ignore]]="Renewal",OR(FullPreparedList[[#This Row],[Project Type]]="RRH",FullPreparedList[[#This Row],[Project Type]]="PSH",FullPreparedList[[#This Row],[Project Type]]="TH",FullPreparedList[[#This Row],[Project Type]]="OPH",FullPreparedList[[#This Row],[Project Type]]="DEM")), AND(FullPreparedList[[#This Row],[Renewal, New, Expansion, Reallocate, Ignore]]="Expansion",OR(FullPreparedList[[#This Row],[Project Type]]="RRH",FullPreparedList[[#This Row],[Project Type]]="PSH",FullPreparedList[[#This Row],[Project Type]]="TH/RRH"))) -> TRUE | AL52: =COUNTIF(INDEX(FullPreparedList[Project Name],1):FullPreparedList[[#This Row],[Project Name]],FullPreparedList[[#This Row],[Project Name]]) -> 1 | AM52: =IF(AND(FullPreparedList[[#This Row],[Project Name]]<>"",FullPreparedList[[#This Row],[Renewal, New, Expansion, Reallocate, Ignore]]="Ignore"),0,IF(FullPreparedList[[#This Row],[Project Name]]="",-999,1)) -> 1
B53: 37 | C53: Camillus House | D53: Shepherd's Court Non Hud | E53: PSH | F53: No | G53: No | H53: No | M53: Ignore | N53: =IF(FullPreparedList[[#This Row],[Renewal, New, Expansion, Reallocate, Ignore]]="Renewal",FullPreparedList[[#This Row],[CoC Amount Awarded Last Operating Year]]-FullPreparedList[[#This Row],[CoC Funding Requested]],0) -> 0 | Q53: 0 | R53: =IF(FullPreparedList[[#This Row],[DV/HIV]]="DV",FullPreparedList[[#This Row],[All Fam Beds]],0) -> 0 | T53: 0 | U53: 0 | V53: 20 | W53: 0 | X53: =SUM(FullPreparedList[[#This Row],[Beds HH w/o Children]],FullPreparedList[[#This Row],[Beds HH w/ only Children]]) -> 20 | Y53: =IF(FullPreparedList[[#This Row],[DV/HIV]]="DV",FullPreparedList[[#This Row],[All Ind Beds]],0) -> 0 | Z53: 20 | AB53: =SUM(FullPreparedList[[#This Row],[CH Beds HH w/o Children]],FullPreparedList[[#This Row],[CH Beds HH w/ only Children]]) -> 20 | AC53: 0 | AD53: 0 | AH53: =SUM(FullPreparedList[[#This Row],[CH Fam Beds]],FullPreparedList[[#This Row],[Total CH Ind Beds]]) -> 20 | AI53: =SUM(FullPreparedList[[#This Row],[Vet Fam Beds]],FullPreparedList[[#This Row],[Vet Ind Beds]]) -> 0 | AJ53: =SUM(FullPreparedList[[#This Row],[Par Youth Beds]],FullPreparedList[[#This Row],[Single Youth Beds]]) -> 0 | AK53: =OR( AND(FullPreparedList[[#This Row],[Renewal, New, Expansion, Reallocate, Ignore]]="New",OR(FullPreparedList[[#This Row],[Project Type]]="RRH",FullPreparedList[[#This Row],[Project Type]]="PSH",FullPreparedList[[#This Row],[Project Type]]="TH/RRH")), AND(FullPreparedList[[#This Row],[Renewal, New, Expansion, Reallocate, Ignore]]="Renewal",OR(FullPreparedList[[#This Row],[Project Type]]="RRH",FullPreparedList[[#This Row],[Project Type]]="PSH",FullPreparedList[[#This Row],[Project Type]]="TH",FullPreparedList[[#This Row],[Project Type]]="OPH",FullPreparedList[[#This Row],[Project Type]]="DEM")), AND(FullPreparedList[[#This Row],[Renewal, New, Expansion, Reallocate, Ignore]]="Expansion",OR(FullPreparedList[[#This Row],[Project Type]]="RRH",FullPreparedList[[#This Row],[Project Type]]="PSH",FullPreparedList[[#This Row],[Project Type]]="TH/RRH"))) -> FALSE | AL53: =COUNTIF(INDEX(FullPreparedList[Project Name],1):FullPreparedList[[#This Row],[Project Name]],FullPreparedList[[#This Row],[Project Name]]) -> 1 | AM53: =IF(AND(FullPreparedList[[#This Row],[Project Name]]<>"",FullPreparedList[[#This Row],[Renewal, New, Expansion, Reallocate, Ignore]]="Ignore"),0,IF(FullPreparedList[[#This Row],[Project Name]]="",-999,1)) -> 0
B54: 38 | C54: Camillus House | D54: Somerville Apartments Veterans Village PH | E54: PSH | F54: No | G54: No | H54: No | M54: Ignore | N54: =IF(FullPreparedList[[#This Row],[Renewal, New, Expansion, Reallocate, Ignore]]="Renewal",FullPreparedList[[#This Row],[CoC Amount Awarded Last Operating Year]]-FullPreparedList[[#This Row],[CoC Funding Requested]],0) -> 0 | Q54: 0 | R54: =IF(FullPreparedList[[#This Row],[DV/HIV]]="DV",FullPreparedList[[#This Row],[All Fam Beds]],0) -> 0 | T54: 0 | U54: 0 | V54: 35 | W54: 0 | X54: =SUM(FullPreparedList[[#This Row],[Beds HH w/o Children]],FullPreparedList[[#This Row],[Beds HH w/ only Children]]) -> 35 | Y54: =IF(FullPreparedList[[#This Row],[DV/HIV]]="DV",FullPreparedList[[#This Row],[All Ind Beds]],0) -> 0 | Z54: 0 | AB54: =SUM(FullPreparedList[[#This Row],[CH Beds HH w/o Children]],FullPreparedList[[#This Row],[CH Beds HH w/ only Children]]) -> 0 | AC54: 35 | AD54: 0 | AH54: =SUM(FullPreparedList[[#This Row],[CH Fam Beds]],FullPreparedList[[#This Row],[Total CH Ind Beds]]) -> 0 | AI54: =SUM(FullPreparedList[[#This Row],[Vet Fam Beds]],FullPreparedList[[#This Row],[Vet Ind Beds]]) -> 35 | AJ54: =SUM(FullPreparedList[[#This Row],[Par Youth Beds]],FullPreparedList[[#This Row],[Single Youth Beds]]) -> 0 | AK54: =OR( AND(FullPreparedList[[#This Row],[Renewal, New, Expansion, Reallocate, Ignore]]="New",OR(FullPreparedList[[#This Row],[Project Type]]="RRH",FullPreparedList[[#This Row],[Project Type]]="PSH",FullPreparedList[[#This Row],[Project Type]]="TH/RRH")), AND(FullPreparedList[[#This Row],[Renewal, New, Expansion, Reallocate, Ignore]]="Renewal",OR(FullPreparedList[[#This Row],[Project Type]]="RRH",FullPreparedList[[#This Row],[Project Type]]="PSH",FullPreparedList[[#This Row],[Project Type]]="TH",FullPreparedList[[#This Row],[Project Type]]="OPH",FullPreparedList[[#This Row],[Project Type]]="DEM")), AND(FullPreparedList[[#This Row],[Renewal, New, Expansion, Reallocate, Ignore]]="Expansion",OR(FullPreparedList[[#This Row],[Project Type]]="RRH",FullPreparedList[[#This Row],[Project Type]]="PSH",FullPreparedList[[#This Row],[Project Type]]="TH/RRH"))) -> FALSE | AL54: =COUNTIF(INDEX(FullPreparedList[Project Name],1):FullPreparedList[[#This Row],[Project Name]],FullPreparedList[[#This Row],[Project Name]]) -> 1 | AM54: =IF(AND(FullPreparedList[[#This Row],[Project Name]]<>"",FullPreparedList[[#This Row],[Renewal, New, Expansion, Reallocate, Ignore]]="Ignore"),0,IF(FullPreparedList[[#This Row],[Project Name]]="",-999,1)) -> 0
B55: 39 | C55: Carrfour Supportive Housing | D55: Bonita Cove | E55: PSH | F55: Yes | G55: No | H55: No | I55: FL0389L4d001705 | J55: 125078 | K55: 110651.5 | M55: Renewal | N55: =IF(FullPreparedList[[#This Row],[Renewal, New, Expansion, Reallocate, Ignore]]="Renewal",FullPreparedList[[#This Row],[CoC Amount Awarded Last Operating Year]]-FullPreparedList[[#This Row],[CoC Funding Requested]],0) -> 125078 | Q55: 4 | R55: =IF(FullPreparedList[[#This Row],[DV/HIV]]="DV",FullPreparedList[[#This Row],[All Fam Beds]],0) -> 0 | S55: 4 | T55: 0 | U55: 0 | V55: 19 | W55: 0 | X55: =SUM(FullPreparedList[[#This Row],[Beds HH w/o Children]],FullPreparedList[[#This Row],[Beds HH w/ only Children]]) -> 19 | Y55: =IF(FullPreparedList[[#This Row],[DV/HIV]]="DV",FullPreparedList[[#This Row],[All Ind Beds]],0) -> 0 | Z55: 19 | AA55: 0 | AB55: =SUM(FullPreparedList[[#This Row],[CH Beds HH w/o Children]],FullPreparedList[[#This Row],[CH Beds HH w/ only Children]]) -> 19 | AC55: 19 | AD55: 0 | AH55: =SUM(FullPreparedList[[#This Row],[CH Fam Beds]],FullPreparedList[[#This Row],[Total CH Ind Beds]]) -> 23 | AI55: =SUM(FullPreparedList[[#This Row],[Vet Fam Beds]],FullPreparedList[[#This Row],[Vet Ind Beds]]) -> 19 | AJ55: =SUM(FullPreparedList[[#This Row],[Par Youth Beds]],FullPreparedList[[#This Row],[Single Youth Beds]]) -> 0 | AK55: =OR( AND(FullPreparedList[[#This Row],[Renewal, New, Expansion, Reallocate, Ignore]]="New",OR(FullPreparedList[[#This Row],[Project Type]]="RRH",FullPreparedList[[#This Row],[Project Type]]="PSH",FullPreparedList[[#This Row],[Project Type]]="TH/RRH")), AND(FullPreparedList[[#This Row],[Renewal, New, Expansion, Reallocate, Ignore]]="Renewal",OR(FullPreparedList[[#This Row],[Project Type]]="RRH",FullPreparedList[[#This Row],[Project Type]]="PSH",FullPreparedList[[#This Row],[Project Type]]="TH",FullPreparedList[[#This Row],[Project Type]]="OPH",FullPreparedList[[#This Row],[Project Type]]="DEM")), AND(FullPreparedList[[#This Row],[Renewal, New, Expansion, Reallocate, Ignore]]="Expansion",OR(FullPreparedList[[#This Row],[Project Type]]="RRH",FullPreparedList[[#This Row],[Project Type]]="PSH",FullPreparedList[[#This Row],[Project Type]]="TH/RRH"))) -> TRUE | AL55: =COUNTIF(INDEX(FullPreparedList[Project Name],1):FullPreparedList[[#This Row],[Project Name]],FullPreparedList[[#This Row],[Project Name]]) -> 1 | AM55: =IF(AND(FullPreparedList[[#This Row],[Project Name]]<>"",FullPreparedList[[#This Row],[Renewal, New, Expansion, Reallocate, Ignore]]="Ignore"),0,IF(FullPreparedList[[#This Row],[Project Name]]="",-999,1)) -> 1
B56: 41 | C56: Carrfour Supportive Housing | D56: Casa Matias | E56: PSH | F56: Yes | G56: No | H56: No | I56: FL0390L4D001705 | J56: 199196 | K56: 199196 | M56: Renewal | N56: =IF(FullPreparedList[[#This Row],[Renewal, New, Expansion, Reallocate, Ignore]]="Renewal",FullPreparedList[[#This Row],[CoC Amount Awarded Last Operating Year]]-FullPreparedList[[#This Row],[CoC Funding Requested]],0) -> 199196 | Q56: 58 | R56: =IF(FullPreparedList[[#This Row],[DV/HIV]]="DV",FullPreparedList[[#This Row],[All Fam Beds]],0) -> 0 | S56: 58 | T56: 0 | U56: 0 | V56: 9 | W56: 0 | X56: =SUM(FullPreparedList[[#This Row],[Beds HH w/o Children]],FullPreparedList[[#This Row],[Beds HH w/ only Children]]) -> 9 | Y56: =IF(FullPreparedList[[#This Row],[DV/HIV]]="DV",FullPreparedList[[#This Row],[All Ind Beds]],0) -> 0 | Z56: 9 | AA56: 0 | AB56: =SUM(FullPreparedList[[#This Row],[CH Beds HH w/o Children]],FullPreparedList[[#This Row],[CH Beds HH w/ only Children]]) -> 9 | AC56: 0 | AD56: 0 | AH56: =SUM(FullPreparedList[[#This Row],[CH Fam Beds]],FullPreparedList[[#This Row],[Total CH Ind Beds]]) -> 67 | AI56: =SUM(FullPreparedList[[#This Row],[Vet Fam Beds]],FullPreparedList[[#This Row],[Vet Ind Beds]]) -> 0 | AJ56: =SUM(FullPreparedList[[#This Row],[Par Youth Beds]],FullPreparedList[[#This Row],[Single Youth Beds]]) -> 0 | AK56: =OR( AND(FullPreparedList[[#This Row],[Renewal, New, Expansion, Reallocate, Ignore]]="New",OR(FullPreparedList[[#This Row],[Project Type]]="RRH",FullPreparedList[[#This Row],[Project Type]]="PSH",FullPreparedList[[#This Row],[Project Type]]="TH/RRH")), AND(FullPreparedList[[#This Row],[Renewal, New, Expansion, Reallocate, Ignore]]="Renewal",OR(FullPreparedList[[#This Row],[Project Type]]="RRH",FullPreparedList[[#This Row],[Project Type]]="PSH",FullPreparedList[[#This Row],[Project Type]]="TH",FullPreparedList[[#This Row],[Project Type]]="OPH",FullPreparedList[[#This Row],[Project Type]]="DEM")), AND(FullPreparedList[[#This Row],[Renewal, New, Expansion, Reallocate, Ignore]]="Expansion",OR(FullPreparedList[[#This Row],[Project Type]]="RRH",FullPreparedList[[#This Row],[Project Type]]="PSH",FullPreparedList[[#This Row],[Project Type]]="TH/RRH"))) -> TRUE | AL56: =COUNTIF(INDEX(FullPreparedList[Project Name],1):FullPreparedList[[#This Row],[Project Name]],FullPreparedList[[#This Row],[Project Name]]) -> 1 | AM56: =IF(AND(FullPreparedList[[#This Row],[Project Name]]<>"",FullPreparedList[[#This Row],[Renewal, New, Expansion, Reallocate, Ignore]]="Ignore"),0,IF(FullPreparedList[[#This Row],[Project Name]]="",-999,1)) -> 1
B57: 42 | C57: Carrfour Supportive Housing | D57: Casa Matias (Non-SHP) | E57: PSH | F57: No | G57: No | H57: No | M57: Ignore | N57: =IF(FullPreparedList[[#This Row],[Renewal, New, Expansion, Reallocate, Ignore]]="Renewal",FullPreparedList[[#This Row],[CoC Amount Awarded Last Operating Year]]-FullPreparedList[[#This Row],[CoC Funding Requested]],0) -> 0 | Q57: 16 | R57: =IF(FullPreparedList[[#This Row],[DV/HIV]]="DV",FullPreparedList[[#This Row],[All Fam Beds]],0) -> 0 | S57: 0 | T57: 0 | U57: 0 | V57: 11 | W57: 0 | X57: =SUM(FullPreparedList[[#This Row],[Beds HH w/o Children]],FullPreparedList[[#This Row],[Beds HH w/ only Children]]) -> 11 | Y57: =IF(FullPreparedList[[#This Row],[DV/HIV]]="DV",FullPreparedList[[#This Row],[All Ind Beds]],0) -> 0 | Z57: 0 | AA57: 0 | AB57: =SUM(FullPreparedList[[#This Row],[CH Beds HH w/o Children]],FullPreparedList[[#This Row],[CH Beds HH w/ only Children]]) -> 0 | AC57: 0 | AD57: 0 | AH57: =SUM(FullPreparedList[[#This Row],[CH Fam Beds]],FullPreparedList[[#This Row],[Total CH Ind Beds]]) -> 0 | AI57: =SUM(FullPreparedList[[#This Row],[Vet Fam Beds]],FullPreparedList[[#This Row],[Vet Ind Beds]]) -> 0 | AJ57: =SUM(FullPreparedList[[#This Row],[Par Youth Beds]],FullPreparedList[[#This Row],[Single Youth Beds]]) -> 0 | AK57: =OR( AND(FullPreparedList[[#This Row],[Renewal, New, Expansion, Reallocate, Ignore]]="New",OR(FullPreparedList[[#This Row],[Project Type]]="RRH",FullPreparedList[[#This Row],[Project Type]]="PSH",FullPreparedList[[#This Row],[Project Type]]="TH/RRH")), AND(FullPreparedList[[#This Row],[Renewal, New, Expansion, Reallocate, Ignore]]="Renewal",OR(FullPreparedList[[#This Row],[Project Type]]="RRH",FullPreparedList[[#This Row],[Project Type]]="PSH",FullPreparedList[[#This Row],[Project Type]]="TH",FullPreparedList[[#This Row],[Project Type]]="OPH",FullPreparedList[[#This Row],[Project Type]]="DEM")), AND(FullPreparedList[[#This Row],[Renewal, New, Expansion, Reallocate, Ignore]]="Expansion",OR(FullPreparedList[[#This Row],[Project Type]]="RRH",FullPreparedList[[#This Row],[Project Type]]="PSH",FullPreparedList[[#This Row],[Project Type]]="TH/RRH"))) -> FALSE | AL57: =COUNTIF(INDEX(FullPreparedList[Project Name],1):FullPreparedList[[#This Row],[Project Name]],FullPreparedList[[#This Row],[Project Name]]) -> 1 | AM57: =IF(AND(FullPreparedList[[#This Row],[Project Name]]<>"",FullPreparedList[[#This Row],[Renewal, New, Expansion, Reallocate, Ignore]]="Ignore"),0,IF(FullPreparedList[[#This Row],[Project Name]]="",-999,1)) -> 0
B58: 43 | C58: Carrfour Supportive Housing | D58: Coalition Lift PSH | E58: PSH | F58: Yes | G58: No | H58: No | I58: FL0244L4D001508 | J58: 131390 | K58: 66278 | M58: Renewal | N58: =IF(FullPreparedList[[#This Row],[Renewal, New, Expansion, Reallocate, Ignore]]="Renewal",FullPreparedList[[#This Row],[CoC Amount Awarded Last Operating Year]]-FullPreparedList[[#This Row],[CoC Funding Requested]],0) -> 131390 | Q58: 0 | R58: =IF(FullPreparedList[[#This Row],[DV/HIV]]="DV",FullPreparedList[[#This Row],[All Fam Beds]],0) -> 0 | T58: 0 | U58: 0 | V58: 34 | W58: 0 | X58: =SUM(FullPreparedList[[#This Row],[Beds HH w/o Children]],FullPreparedList[[#This Row],[Beds HH w/ only Children]]) -> 34 | Y58: =IF(FullPreparedList[[#This Row],[DV/HIV]]="DV",FullPreparedList[[#This Row],[All Ind Beds]],0) -> 0 | Z58: 34 | AA58: 0 | AB58: =SUM(FullPreparedList[[#This Row],[CH Beds HH w/o Children]],FullPreparedList[[#This Row],[CH Beds HH w/ only Children]]) -> 34 | AC58: 0 | AD58: 0 | AH58: =SUM(FullPreparedList[[#This Row],[CH Fam Beds]],FullPreparedList[[#This Row],[Total CH Ind Beds]]) -> 34 | AI58: =SUM(FullPreparedList[[#This Row],[Vet Fam Beds]],FullPreparedList[[#This Row],[Vet Ind Beds]]) -> 0 | AJ58: =SUM(FullPreparedList[[#This Row],[Par Youth Beds]],FullPreparedList[[#This Row],[Single Youth Beds]]) -> 0 | AK58: =OR( AND(FullPreparedList[[#This Row],[Renewal, New, Expansion, Reallocate, Ignore]]="New",OR(FullPreparedList[[#This Row],[Project Type]]="RRH",FullPreparedList[[#This Row],[Project Type]]="PSH",FullPreparedList[[#This Row],[Project Type]]="TH/RRH")), AND(FullPreparedList[[#This Row],[Renewal, New, Expansion, Reallocate, Ignore]]="Renewal",OR(FullPreparedList[[#This Row],[Project Type]]="RRH",FullPreparedList[[#This Row],[Project Type]]="PSH",FullPreparedList[[#This Row],[Project Type]]="TH",FullPreparedList[[#This Row],[Project Type]]="OPH",FullPreparedList[[#This Row],[Project Type]]="DEM")), AND(FullPreparedList[[#This Row],[Renewal, New, Expansion, Reallocate, Ignore]]="Expansion",OR(FullPreparedList[[#This Row],[Project Type]]="RRH",FullPreparedList[[#This Row],[Project Type]]="PSH",FullPreparedList[[#This Row],[Project Type]]="TH/RRH"))) -> TRUE | AL58: =COUNTIF(INDEX(FullPreparedList[Project Name],1):FullPreparedList[[#This Row],[Project Name]],FullPreparedList[[#This Row],[Project Name]]) -> 1 | AM58: =IF(AND(FullPreparedList[[#This Row],[Project Name]]<>"",FullPreparedList[[#This Row],[Renewal, New, Expansion, Reallocate, Ignore]]="Ignore"),0,IF(FullPreparedList[[#This Row],[Project Name]]="",-999,1)) -> 1
B59: 44 | C59: Carrfour Supportive Housing | D59: Del Prado Townhomes | E59: PSH | F59: Yes | G59: No | H59: No | I59: FL0181L4D001710 | J59: 401388 | K59: 58387 | M59: Renewal | N59: =IF(FullPreparedList[[#This Row],[Renewal, New, Expansion, Reallocate, Ignore]]="Renewal",FullPreparedList[[#This Row],[CoC Amount Awarded Last Operating Year]]-FullPreparedList[[#This Row],[CoC Funding Requested]],0) -> 401388 | Q59: 136 | R59: =IF(FullPreparedList[[#This Row],[DV/HIV]]="DV",FullPreparedList[[#This Row],[All Fam Beds]],0) -> 0 | S59: 136 | T59: 0 | U59: 0 | V59: 0 | W59: 0 | X59: =SUM(FullPreparedList[[#This Row],[Beds HH w/o Children]],FullPreparedList[[#This Row],[Beds HH w/ only Children]]) -> 0 | Y59: =IF(FullPreparedList[[#This Row],[DV/HIV]]="DV",FullPreparedList[[#This Row],[All Ind Beds]],0) -> 0 | Z59: 0 | AA59: 0 | AB59: =SUM(FullPreparedList[[#This Row],[CH Beds HH w/o Children]],FullPreparedList[[#This Row],[CH Beds HH w/ only Children]]) -> 0 | AC59: 0 | AD59: 0 | AH59: =SUM(FullPreparedList[[#This Row],[CH Fam Beds]],FullPreparedList[[#This Row],[Total CH Ind Beds]]) -> 136 | AI59: =SUM(FullPreparedList[[#This Row],[Vet Fam Beds]],FullPreparedList[[#This Row],[Vet Ind Beds]]) -> 0 | AJ59: =SUM(FullPreparedList[[#This Row],[Par Youth Beds]],FullPreparedList[[#This Row],[Single Youth Beds]]) -> 0 | AK59: =OR( AND(FullPreparedList[[#This Row],[Renewal, New, Expansion, Reallocate, Ignore]]="New",OR(FullPreparedList[[#This Row],[Project Type]]="RRH",FullPreparedList[[#This Row],[Project Type]]="PSH",FullPreparedList[[#This Row],[Project Type]]="TH/RRH")), AND(FullPreparedList[[#This Row],[Renewal, New, Expansion, Reallocate, Ignore]]="Renewal",OR(FullPreparedList[[#This Row],[Project Type]]="RRH",FullPreparedList[[#This Row],[Project Type]]="PSH",FullPreparedList[[#This Row],[Project Type]]="TH",FullPreparedList[[#This Row],[Project Type]]="OPH",FullPreparedList[[#This Row],[Project Type]]="DEM")), AND(FullPreparedList[[#This Row],[Renewal, New, Expansion, Reallocate, Ignore]]="Expansion",OR(FullPreparedList[[#This Row],[Project Type]]="RRH",FullPreparedList[[#This Row],[Project Type]]="PSH",FullPreparedList[[#This Row],[Project Type]]="TH/RRH"))) -> TRUE | AL59: =COUNTIF(INDEX(FullPreparedList[Project Name],1):FullPreparedList[[#This Row],[Project Name]],FullPreparedList[[#This Row],[Project Name]]) -> 1 | AM59: =IF(AND(FullPreparedList[[#This Row],[Project Name]]<>"",FullPreparedList[[#This Row],[Renewal, New, Expansion, Reallocate, Ignore]]="Ignore"),0,IF(FullPreparedList[[#This Row],[Project Name]]="",-999,1)) -> 1
B60: 45 | C60: Carrfour Supportive Housing | D60: Dr. Barbara Carey Shuler Manor | E60: PSH | F60: No | G60: No | H60: No | M60: Ignore | N60: =IF(FullPreparedList[[#This Row],[Renewal, New, Expansion, Reallocate, Ignore]]="Renewal",FullPreparedList[[#This Row],[CoC Amount Awarded Last Operating Year]]-FullPreparedList[[#This Row],[CoC Funding Requested]],0) -> 0 | Q60: 50 | R60: =IF(FullPreparedList[[#This Row],[DV/HIV]]="DV",FullPreparedList[[#This Row],[All Fam Beds]],0) -> 0 | S60: 0 | T60: 0 | U60: 0 | V60: 29 | W60: 0 | X60: =SUM(FullPreparedList[[#This Row],[Beds HH w/o Children]],FullPreparedList[[#This Row],[Beds HH w/ only Children]]) -> 29 | Y60: =IF(FullPreparedList[[#This Row],[DV/HIV]]="DV",FullPreparedList[[#This Row],[All Ind Beds]],0) -> 0 | Z60: 0 | AA60: 0 | AB60: =SUM(FullPreparedList[[#This Row],[CH Beds HH w/o Children]],FullPreparedList[[#This Row],[CH Beds HH w/ only Children]]) -> 0 | AC60: 20 | AD60: 0 | AH60: =SUM(FullPreparedList[[#This Row],[CH Fam Beds]],FullPreparedList[[#This Row],[Total CH Ind Beds]]) -> 0 | AI60: =SUM(FullPreparedList[[#This Row],[Vet Fam Beds]],FullPreparedList[[#This Row],[Vet Ind Beds]]) -> 20 | AJ60: =SUM(FullPreparedList[[#This Row],[Par Youth Beds]],FullPreparedList[[#This Row],[Single Youth Beds]]) -> 0 | AK60: =OR( AND(FullPreparedList[[#This Row],[Renewal, New, Expansion, Reallocate, Ignore]]="New",OR(FullPreparedList[[#This Row],[Project Type]]="RRH",FullPreparedList[[#This Row],[Project Type]]="PSH",FullPreparedList[[#This Row],[Project Type]]="TH/RRH")), AND(FullPreparedList[[#This Row],[Renewal, New, Expansion, Reallocate, Ignore]]="Renewal",OR(FullPreparedList[[#This Row],[Project Type]]="RRH",FullPreparedList[[#This Row],[Project Type]]="PSH",FullPreparedList[[#This Row],[Project Type]]="TH",FullPreparedList[[#This Row],[Project Type]]="OPH",FullPreparedList[[#This Row],[Project Type]]="DEM")), AND(FullPreparedList[[#This Row],[Renewal, New, Expansion, Reallocate, Ignore]]="Expansion",OR(FullPreparedList[[#This Row],[Project Type]]="RRH",FullPreparedList[[#This Row],[Project Type]]="PSH",FullPreparedList[[#This Row],[Project Type]]="TH/RRH"))) -> FALSE | AL60: =COUNTIF(INDEX(FullPreparedList[Project Name],1):FullPreparedList[[#This Row],[Project Name]],FullPreparedList[[#This Row],[Project Name]]) -> 1 | AM60: =IF(AND(FullPreparedList[[#This Row],[Project Name]]<>"",FullPreparedList[[#This Row],[Renewal, New, Expansion, Reallocate, Ignore]]="Ignore"),0,IF(FullPreparedList[[#This Row],[Project Name]]="",-999,1)) -> 0
B61: 46 | C61: Carrfour Supportive Housing | D61: GPD Harding Villiage | E61: TH | F61: No | G61: No | H61: No | M61: Ignore | N61: =IF(FullPreparedList[[#This Row],[Renewal, New, Expansion, Reallocate, Ignore]]="Renewal",FullPreparedList[[#This Row],[CoC Amount Awarded Last Operating Year]]-FullPreparedList[[#This Row],[CoC Funding Requested]],0) -> 0 | Q61: 0 | R61: =IF(FullPreparedList[[#This Row],[DV/HIV]]="DV",FullPreparedList[[#This Row],[All Fam Beds]],0) -> 0 | T61: 0 | U61: 0 | V61: 20 | W61: 0 | X61: =SUM(FullPreparedList[[#This Row],[Beds HH w/o Children]],FullPreparedList[[#This Row],[Beds HH w/ only Children]]) -> 20 | Y61: =IF(FullPreparedList[[#This Row],[DV/HIV]]="DV",FullPreparedList[[#This Row],[All Ind Beds]],0) -> 0 | AB61: =SUM(FullPreparedList[[#This Row],[CH Beds HH w/o Children]],FullPreparedList[[#This Row],[CH Beds HH w/ only Children]]) -> 0 | AC61: 20 | AD61: 0 | AH61: =SUM(FullPreparedList[[#This Row],[CH Fam Beds]],FullPreparedList[[#This Row],[Total CH Ind Beds]]) -> 0 | AI61: =SUM(FullPreparedList[[#This Row],[Vet Fam Beds]],FullPreparedList[[#This Row],[Vet Ind Beds]]) -> 20 | AJ61: =SUM(FullPreparedList[[#This Row],[Par Youth Beds]],FullPreparedList[[#This Row],[Single Youth Beds]]) -> 0 | AK61: =OR( AND(FullPreparedList[[#This Row],[Renewal, New, Expansion, Reallocate, Ignore]]="New",OR(FullPreparedList[[#This Row],[Project Type]]="RRH",FullPreparedList[[#This Row],[Project Type]]="PSH",FullPreparedList[[#This Row],[Project Type]]="TH/RRH")), AND(FullPreparedList[[#This Row],[Renewal, New, Expansion, Reallocate, Ignore]]="Renewal",OR(FullPreparedList[[#This Row],[Project Type]]="RRH",FullPreparedList[[#This Row],[Project Type]]="PSH",FullPreparedList[[#This Row],[Project Type]]="TH",FullPreparedList[[#This Row],[Project Type]]="OPH",FullPreparedList[[#This Row],[Project Type]]="DEM")), AND(FullPreparedList[[#This Row],[Renewal, New, Expansion, Reallocate, Ignore]]="Expansion",OR(FullPreparedList[[#This Row],[Project Type]]="RRH",FullPreparedList[[#This Row],[Project Type]]="PSH",FullPreparedList[[#This Row],[Project Type]]="TH/RRH"))) -> FALSE | AL61: =COUNTIF(INDEX(FullPreparedList[Project Name],1):FullPreparedList[[#This Row],[Project Name]],FullPreparedList[[#This Row],[Project Name]]) -> 1 | AM61: =IF(AND(FullPreparedList[[#This Row],[Project Name]]<>"",FullPreparedList[[#This Row],[Renewal, New, Expansion, Reallocate, Ignore]]="Ignore"),0,IF(FullPreparedList[[#This Row],[Project Name]]="",-999,1)) -> 0
B62: 47 | C62: Carrfour Supportive Housing | D62: Harding Village I/II | E62: PSH | F62: Yes | G62: No | H62: No | I62: FL0185L4d001710 | J62: 316470 | K62: 312442 | M62: Ignore | N62: =IF(FullPreparedList[[#This Row],[Renewal, New, Expansion, Reallocate, Ignore]]="Renewal",FullPreparedList[[#This Row],[CoC Amount Awarded Last Operating Year]]-FullPreparedList[[#This Row],[CoC Funding Requested]],0) -> 0 | Q62: 0 | R62: =IF(FullPreparedList[[#This Row],[DV/HIV]]="DV",FullPreparedList[[#This Row],[All Fam Beds]],0) -> 0 | S62: 0 | T62: 0 | U62: 0 | V62: 48 | W62: 0 | X62: =SUM(FullPreparedList[[#This Row],[Beds HH w/o Children]],FullPreparedList[[#This Row],[Beds HH w/ only Children]]) -> 48 | Y62: =IF(FullPreparedList[[#This Row],[DV/HIV]]="DV",FullPreparedList[[#This Row],[All Ind Beds]],0) -> 0 | Z62: 48 | AA62: 0 | AB62: =SUM(FullPreparedList[[#This Row],[CH Beds HH w/o Children]],FullPreparedList[[#This Row],[CH Beds HH w/ only Children]]) -> 48 | AC62: 20 | AD62: 0 | AH62: =SUM(FullPreparedList[[#This Row],[CH Fam Beds]],FullPreparedList[[#This Row],[Total CH Ind Beds]]) -> 48 | AI62: =SUM(FullPreparedList[[#This Row],[Vet Fam Beds]],FullPreparedList[[#This Row],[Vet Ind Beds]]) -> 20 | AJ62: =SUM(FullPreparedList[[#This Row],[Par Youth Beds]],FullPreparedList[[#This Row],[Single Youth Beds]]) -> 0 | AK62: =OR( AND(FullPreparedList[[#This Row],[Renewal, New, Expansion, Reallocate, Ignore]]="New",OR(FullPreparedList[[#This Row],[Project Type]]="RRH",FullPreparedList[[#This Row],[Project Type]]="PSH",FullPreparedList[[#This Row],[Project Type]]="TH/RRH")), AND(FullPreparedList[[#This Row],[Renewal, New, Expansion, Reallocate, Ignore]]="Renewal",OR(FullPreparedList[[#This Row],[Project Type]]="RRH",FullPreparedList[[#This Row],[Project Type]]="PSH",FullPreparedList[[#This Row],[Project Type]]="TH",FullPreparedList[[#This Row],[Project Type]]="OPH",FullPreparedList[[#This Row],[Project Type]]="DEM")), AND(FullPreparedList[[#This Row],[Renewal, New, Expansion, Reallocate, Ignore]]="Expansion",OR(FullPreparedList[[#This Row],[Project Type]]="RRH",FullPreparedList[[#This Row],[Project Type]]="PSH",FullPreparedList[[#This Row],[Project Type]]="TH/RRH"))) -> FALSE | AL62: =COUNTIF(INDEX(FullPreparedList[Project Name],1):FullPreparedList[[#This Row],[Project Name]],FullPreparedList[[#This Row],[Project Name]]) -> 1 | AM62: =IF(AND(FullPreparedList[[#This Row],[Project Name]]<>"",FullPreparedList[[#This Row],[Renewal, New, Expansion, Reallocate, Ignore]]="Ignore"),0,IF(FullPreparedList[[#This Row],[Project Name]]="",-999,1)) -> 0
B63: 48 | C63: Carrfour Supportive Housing | D63: Homestead Air Force Base-Verde Gardens | E63: PSH | F63: Yes | G63: No | H63: No | M63: Ignore | N63: =IF(FullPreparedList[[#This Row],[Renewal, New, Expansion, Reallocate, Ignore]]="Renewal",FullPreparedList[[#This Row],[CoC Amount Awarded Last Operating Year]]-FullPreparedList[[#This Row],[CoC Funding Requested]],0) -> 0 | Q63: 440 | R63: =IF(FullPreparedList[[#This Row],[DV/HIV]]="DV",FullPreparedList[[#This Row],[All Fam Beds]],0) -> 0 | S63: 440 | T63: 0 | U63: 0 | V63: 0 | W63: 0 | X63: =SUM(FullPreparedList[[#This Row],[Beds HH w/o Children]],FullPreparedList[[#This Row],[Beds HH w/ only Children]]) -> 0 | Y63: =IF(FullPreparedList[[#This Row],[DV/HIV]]="DV",FullPreparedList[[#This Row],[All Ind Beds]],0) -> 0 | Z63: 0 | AA63: 0 | AB63: =SUM(FullPreparedList[[#This Row],[CH Beds HH w/o Children]],FullPreparedList[[#This Row],[CH Beds HH w/ only Children]]) -> 0 | AC63: 0 | AD63: 0 | AH63: =SUM(FullPreparedList[[#This Row],[CH Fam Beds]],FullPreparedList[[#This Row],[Total CH Ind Beds]]) -> 440 | AI63: =SUM(FullPreparedList[[#This Row],[Vet Fam Beds]],FullPreparedList[[#This Row],[Vet Ind Beds]]) -> 0 | AJ63: =SUM(FullPreparedList[[#This Row],[Par Youth Beds]],FullPreparedList[[#This Row],[Single Youth Beds]]) -> 0 | AK63: =OR( AND(FullPreparedList[[#This Row],[Renewal, New, Expansion, Reallocate, Ignore]]="New",OR(FullPreparedList[[#This Row],[Project Type]]="RRH",FullPreparedList[[#This Row],[Project Type]]="PSH",FullPreparedList[[#This Row],[Project Type]]="TH/RRH")), AND(FullPreparedList[[#This Row],[Renewal, New, Expansion, Reallocate, Ignore]]="Renewal",OR(FullPreparedList[[#This Row],[Project Type]]="RRH",FullPreparedList[[#This Row],[Project Type]]="PSH",FullPreparedList[[#This Row],[Project Type]]="TH",FullPreparedList[[#This Row],[Project Type]]="OPH",FullPreparedList[[#This Row],[Project Type]]="DEM")), AND(FullPreparedList[[#This Row],[Renewal, New, Expansion, Reallocate, Ignore]]="Expansion",OR(FullPreparedList[[#This Row],[Project Type]]="RRH",FullPreparedList[[#This Row],[Project Type]]="PSH",FullPreparedList[[#This Row],[Project Type]]="TH/RRH"))) -> FALSE | AL63: =COUNTIF(INDEX(FullPreparedList[Project Name],1):FullPreparedList[[#This Row],[Project Name]],FullPreparedList[[#This Row],[Project Name]]) -> 1 | AM63: =IF(AND(FullPreparedList[[#This Row],[Project Name]]<>"",FullPreparedList[[#This Row],[Renewal, New, Expansion, Reallocate, Ignore]]="Ignore"),0,IF(FullPreparedList[[#This Row],[Project Name]]="",-999,1)) -> 0
B64: 49 | C64: Carrfour Supportive Housing | D64: Homestead Air Force Base-Verde Gardens (Non-SHP) | E64: PSH | F64: No | G64: No | H64: No | M64: Renewal | N64: =IF(FullPreparedList[[#This Row],[Renewal, New, Expansion, Reallocate, Ignore]]="Renewal",FullPreparedList[[#This Row],[CoC Amount Awarded Last Operating Year]]-FullPreparedList[[#This Row],[CoC Funding Requested]],0) -> 0 | Q64: 140 | R64: =IF(FullPreparedList[[#This Row],[DV/HIV]]="DV",FullPreparedList[[#This Row],[All Fam Beds]],0) -> 0 | S64: 0 | T64: 0 | U64: 0 | V64: 0 | W64: 0 | X64: =SUM(FullPreparedList[[#This Row],[Beds HH w/o Children]],FullPreparedList[[#This Row],[Beds HH w/ only Children]]) -> 0 | Y64: =IF(FullPreparedList[[#This Row],[DV/HIV]]="DV",FullPreparedList[[#This Row],[All Ind Beds]],0) -> 0 | Z64: 0 | AA64: 0 | AB64: =SUM(FullPreparedList[[#This Row],[CH Beds HH w/o Children]],FullPreparedList[[#This Row],[CH Beds HH w/ only Children]]) -> 0 | AC64: 0 | AD64: 0 | AH64: =SUM(FullPreparedList[[#This Row],[CH Fam Beds]],FullPreparedList[[#This Row],[Total CH Ind Beds]]) -> 0 | AI64: =SUM(FullPreparedList[[#This Row],[Vet Fam Beds]],FullPreparedList[[#This Row],[Vet Ind Beds]]) -> 0 | AJ64: =SUM(FullPreparedList[[#This Row],[Par Youth Beds]],FullPreparedList[[#This Row],[Single Youth Beds]]) -> 0 | AK64: =OR( AND(FullPreparedList[[#This Row],[Renewal, New, Expansion, Reallocate, Ignore]]="New",OR(FullPreparedList[[#This Row],[Project Type]]="RRH",FullPreparedList[[#This Row],[Project Type]]="PSH",FullPreparedList[[#This Row],[Project Type]]="TH/RRH")), AND(FullPreparedList[[#This Row],[Renewal, New, Expansion, Reallocate, Ignore]]="Renewal",OR(FullPreparedList[[#This Row],[Project Type]]="RRH",FullPreparedList[[#This Row],[Project Type]]="PSH",FullPreparedList[[#This Row],[Project Type]]="TH",FullPreparedList[[#This Row],[Project Type]]="OPH",FullPreparedList[[#This Row],[Project Type]]="DEM")), AND(FullPreparedList[[#This Row],[Renewal, New, Expansion, Reallocate, Ignore]]="Expansion",OR(FullPreparedList[[#This Row],[Project Type]]="RRH",FullPreparedList[[#This Row],[Project Type]]="PSH",FullPreparedList[[#This Row],[Project Type]]="TH/RRH"))) -> TRUE | AL64: =COUNTIF(INDEX(FullPreparedList[Project Name],1):FullPreparedList[[#This Row],[Project Name]],FullPreparedList[[#This Row],[Project Name]]) -> 1 | AM64: =IF(AND(FullPreparedList[[#This Row],[Project Name]]<>"",FullPreparedList[[#This Row],[Renewal, New, Expansion, Reallocate, Ignore]]="Ignore"),0,IF(FullPreparedList[[#This Row],[Project Name]]="",-999,1)) -> 1
B65: 50 | C65: Carrfour Supportive Housing | D65: Housing Assistance Program | E65: PSH | F65: Yes | G65: No | H65: No | I65: FL0196L4D001710 | J65: 172820 | K65: 82129 | M65: Ignore | N65: =IF(FullPreparedList[[#This Row],[Renewal, New, Expansion, Reallocate, Ignore]]="Renewal",FullPreparedList[[#This Row],[CoC Amount Awarded Last Operating Year]]-FullPreparedList[[#This Row],[CoC Funding Requested]],0) -> 0 | Q65: 0 | R65: =IF(FullPreparedList[[#This Row],[DV/HIV]]="DV",FullPreparedList[[#This Row],[All Fam Beds]],0) -> 0 | S65: 0 | T65: 0 | U65: 0 | V65: 24 | W65: 0 | X65: =SUM(FullPreparedList[[#This Row],[Beds HH w/o Children]],FullPreparedList[[#This Row],[Beds HH w/ only Children]]) -> 24 | Y65: =IF(FullPreparedList[[#This Row],[DV/HIV]]="DV",FullPreparedList[[#This Row],[All Ind Beds]],0) -> 0 | Z65: 24 | AA65: 0 | AB65: =SUM(FullPreparedList[[#This Row],[CH Beds HH w/o Children]],FullPreparedList[[#This Row],[CH Beds HH w/ only Children]]) -> 24 | AC65: 0 | AD65: 0 | AH65: =SUM(FullPreparedList[[#This Row],[CH Fam Beds]],FullPreparedList[[#This Row],[Total CH Ind Beds]]) -> 24 | AI65: =SUM(FullPreparedList[[#This Row],[Vet Fam Beds]],FullPreparedList[[#This Row],[Vet Ind Beds]]) -> 0 | AJ65: =SUM(FullPreparedList[[#This Row],[Par Youth Beds]],FullPreparedList[[#This Row],[Single Youth Beds]]) -> 0 | AK65: =OR( AND(FullPreparedList[[#This Row],[Renewal, New, Expansion, Reallocate, Ignore]]="New",OR(FullPreparedList[[#This Row],[Project Type]]="RRH",FullPreparedList[[#This Row],[Project Type]]="PSH",FullPreparedList[[#This Row],[Project Type]]="TH/RRH")), AND(FullPreparedList[[#This Row],[Renewal, New, Expansion, Reallocate, Ignore]]="Renewal",OR(FullPreparedList[[#This Row],[Project Type]]="RRH",FullPreparedList[[#This Row],[Project Type]]="PSH",FullPreparedList[[#This Row],[Project Type]]="TH",FullPreparedList[[#This Row],[Project Type]]="OPH",FullPreparedList[[#This Row],[Project Type]]="DEM")), AND(FullPreparedList[[#This Row],[Renewal, New, Expansion, Reallocate, Ignore]]="Expansion",OR(FullPreparedList[[#This Row],[Project Type]]="RRH",FullPreparedList[[#This Row],[Project Type]]="PSH",FullPreparedList[[#This Row],[Project Type]]="TH/RRH"))) -> FALSE | AL65: =COUNTIF(INDEX(FullPreparedList[Project Name],1):FullPreparedList[[#This Row],[Project Name]],FullPreparedList[[#This Row],[Project Name]]) -> 1 | AM65: =IF(AND(FullPreparedList[[#This Row],[Project Name]]<>"",FullPreparedList[[#This Row],[Renewal, New, Expansion, Reallocate, Ignore]]="Ignore"),0,IF(FullPreparedList[[#This Row],[Project Name]]="",-999,1)) -> 0
B66: 51 | C66: Carrfour Supportive Housing | D66: Little Haiti Gateway | E66: PSH | F66: Yes | G66: No | H66: No | I66: FL0202L4D001710 | J66: 184710 | K66: 82996 | M66: Renewal | N66: =IF(FullPreparedList[[#This Row],[Renewal, New, Expansion, Reallocate, Ignore]]="Renewal",FullPreparedList[[#This Row],[CoC Amount Awarded Last Operating Year]]-FullPreparedList[[#This Row],[CoC Funding Requested]],0) -> 184710 | Q66: 0 | R66: =IF(FullPreparedList[[#This Row],[DV/HIV]]="DV",FullPreparedList[[#This Row],[All Fam Beds]],0) -> 0 | S66: 0 | T66: 0 | U66: 0 | V66: 70 | W66: 0 | X66: =SUM(FullPreparedList[[#This Row],[Beds HH w/o Children]],FullPreparedList[[#This Row],[Beds HH w/ only Children]]) -> 70 | Y66: =IF(FullPreparedList[[#This Row],[DV/HIV]]="DV",FullPreparedList[[#This Row],[All Ind Beds]],0) -> 0 | Z66: 70 | AA66: 0 | AB66: =SUM(FullPreparedList[[#This Row],[CH Beds HH w/o Children]],FullPreparedList[[#This Row],[CH Beds HH w/ only Children]]) -> 70 | AC66: 0 | AD66: 0 | AH66: =SUM(FullPreparedList[[#This Row],[CH Fam Beds]],FullPreparedList[[#This Row],[Total CH Ind Beds]]) -> 70 | AI66: =SUM(FullPreparedList[[#This Row],[Vet Fam Beds]],FullPreparedList[[#This Row],[Vet Ind Beds]]) -> 0 | AJ66: =SUM(FullPreparedList[[#This Row],[Par Youth Beds]],FullPreparedList[[#This Row],[Single Youth Beds]]) -> 0 | AK66: =OR( AND(FullPreparedList[[#This Row],[Renewal, New, Expansion, Reallocate, Ignore]]="New",OR(FullPreparedList[[#This Row],[Project Type]]="RRH",FullPreparedList[[#This Row],[Project Type]]="PSH",FullPreparedList[[#This Row],[Project Type]]="TH/RRH")), AND(FullPreparedList[[#This Row],[Renewal, New, Expansion, Reallocate, Ignore]]="Renewal",OR(FullPreparedList[[#This Row],[Project Type]]="RRH",FullPreparedList[[#This Row],[Project Type]]="PSH",FullPreparedList[[#This Row],[Project Type]]="TH",FullPreparedList[[#This Row],[Project Type]]="OPH",FullPreparedList[[#This Row],[Project Type]]="DEM")), AND(FullPreparedList[[#This Row],[Renewal, New, Expansion, Reallocate, Ignore]]="Expansion",OR(FullPreparedList[[#This Row],[Project Type]]="RRH",FullPreparedList[[#This Row],[Project Type]]="PSH",FullPreparedList[[#This Row],[Project Type]]="TH/RRH"))) -> TRUE | AL66: =COUNTIF(INDEX(FullPreparedList[Project Name],1):FullPreparedList[[#This Row],[Project Name]],FullPreparedList[[#This Row],[Project Name]]) -> 1 | AM66: =IF(AND(FullPreparedList[[#This Row],[Project Name]]<>"",FullPreparedList[[#This Row],[Renewal, New, Expansion, Reallocate, Ignore]]="Ignore"),0,IF(FullPreparedList[[#This Row],[Project Name]]="",-999,1)) -> 1
B67: 52 | C67: Carrfour Supportive Housing | D67: Little Riverbend | E67: PSH | F67: Yes | G67: No | H67: No | I67: FL0204L4D001710 | J67: 281949 | K67: 71343.5 | M67: Ignore | N67: =IF(FullPreparedList[[#This Row],[Renewal, New, Expansion, Reallocate, Ignore]]="Renewal",FullPreparedList[[#This Row],[CoC Amount Awarded Last Operating Year]]-FullPreparedList[[#This Row],[CoC Funding Requested]],0) -> 0 | Q67: 0 | R67: =IF(FullPreparedList[[#This Row],[DV/HIV]]="DV",FullPreparedList[[#This Row],[All Fam Beds]],0) -> 0 | S67: 0 | T67: 0 | U67: 0 | V67: 46 | W67: 0 | X67: =SUM(FullPreparedList[[#This Row],[Beds HH w/o Children]],FullPreparedList[[#This Row],[Beds HH w/ only Children]]) -> 46 | Y67: =IF(FullPreparedList[[#This Row],[DV/HIV]]="DV",FullPreparedList[[#This Row],[All Ind Beds]],0) -> 0 | Z67: 46 | AA67: 0 | AB67: =SUM(FullPreparedList[[#This Row],[CH Beds HH w/o Children]],FullPreparedList[[#This Row],[CH Beds HH w/ only Children]]) -> 46 | AC67: 0 | AD67: 0 | AH67: =SUM(FullPreparedList[[#This Row],[CH Fam Beds]],FullPreparedList[[#This Row],[Total CH Ind Beds]]) -> 46 | AI67: =SUM(FullPreparedList[[#This Row],[Vet Fam Beds]],FullPreparedList[[#This Row],[Vet Ind Beds]]) -> 0 | AJ67: =SUM(FullPreparedList[[#This Row],[Par Youth Beds]],FullPreparedList[[#This Row],[Single Youth Beds]]) -> 0 | AK67: =OR( AND(FullPreparedList[[#This Row],[Renewal, New, Expansion, Reallocate, Ignore]]="New",OR(FullPreparedList[[#This Row],[Project Type]]="RRH",FullPreparedList[[#This Row],[Project Type]]="PSH",FullPreparedList[[#This Row],[Project Type]]="TH/RRH")), AND(FullPreparedList[[#This Row],[Renewal, New, Expansion, Reallocate, Ignore]]="Renewal",OR(FullPreparedList[[#This Row],[Project Type]]="RRH",FullPreparedList[[#This Row],[Project Type]]="PSH",FullPreparedList[[#This Row],[Project Type]]="TH",FullPreparedList[[#This Row],[Project Type]]="OPH",FullPreparedList[[#This Row],[Project Type]]="DEM")), AND(FullPreparedList[[#This Row],[Renewal, New, Expansion, Reallocate, Ignore]]="Expansion",OR(FullPreparedList[[#This Row],[Project Type]]="RRH",FullPreparedList[[#This Row],[Project Type]]="PSH",FullPreparedList[[#This Row],[Project Type]]="TH/RRH"))) -> FALSE | AL67: =COUNTIF(INDEX(FullPreparedList[Project Name],1):FullPreparedList[[#This Row],[Project Name]],FullPreparedList[[#This Row],[Project Name]]) -> 1 | AM67: =IF(AND(FullPreparedList[[#This Row],[Project Name]]<>"",FullPreparedList[[#This Row],[Renewal, New, Expansion, Reallocate, Ignore]]="Ignore"),0,IF(FullPreparedList[[#This Row],[Project Name]]="",-999,1)) -> 0
B68: 53 | C68: Carrfour Supportive Housing | D68: Little Riverbend 20 | E68: PSH | F68: Yes | G68: No | H68: No | I68: FL0203L4D001710 | J68: 49250 | K68: 15380.5 | M68: Ignore | N68: =IF(FullPreparedList[[#This Row],[Renewal, New, Expansion, Reallocate, Ignore]]="Renewal",FullPreparedList[[#This Row],[CoC Amount Awarded Last Operating Year]]-FullPreparedList[[#This Row],[CoC Funding Requested]],0) -> 0 | Q68: 0 | R68: =IF(FullPreparedList[[#This Row],[DV/HIV]]="DV",FullPreparedList[[#This Row],[All Fam Beds]],0) -> 0 | S68: 0 | T68: 0 | U68: 0 | V68: 20 | W68: 0 | X68: =SUM(FullPreparedList[[#This Row],[Beds HH w/o Children]],FullPreparedList[[#This Row],[Beds HH w/ only Children]]) -> 20 | Y68: =IF(FullPreparedList[[#This Row],[DV/HIV]]="DV",FullPreparedList[[#This Row],[All Ind Beds]],0) -> 0 | Z68: 20 | AA68: 0 | AB68: =SUM(FullPreparedList[[#This Row],[CH Beds HH w/o Children]],FullPreparedList[[#This Row],[CH Beds HH w/ only Children]]) -> 20 | AC68: 0 | AD68: 0 | AH68: =SUM(FullPreparedList[[#This Row],[CH Fam Beds]],FullPreparedList[[#This Row],[Total CH Ind Beds]]) -> 20 | AI68: =SUM(FullPreparedList[[#This Row],[Vet Fam Beds]],FullPreparedList[[#This Row],[Vet Ind Beds]]) -> 0 | AJ68: =SUM(FullPreparedList[[#This Row],[Par Youth Beds]],FullPreparedList[[#This Row],[Single Youth Beds]]) -> 0 | AK68: =OR( AND(FullPreparedList[[#This Row],[Renewal, New, Expansion, Reallocate, Ignore]]="New",OR(FullPreparedList[[#This Row],[Project Type]]="RRH",FullPreparedList[[#This Row],[Project Type]]="PSH",FullPreparedList[[#This Row],[Project Type]]="TH/RRH")), AND(FullPreparedList[[#This Row],[Renewal, New, Expansion, Reallocate, Ignore]]="Renewal",OR(FullPreparedList[[#This Row],[Project Type]]="RRH",FullPreparedList[[#This Row],[Project Type]]="PSH",FullPreparedList[[#This Row],[Project Type]]="TH",FullPreparedList[[#This Row],[Project Type]]="OPH",FullPreparedList[[#This Row],[Project Type]]="DEM")), AND(FullPreparedList[[#This Row],[Renewal, New, Expansion, Reallocate, Ignore]]="Expansion",OR(FullPreparedList[[#This Row],[Project Type]]="RRH",FullPreparedList[[#This Row],[Project Type]]="PSH",FullPreparedList[[#This Row],[Project Type]]="TH/RRH"))) -> FALSE | AL68: =COUNTIF(INDEX(FullPreparedList[Project Name],1):FullPreparedList[[#This Row],[Project Name]],FullPreparedList[[#This Row],[Project Name]]) -> 1 | AM68: =IF(AND(FullPreparedList[[#This Row],[Project Name]]<>"",FullPreparedList[[#This Row],[Renewal, New, Expansion, Reallocate, Ignore]]="Ignore"),0,IF(FullPreparedList[[#This Row],[Project Name]]="",-999,1)) -> 0
B69: 54 | C69: Carrfour Supportive Housing | D69: Rivermont Apartments | E69: PSH | F69: No | G69: No | H69: No | M69: Ignore | N69: =IF(FullPreparedList[[#This Row],[Renewal, New, Expansion, Reallocate, Ignore]]="Renewal",FullPreparedList[[#This Row],[CoC Amount Awarded Last Operating Year]]-FullPreparedList[[#This Row],[CoC Funding Requested]],0) -> 0 | Q69: 0 | R69: =IF(FullPreparedList[[#This Row],[DV/HIV]]="DV",FullPreparedList[[#This Row],[All Fam Beds]],0) -> 0 | T69: 0 | U69: 0 | V69: 36 | W69: 0 | X69: =SUM(FullPreparedList[[#This Row],[Beds HH w/o Children]],FullPreparedList[[#This Row],[Beds HH w/ only Children]]) -> 36 | Y69: =IF(FullPreparedList[[#This Row],[DV/HIV]]="DV",FullPreparedList[[#This Row],[All Ind Beds]],0) -> 0 | Z69: 0 | AA69: 0 | AB69: =SUM(FullPreparedList[[#This Row],[CH Beds HH w/o Children]],FullPreparedList[[#This Row],[CH Beds HH w/ only Children]]) -> 0 | AC69: 0 | AD69: 0 | AH69: =SUM(FullPreparedList[[#This Row],[CH Fam Beds]],FullPreparedList[[#This Row],[Total CH Ind Beds]]) -> 0 | AI69: =SUM(FullPreparedList[[#This Row],[Vet Fam Beds]],FullPreparedList[[#This Row],[Vet Ind Beds]]) -> 0 | AJ69: =SUM(FullPreparedList[[#This Row],[Par Youth Beds]],FullPreparedList[[#This Row],[Single Youth Beds]]) -> 0 | AK69: =OR( AND(FullPreparedList[[#This Row],[Renewal, New, Expansion, Reallocate, Ignore]]="New",OR(FullPreparedList[[#This Row],[Project Type]]="RRH",FullPreparedList[[#This Row],[Project Type]]="PSH",FullPreparedList[[#This Row],[Project Type]]="TH/RRH")), AND(FullPreparedList[[#This Row],[Renewal, New, Expansion, Reallocate, Ignore]]="Renewal",OR(FullPreparedList[[#This Row],[Project Type]]="RRH",FullPreparedList[[#This Row],[Project Type]]="PSH",FullPreparedList[[#This Row],[Project Type]]="TH",FullPreparedList[[#This Row],[Project Type]]="OPH",FullPreparedList[[#This Row],[Project Type]]="DEM")), AND(FullPreparedList[[#This Row],[Renewal, New, Expansion, Reallocate, Ignore]]="Expansion",OR(FullPreparedList[[#This Row],[Project Type]]="RRH",FullPreparedList[[#This Row],[Project Type]]="PSH",FullPreparedList[[#This Row],[Project Type]]="TH/RRH"))) -> FALSE | AL69: =COUNTIF(INDEX(FullPreparedList[Project Name],1):FullPreparedList[[#This Row],[Project Name]],FullPreparedList[[#This Row],[Project Name]]) -> 1 | AM69: =IF(AND(FullPreparedList[[#This Row],[Project Name]]<>"",FullPreparedList[[#This Row],[Renewal, New, Expansion, Reallocate, Ignore]]="Ignore"),0,IF(FullPreparedList[[#This Row],[Project Name]]="",-999,1)) -> 0
B70: 55 | C70: Carrfour Supportive Housing | D70: Rivermont Apartments SHP | E70: PSH | F70: Yes | G70: No | H70: No | M70: Renewal | N70: =IF(FullPreparedList[[#This Row],[Renewal, New, Expansion, Reallocate, Ignore]]="Renewal",FullPreparedList[[#This Row],[CoC Amount Awarded Last Operating Year]]-FullPreparedList[[#This Row],[CoC Funding Requested]],0) -> 0 | Q70: 0 | R70: =IF(FullPreparedList[[#This Row],[DV/HIV]]="DV",FullPreparedList[[#This Row],[All Fam Beds]],0) -> 0 | S70: 0 | T70: 0 | U70: 0 | V70: 40 | W70: 0 | X70: =SUM(FullPreparedList[[#This Row],[Beds HH w/o Children]],FullPreparedList[[#This Row],[Beds HH w/ only Children]]) -> 40 | Y70: =IF(FullPreparedList[[#This Row],[DV/HIV]]="DV",FullPreparedList[[#This Row],[All Ind Beds]],0) -> 0 | Z70: 0 | AA70: 0 | AB70: =SUM(FullPreparedList[[#This Row],[CH Beds HH w/o Children]],FullPreparedList[[#This Row],[CH Beds HH w/ only Children]]) -> 0 | AC70: 0 | AD70: 0 | AH70: =SUM(FullPreparedList[[#This Row],[CH Fam Beds]],FullPreparedList[[#This Row],[Total CH Ind Beds]]) -> 0 | AI70: =SUM(FullPreparedList[[#This Row],[Vet Fam Beds]],FullPreparedList[[#This Row],[Vet Ind Beds]]) -> 0 | AJ70: =SUM(FullPreparedList[[#This Row],[Par Youth Beds]],FullPreparedList[[#This Row],[Single Youth Beds]]) -> 0 | AK70: =OR( AND(FullPreparedList[[#This Row],[Renewal, New, Expansion, Reallocate, Ignore]]="New",OR(FullPreparedList[[#This Row],[Project Type]]="RRH",FullPreparedList[[#This Row],[Project Type]]="PSH",FullPreparedList[[#This Row],[Project Type]]="TH/RRH")), AND(FullPreparedList[[#This Row],[Renewal, New, Expansion, Reallocate, Ignore]]="Renewal",OR(FullPreparedList[[#This Row],[Project Type]]="RRH",FullPreparedList[[#This Row],[Project Type]]="PSH",FullPreparedList[[#This Row],[Project Type]]="TH",FullPreparedList[[#This Row],[Project Type]]="OPH",FullPreparedList[[#This Row],[Project Type]]="DEM")), AND(FullPreparedList[[#This Row],[Renewal, New, Expansion, Reallocate, Ignore]]="Expansion",OR(FullPreparedList[[#This Row],[Project Type]]="RRH",FullPreparedList[[#This Row],[Project Type]]="PSH",FullPreparedList[[#This Row],[Project Type]]="TH/RRH"))) -> TRUE | AL70: =COUNTIF(INDEX(FullPreparedList[Project Name],1):FullPreparedList[[#This Row],[Project Name]],FullPreparedList[[#This Row],[Project Name]]) -> 1 | AM70: =IF(AND(FullPreparedList[[#This Row],[Project Name]]<>"",FullPreparedList[[#This Row],[Renewal, New, Expansion, Reallocate, Ignore]]="Ignore"),0,IF(FullPreparedList[[#This Row],[Project Name]]="",-999,1)) -> 1
B71: 56 | C71: Carrfour Supportive Housing | D71: Royalton | E71: PSH | F71: Yes | G71: No | H71: No | I71: FL0362L4D001607 | J71: 505017 | K71: 350004.32 | M71: Renewal | N71: =IF(FullPreparedList[[#This Row],[Renewal, New, Expansion, Reallocate, Ignore]]="Renewal",FullPreparedList[[#This Row],[CoC Amount Awarded Last Operating Year]]-FullPreparedList[[#This Row],[CoC Funding Requested]],0) -> 505017 | Q71: 0 | R71: =IF(FullPreparedList[[#This Row],[DV/HIV]]="DV",FullPreparedList[[#This Row],[All Fam Beds]],0) -> 0 | S71: 0 | T71: 0 | U71: 0 | V71: 77 | W71: 0 | X71: =SUM(FullPreparedList[[#This Row],[Beds HH w/o Children]],FullPreparedList[[#This Row],[Beds HH w/ only Children]]) -> 77 | Y71: =IF(FullPreparedList[[#This Row],[DV/HIV]]="DV",FullPreparedList[[#This Row],[All Ind Beds]],0) -> 0 | Z71: 7 | AA71: 0 | AB71: =SUM(FullPreparedList[[#This Row],[CH Beds HH w/o Children]],FullPreparedList[[#This Row],[CH Beds HH w/ only Children]]) -> 7 | AC71: 0 | AD71: 0 | AH71: =SUM(FullPreparedList[[#This Row],[CH Fam Beds]],FullPreparedList[[#This Row],[Total CH Ind Beds]]) -> 7 | AI71: =SUM(FullPreparedList[[#This Row],[Vet Fam Beds]],FullPreparedList[[#This Row],[Vet Ind Beds]]) -> 0 | AJ71: =SUM(FullPreparedList[[#This Row],[Par Youth Beds]],FullPreparedList[[#This Row],[Single Youth Beds]]) -> 0 | AK71: =OR( AND(FullPreparedList[[#This Row],[Renewal, New, Expansion, Reallocate, Ignore]]="New",OR(FullPreparedList[[#This Row],[Project Type]]="RRH",FullPreparedList[[#This Row],[Project Type]]="PSH",FullPreparedList[[#This Row],[Project Type]]="TH/RRH")), AND(FullPreparedList[[#This Row],[Renewal, New, Expansion, Reallocate, Ignore]]="Renewal",OR(FullPreparedList[[#This Row],[Project Type]]="RRH",FullPreparedList[[#This Row],[Project Type]]="PSH",FullPreparedList[[#This Row],[Project Type]]="TH",FullPreparedList[[#This Row],[Project Type]]="OPH",FullPreparedList[[#This Row],[Project Type]]="DEM")), AND(FullPreparedList[[#This Row],[Renewal, New, Expansion, Reallocate, Ignore]]="Expansion",OR(FullPreparedList[[#This Row],[Project Type]]="RRH",FullPreparedList[[#This Row],[Project Type]]="PSH",FullPreparedList[[#This Row],[Project Type]]="TH/RRH"))) -> TRUE | AL71: =COUNTIF(INDEX(FullPreparedList[Project Name],1):FullPreparedList[[#This Row],[Project Name]],FullPreparedList[[#This Row],[Project Name]]) -> 1 | AM71: =IF(AND(FullPreparedList[[#This Row],[Project Name]]<>"",FullPreparedList[[#This Row],[Renewal, New, Expansion, Reallocate, Ignore]]="Ignore"),0,IF(FullPreparedList[[#This Row],[Project Name]]="",-999,1)) -> 1
B72: 57 | C72: Carrfour Supportive Housing | D72: Shepherd House | E72: PSH | F72: Yes | G72: No | H72: No | I72: FL0228L4D001710 | J72: 87747 | K72: 24780 | M72: Renewal | N72: =IF(FullPreparedList[[#This Row],[Renewal, New, Expansion, Reallocate, Ignore]]="Renewal",FullPreparedList[[#This Row],[CoC Amount Awarded Last Operating Year]]-FullPreparedList[[#This Row],[CoC Funding Requested]],0) -> 87747 | Q72: 19 | R72: =IF(FullPreparedList[[#This Row],[DV/HIV]]="DV",FullPreparedList[[#This Row],[All Fam Beds]],0) -> 0 | S72: 19 | T72: 0 | U72: 0 | V72: 0 | W72: 0 | X72: =SUM(FullPreparedList[[#This Row],[Beds HH w/o Children]],FullPreparedList[[#This Row],[Beds HH w/ only Children]]) -> 0 | Y72: =IF(FullPreparedList[[#This Row],[DV/HIV]]="DV",FullPreparedList[[#This Row],[All Ind Beds]],0) -> 0 | Z72: 0 | AA72: 0 | AB72: =SUM(FullPreparedList[[#This Row],[CH Beds HH w/o Children]],FullPreparedList[[#This Row],[CH Beds HH w/ only Children]]) -> 0 | AC72: 0 | AD72: 0 | AH72: =SUM(FullPreparedList[[#This Row],[CH Fam Beds]],FullPreparedList[[#This Row],[Total CH Ind Beds]]) -> 19 | AI72: =SUM(FullPreparedList[[#This Row],[Vet Fam Beds]],FullPreparedList[[#This Row],[Vet Ind Beds]]) -> 0 | AJ72: =SUM(FullPreparedList[[#This Row],[Par Youth Beds]],FullPreparedList[[#This Row],[Single Youth Beds]]) -> 0 | AK72: =OR( AND(FullPreparedList[[#This Row],[Renewal, New, Expansion, Reallocate, Ignore]]="New",OR(FullPreparedList[[#This Row],[Project Type]]="RRH",FullPreparedList[[#This Row],[Project Type]]="PSH",FullPreparedList[[#This Row],[Project Type]]="TH/RRH")), AND(FullPreparedList[[#This Row],[Renewal, New, Expansion, Reallocate, Ignore]]="Renewal",OR(FullPreparedList[[#This Row],[Project Type]]="RRH",FullPreparedList[[#This Row],[Project Type]]="PSH",FullPreparedList[[#This Row],[Project Type]]="TH",FullPreparedList[[#This Row],[Project Type]]="OPH",FullPreparedList[[#This Row],[Project Type]]="DEM")), AND(FullPreparedList[[#This Row],[Renewal, New, Expansion, Reallocate, Ignore]]="Expansion",OR(FullPreparedList[[#This Row],[Project Type]]="RRH",FullPreparedList[[#This Row],[Project Type]]="PSH",FullPreparedList[[#This Row],[Project Type]]="TH/RRH"))) -> TRUE | AL72: =COUNTIF(INDEX(FullPreparedList[Project Name],1):FullPreparedList[[#This Row],[Project Name]],FullPreparedList[[#This Row],[Project Name]]) -> 1 | AM72: =IF(AND(FullPreparedList[[#This Row],[Project Name]]<>"",FullPreparedList[[#This Row],[Renewal, New, Expansion, Reallocate, Ignore]]="Ignore"),0,IF(FullPreparedList[[#This Row],[Project Name]]="",-999,1)) -> 1
B73: 58 | C73: Carrfour Supportive Housing | D73: SSVF - Operation Sacred Trust | E73: RRH | F73: No | G73: No | H73: No | M73: Ignore | N73: =IF(FullPreparedList[[#This Row],[Renewal, New, Expansion, Reallocate, Ignore]]="Renewal",FullPreparedList[[#This Row],[CoC Amount Awarded Last Operating Year]]-FullPreparedList[[#This Row],[CoC Funding Requested]],0) -> 0 | Q73: 28 | R73: =IF(FullPreparedList[[#This Row],[DV/HIV]]="DV",FullPreparedList[[#This Row],[All Fam Beds]],0) -> 0 | T73: 28 | U73: 0 | V73: 64 | W73: 0 | X73: =SUM(FullPreparedList[[#This Row],[Beds HH w/o Children]],FullPreparedList[[#This Row],[Beds HH w/ only Children]]) -> 64 | Y73: =IF(FullPreparedList[[#This Row],[DV/HIV]]="DV",FullPreparedList[[#This Row],[All Ind Beds]],0) -> 0 | AB73: =SUM(FullPreparedList[[#This Row],[CH Beds HH w/o Children]],FullPreparedList[[#This Row],[CH Beds HH w/ only Children]]) -> 0 | AC73: 64 | AD73: 0 | AH73: =SUM(FullPreparedList[[#This Row],[CH Fam Beds]],FullPreparedList[[#This Row],[Total CH Ind Beds]]) -> 0 | AI73: =SUM(FullPreparedList[[#This Row],[Vet Fam Beds]],FullPreparedList[[#This Row],[Vet Ind Beds]]) -> 92 | AJ73: =SUM(FullPreparedList[[#This Row],[Par Youth Beds]],FullPreparedList[[#This Row],[Single Youth Beds]]) -> 0 | AK73: =OR( AND(FullPreparedList[[#This Row],[Renewal, New, Expansion, Reallocate, Ignore]]="New",OR(FullPreparedList[[#This Row],[Project Type]]="RRH",FullPreparedList[[#This Row],[Project Type]]="PSH",FullPreparedList[[#This Row],[Project Type]]="TH/RRH")), AND(FullPreparedList[[#This Row],[Renewal, New, Expansion, Reallocate, Ignore]]="Renewal",OR(FullPreparedList[[#This Row],[Project Type]]="RRH",FullPreparedList[[#This Row],[Project Type]]="PSH",FullPreparedList[[#This Row],[Project Type]]="TH",FullPreparedList[[#This Row],[Project Type]]="OPH",FullPreparedList[[#This Row],[Project Type]]="DEM")), AND(FullPreparedList[[#This Row],[Renewal, New, Expansion, Reallocate, Ignore]]="Expansion",OR(FullPreparedList[[#This Row],[Project Type]]="RRH",FullPreparedList[[#This Row],[Project Type]]="PSH",FullPreparedList[[#This Row],[Project Type]]="TH/RRH"))) -> FALSE | AL73: =COUNTIF(INDEX(FullPreparedList[Project Name],1):FullPreparedList[[#This Row],[Project Name]],FullPreparedList[[#This Row],[Project Name]]) -> 1 | AM73: =IF(AND(FullPreparedList[[#This Row],[Project Name]]<>"",FullPreparedList[[#This Row],[Renewal, New, Expansion, Reallocate, Ignore]]="Ignore"),0,IF(FullPreparedList[[#This Row],[Project Name]]="",-999,1)) -> 0
